Workbook

Sheet Races, Positions & Points
A1: 2015 | C1: BARTS Points Races | M1: DATE | Q1: 2015-03-14 | S1: 1 | T1: 2015-04-18 | V1: =1+S1 -> 2 | W1: 2015-04-25 | Z1: =1+V1 -> 3 | AA1: 2015-04-26 | AD1: =1+Z1 -> 4 | AE1: 2015-05-02 | AG1: =1+AD1 -> 5 | AH1: 2015-05-03 | AJ1: =1+AG1 -> 6 | AK1: 2015-05-04 | AM1: =1+AJ1 -> 7 | AN1: 2015-05-09 | AP1: =1+AM1 -> 8 | AQ1: 2015-05-10 | AS1: =1+AP1 -> 9 | AT1: 2015-05-30 | AV1: =1+AS1 -> 10 | AW1: 2015-05-31 | AY1: =1+AV1 -> 11 | AZ1: 1900-03-07 | BB1: =1+AY1 -> 12 | BC1: 2014-06-07 | BE1: =1+BB1 -> 13 | BF1: 2015-06-07 | BH1: =1+BE1 -> 14 | BI1: 2014-06-08 | BK1: =1+BH1 -> 15 | BL1: 2015-06-07 | BN1: =1+BK1 -> 16 | BO1: 2015-06-13 | BQ1: =1+BN1 -> 17 | BR1: 2015-06-14 | BT1: =1+BQ1 -> 18 | BU1: 2015-06-20 | BW1: =1+BT1 -> 19 | BX1: 2015-06-20 | BZ1: =1+BW1 -> 20 | CA1: 2015-06-21 | CC1: =1+BZ1 -> 21 | CD1: 2015-06-21 | CG1: =1+CC1 -> 22 | CH1: 2014-06-28 | CJ1: =1+CC1 -> 22 | CK1: 2015-07-04 | CM1: =1+CJ1 -> 23 | CN1: 2015-07-11 | CP1: =1+CM1 -> 24 | CQ1: 2015-07-11 | CS1: =1+CP1 -> 25 | CT1: 2015-07-11 | CW1: =1+CS1 -> 26 | CX1: 2014-07-12 | CZ1: =1+CW1 -> 27 | DA1: 2015-08-29 | DC1: =1+CZ1 -> 28 | DD1: 2015-09-05 | DF1: =1+DC1 -> 29 | DG1: 2015-09-06 | DI1: =1+DF1 -> 30 | DJ1: 2015-09-12 | DL1: =1+DI1 -> 31 | DM1: 2015-09-13 | DO1: =1+DL1 -> 32 | DP1: 2015-09-26 | DR1: =1+DO1 -> 33 | DS1: 2015-09-26 | DU1: =1+DR1 -> 34 | DV1: 2015-09-27 | DX1: =1+DU1 -> 35 | DY1: 2015-09-27 | EA1: =1+DX1 -> 36 | EB1: 2015-10-03 | ED1: =1+EA1 -> 37 | EE1: 2015-10-04 | EG1: =1+ED1 -> 38 | EH1: 2015-10-17 | EJ1: =1+EG1 -> 39
M2: EVENT | Q2: Excel | T2: Excel | W2: Telford CN | AA2: Manchester CN | AE2: SSW CH + Team | AH2: Gloucester CN | AK2: GBR #O1 | AN2: GBR #I1 | AQ2: GBR #I2 | AT2: Norfolk CN | AW2: Ipswich CN | AZ2: Firpark CN | BF2: SASA CN | BL2: LSRA CN | BO2: GBR #I3 | BR2: Scot Ind Champs | BU2: GBR #O2 | BX2: GBR #O3 | CA2: Midland CN | CD2: Lions CN | CH2: Pendle CN | CK2: Avon & WC CN | CN2: GBR #O4 | CQ2: GBR #O5 (GS) | CT2: Hemel CN | CX2: GBR #O6 | DA2: All England Champ | DD2: Anglo Welsh Indoor Champs | DG2: British Indoor Champs | DJ2: Welsh Champs | DM2: British Champs | DP2: Lowlands Indoor Champs | DS2: Scottish Dryslope Champs | DV2: Lowlands Indoor Champs | DY2: Scottish Dryslope Champs GS | EB2: Irish Champs | EE2: European Champs | EH2: BARSC Indoor Ch.
A3: Race Registration | M3: VENUE | Q3: Pontypool | T3: Pembrey | W3: Manchester | AA3: Manchester | AE3: Gloucester | AH3: Gloucester | AK3: Gloucester | AN3: Manchester | AQ3: Manchester | AT3: Norwich | AW3: Ipswich | AZ3: Firpark | BF3: Southampton | BL3: Edinburgh | BO3: Glasgow | BR3: Glasgow | BU3: Gloucester | BX3: Gloucester | CA3: Gloucester | CD3: Castleford | CH3: Pendle | CK3: Mendip | CN3: Pontypool | CQ3: Pontypool | CT3: Hemel | CX3: Pontypool | DA3: Sunderland | DD3: Manchester | DG3: Manchester | DJ3: Pontypool | DM3: Pontypool | DP3: Landgraff, NL | DS3: Edinburgh | DV3: Landgraff, NL | DY3: Edinburgh | EB3: Dublin | EE3: Dublin | EH3: Chill Factore
M4: Min | Q4: 40 | S4: Out | T4: 40 | V4: Out | W4: 10 | Z4: In | AA4: 10 | AD4: In | AE4: 10 | AG4: Out | AH4: 10 | AJ4: Out | AK4: 5 | AM4: Out | AN4: 5 | AP4: In | AQ4: 5 | AS4: In | AT4: 10 | AV4: Out | AW4: 10 | AY4: Out | AZ4: 10 | BB4: Out | BC4: 10 | BD4: pts | BE4: Out | BF4: 10 | BH4: Out | BI4: 10 | BJ4: pts | BK4: Out | BL4: 10 | BN4: Out | BO4: 5 | BQ4: In | BR4: 0 | BT4: In | BU4: 5 | BW4: Out | BX4: 5 | BZ4: Out | CA4: 10 | CC4: Out | CD4: 10 | CG4: In | CH4: 10 | CJ4: Out | CK4: 10 | CM4: Out | CN4: 5 | CP4: Out | CQ4: 5 | CS4: Out | CT4: 10 | CW4: In | CX4: 5 | CZ4: Out | DA4: 0 | DC4: Out | DD4: 0 | DF4: In | DG4: 0 | DI4: In | DJ4: 0 | DL4: Out | DM4: 0 | DO4: Out | DP4: 0 | DR4: In | DS4: 0 | DU4: Out | DV4: 0 | DX4: In | DY4: 0 | EA4: Out | EB4: 0 | ED4: Out | EE4: 0 | EG4: Out | EH4: 0 | EJ4: Out
A5: Britski | B5: M/F | D5: AGE GROUP | E5: REG | F5: PAST | G5: POINTS | H5: POINTS | I5: POINTS | J5: POINTS | L5: Out | M5: In | N5: FUTURE | O5: POINTS | P5: POINTS | Q5: Overall | R5: Age | S5: Event Points | T5: Overall | U5: Age | V5: Event Points | W5: Overall | X5: Age | Y5: Run1 Points | Z5: Run 2 Points | AA5: Overall | AB5: Age | AC5: Run1 Points | AD5: Run 2 Points | AE5: Overall | AF5: Age | AG5: Event Points | AH5: Overall | AI5: Age | AJ5: Event Points | AK5: Overall | AL5: Age | AM5: Event Points | AN5: Overall | AO5: Age | AP5: Event Points | AQ5: Overall | AR5: Age | AS5: Event Points | AT5: Overall | AU5: Age | AV5: Event Points | AW5: Overall | AX5: Age | AY5: Event Points | AZ5: Overall | BA5: Age | BB5: Event Points | BC5: Overall | BD5: Age | BE5: Event Points | BF5: Overall | BG5: Age | BH5: Event Points | BI5: Overall | BJ5: Age | BK5: Event Points | BL5: Overall | BM5: Age | BN5: Event Points | BO5: Overall | BP5: Age | BQ5: Event Points | BR5: Overall | BS5: Age | BT5: Event Points | BU5: Overall | BV5: Age | BW5: Event Points | BX5: Overall | BY5: Age | BZ5: Event Points | CA5: Overall | CB5: Age | CC5: Event Points | CD5: Overall | CE5: Age | CF5: Run1 Points | CG5: Run 2 Points | CH5: Overall | CI5: Age | CJ5: Event Points | CK5: Overall | CL5: Age | CM5: Event Points | CN5: Overall | CO5: Age | CP5: Event Points | CQ5: Overall | CR5: Age | CS5: Event Points | CT5: Overall | CU5: Age | CV5: Run1 Points | CW5: Run 2 Points | CX5: Overall | CY5: Age | CZ5: Event Points | DA5: Overall | DB5: Age | DC5: Event Points | DD5: Overall | DE5: Age | DF5: Event Points | DG5: Overall | DH5: Age | DI5: Event Points | DJ5: Overall | DK5: Age | DL5: Event Points | DM5: Overall | DN5: Age | DO5: Event Points | DP5: Overall | DQ5: Age | DR5: Event Points | DS5: Overall | DT5: Age | DU5: Event Points | DV5: Overall | DW5: Age | DX5: Event Points | DY5: Overall | DZ5: Age | EA5: Event Points | EB5: Overall | EC5: Age | ED5: Event Points | EE5: Overall | EF5: Age | EG5: Event Points | EH5: Overall | EI5: Age | EJ5: Event Points
A6: Seeding | C6: YEAR | E6: NUM | G6: o-2015.0 | H6: i-2015.0 | I6: o-2015.6 | J6: i-2015.6 | L6: year best | M6: year best | O6: o-2014.6 | P6: i-2014.6
A7: GIRLS
A8: Tilley O'Brien | B8: F | C8: 2004 | D8: =INDEX('Age Calculation'!$A$1:'Age Calculation'!$Q$108,MATCH(C8,'Age Calculation'!$A$1:'Age Calculation'!$A$108),MATCH($A$1,'Age Calculation'!$A$1:'Age Calculation'!$Q$1)) -> U12 | E8: 20809 | G8: 999.99 | H8: 999.99 | I8: 999.99 | J8: 999.99 | L8: 999.99 | M8: 999.99 | O8: 999.99 | P8: 999.99 | W8: 1 | X8: 1 | Y8: 999.99 | Z8: 999.99 | AA8: 1 | AB8: 1 | AC8: 999.99 | AD8: 999.99 | AN8: 1 | AO8: 1 | AP8: 999.99 | AQ8: 1 | AR8: 1 | AS8: 999.99 | BO8: 1 | BP8: 1 | BQ8: 999.99 | BR8: 1 | BS8: 1 | BT8: 999.99 | DD8: 1 | DE8: 1 | DF8: 999.99
A9: Amber Fennell | B9: F | C9: 2007 | D9: U10 | E9: 22729 | G9: 999.99 | H9: 999.99 | I9: 999.99 | J9: 999.99 | L9: 999.99 | M9: 999.99 | W9: 7 | X9: 3 | Y9: 999.99 | Z9: 999.99 | AA9: 9 | AB9: 1 | AC9: 999.99 | AD9: 999.99 | AH9: 11 | AI9: 3 | AJ9: 999.99 | AK9: 7 | AL9: 3 | AM9: 999.99 | AN9: 11 | AO9: 5 | AP9: 999.99 | AT9: 10 | AU9: 3 | AV9: 999.99 | AW9: 9 | AX9: 2 | AY9: 999.99 | BO9: 16 | BP9: 6 | BR9: 19 | BS9: 6 | BT9: 999.99 | BU9: 6 | BV9: 3 | BW9: 999.99 | CA9: 9 | CB9: 4 | CC9: 999.99 | CK9: - | CL9: - | CM9: dnf | CN9: 6 | CO9: 3 | CP9: 999.99 | CQ9: 5 | CR9: 3 | CS9: GS | CX9: 7 | CY9: 3 | CZ9: 999.99 | DD9: 12 | DE9: 7 | DF9: 999.99 | DG9: 10 | DH9: 6 | DI9: 999.99 | DJ9: 7 | DK9: 3 | DL9: 999.99 | DM9: 7 | DN9: 3 | DO9: 999.99 | EB9: 1 | EC9: 1 | ED9: 999.99 | EE9: 1 | EF9: 1 | EG9: 999.99 | EH9: 4 | EI9: 2 | EJ9: 999.99
A10: Charlotte Giles | B10: F | C10: 2006 | D10: U10 | G10: 999.99 | H10: 999.99 | I10: 999.99 | J10: 999.99 | L10: 999.99 | M10: 999.99 | AT10: 11 | AU10: 4 | AV10: 999.99 | AW10: 13 | AX10: 5 | AY10: 999.99
A11: Emilia Orzel | B11: F | C11: 2006 | D11: U10 | E11: 22136 | G11: 999.99 | H11: 999.99 | I11: 999.99 | J11: 999.99 | L11: 999.99 | M11: 999.99 | AE11: 5 | AF11: 1 | AG11: 999.99 | AH11: - | AI11: - | AJ11: DNF | AK11: 6 | AL11: 2 | AM11: 999.99 | AN11: 6 | AO11: 1 | AP11: 999.99 | AQ11: 5 | AR11: 1 | AS11: 999.99 | BO11: 16 | BP11: 4 | BQ11: 999.99 | BR11: 14 | BS11: 1 | BT11: 999.99 | BU11: 4 | BV11: 1 | BW11: 999.99 | CA11: 4 | CB11: 1 | CC11: 999.99 | CN11: 5 | CO11: 2 | CP11: 999.99 | CQ11: 4 | CR11: 2 | CS11: GS | CX11: 4 | CY11: 1 | CZ11: 999.99 | DD11: 10 | DE11: 6 | DF11: 999.99 | DG11: 8 | DH11: 4 | DI11: 999.99 | DJ11: 6 | DK11: 2 | DL11: 999.99 | DM11: 6 | DN11: 2 | DO11: 999.99
A12: Anya Hemming | B12: F | C12: 2005 | D12: =INDEX('Age Calculation'!$A$1:'Age Calculation'!$Q$108,MATCH(C12,'Age Calculation'!$A$1:'Age Calculation'!$A$108),MATCH($A$1,'Age Calculation'!$A$1:'Age Calculation'!$Q$1)) -> U12 | E12: 21569 | G12: 999.99 | H12: 999.99 | I12: 999.99 | J12: 999.99 | L12: 999.99 | M12: 999.99 | O12: 999.99 | P12: 999.99 | AE12: 4 | AF12: 4 | AG12: 999.99 | AQ12: 9 | AR12: 3 | AS12: 999.99 | AT12: 4 | AU12: 3 | AV12: 999.99 | AW12: 7 | AX12: 6 | AY12: 999.99 | CH12: 4 | CI12: 3 | CJ12: 999.99 | CK12: 4 | CL12: 4 | CM12: 999.99
A13: Aaliyah Llewellyn | B13: F | C13: 2006 | D13: =INDEX('Age Calculation'!$A$1:'Age Calculation'!$Q$108,MATCH(C13,'Age Calculation'!$A$1:'Age Calculation'!$A$108),MATCH($A$1,'Age Calculation'!$A$1:'Age Calculation'!$Q$1)) -> U10 | E13: 22015 | G13: 999.99 | H13: 999.99 | I13: 999.99 | J13: 999.99 | L13: 999.99 | M13: 999.99 | O13: 999.99 | P13: 999.99
A14: BOYS
A15: James Shakeshaft | B15: M | C15: 2003 | D15: =INDEX('Age Calculation'!$A$1:'Age Calculation'!$Q$108,MATCH(C15,'Age Calculation'!$A$1:'Age Calculation'!$A$108),MATCH($A$1,'Age Calculation'!$A$1:'Age Calculation'!$Q$1)) -> U14 | E15: 20340 | G15: 999.99 | H15: 999.99 | I15: 999.99 | J15: 999.99 | L15: 999.99 | M15: 999.99 | O15: 999.99 | P15: 999.99
A16: Daniel Hadley | B16: M | C16: 2004 | D16: =INDEX('Age Calculation'!$A$1:'Age Calculation'!$Q$108,MATCH(C16,'Age Calculation'!$A$1:'Age Calculation'!$A$108),MATCH($A$1,'Age Calculation'!$A$1:'Age Calculation'!$Q$1)) -> U12 | E16: 20719 | G16: 999.99 | H16: 999.99 | I16: 999.99 | J16: 999.99 | L16: 999.99 | M16: 999.99 | O16: 999.99 | P16: 999.99
A17: Jack Teague | B17: M | C17: 2004 | D17: =INDEX('Age Calculation'!$A$1:'Age Calculation'!$Q$108,MATCH(C17,'Age Calculation'!$A$1:'Age Calculation'!$A$108),MATCH($A$1,'Age Calculation'!$A$1:'Age Calculation'!$Q$1)) -> U12 | E17: 20630 | G17: 999.99 | H17: 999.99 | I17: 999.99 | J17: 999.99 | L17: 999.99 | M17: 999.99 | O17: 999.99 | P17: 999.99
A18: Jack Upton | B18: M | C18: 2004 | D18: =INDEX('Age Calculation'!$A$1:'Age Calculation'!$Q$108,MATCH(C18,'Age Calculation'!$A$1:'Age Calculation'!$A$108),MATCH($A$1,'Age Calculation'!$A$1:'Age Calculation'!$Q$1)) -> U12 | E18: 21052 | G18: 999.99 | H18: 999.99 | I18: 999.99 | J18: 999.99 | L18: 999.99 | M18: 999.99 | O18: 999.99 | P18: 999.99 | Q18: 1 | R18: 1 | S18: 999.99 | W18: 1 | X18: 1 | Y18: 999.99 | Z18: 999.99 | AA18: 1 | AB18: 1 | AC18: 999.99 | AD18: 999.99 | AE18: 1 | AF18: 1 | AG18: 999.99 | AH18: 1 | AI18: 1 | AJ18: 999.99 | AK18: 1 | AL18: 1 | AM18: 999.99 | AN18: 1 | AO18: 1 | AP18: 999.99 | AQ18: 1 | AR18: 1 | AS18: 999.99 | AT18: 1 | AU18: 1 | AV18: 999.99 | AW18: 1 | AX18: 1 | AY18: 999.99 | BO18: 1 | BP18: 1 | BQ18: 999.99 | BR18: 1 | BS18: 1 | BT18: 999.99 | BU18: 1 | BV18: 1 | BW18: 999.99 | CA18: 1 | CB18: 1 | CC18: 999.99 | CH18: 1 | CI18: 1 | CJ18: 999.99 | CN18: 1 | CO18: 1 | CP18: 999.99 | CQ18: 1 | CR18: 1 | CS18: GS | CX18: 1 | CY18: 1 | CZ18: 999.99 | DA18: 1 | DB18: 1 | DC18: 999.99 | DD18: 2 | DE18: 2 | DF18: 999.99 | DG18: 1 | DH18: 1 | DI18: 999.99 | DJ18: 1 | DK18: 1 | DL18: 999.99 | DM18: 1 | DN18: 1 | DO18: 999.99 | EH18: 2 | EI18: 1 | EJ18: 999.99
A19: Keiran Woolley | B19: M | C19: 2005 | D19: =INDEX('Age Calculation'!$A$1:'Age Calculation'!$Q$108,MATCH(C19,'Age Calculation'!$A$1:'Age Calculation'!$A$108),MATCH($A$1,'Age Calculation'!$A$1:'Age Calculation'!$Q$1)) -> U12 | E19: 21837 | G19: 999.99 | H19: 999.99 | I19: 999.99 | J19: 999.99 | L19: 999.99 | M19: 999.99 | O19: 999.99 | P19: 999.99 | Q19: 2 | R19: 2 | S19: 999.99 | W19: 5 | X19: 5 | Y19: 999.99 | Z19: 999.99 | AA19: 4 | AB19: 4 | AC19: 999.99 | AD19: 999.99 | AH19: 7 | AI19: 7 | AJ19: 999.99 | AK19: 3 | AL19: 3 | AM19: 999.99 | AN19: 3 | AO19: 3 | AP19: 999.99 | AQ19: 3 | AR19: 3 | AS19: 999.99 | BO19: 6 | BP19: 5 | BQ19: 999.99 | BR19: 5 | BS19: 5 | BT19: 999.99 | BU19: 3 | BV19: 3 | BW19: 999.99 | CA19: 3 | CB19: 3 | CC19: 999.99 | CN19: 3 | CO19: 3 | CP19: 999.99 | CQ19: - | CR19: - | CS19: dnf | CX19: 3 | CY19: 3 | CZ19: 999.99 | DA19: 2 | DB19: 2 | DC19: 999.99 | DJ19: 2 | DK19: 2 | DL19: 999.99 | DM19: 2 | DN19: 2 | DO19: 999.99 | DP19: 4 | DQ19: 4 | DR19: 999.99 | DV19: 3 | DW19: 3 | DX19: 999.99 | EH19: 5 | EI19: 4 | EJ19: 999.99
A20: Charlie Deem | B20: M | C20: 2005 | D20: U12 | E20: 21827 | G20: 999.99 | H20: 999.99 | I20: 999.99 | J20: 999.99 | L20: 999.99 | M20: 999.99 | DA20: 3 | DB20: 3 | DC20: 999.99 | DD20: 7 | DE20: 5 | DF20: 999.99 | DG20: 8 | DH20: 6 | DI20: 999.99 | EH20: 6 | EI20: 5 | EJ20: 999.99
A21: Noah Bailey | B21: M | C21: 2006 | D21: U10 | E21: 22198 | G21: 999.99 | H21: 999.99 | I21: 999.99 | J21: 999.99 | L21: 999.99 | M21: 999.99 | O21: 999.99 | P21: 999.99
A22: Toby Weeks | B22: M | C22: 2007 | D22: U10 | G22: 999.99 | H22: 999.99 | I22: 999.99 | J22: 999.99 | L22: 999.99 | M22: 999.99 | Q22: 9 | R22: 3 | S22: 999.99 | T22: 7 | U22: 3 | V22: 999.99 | W22: 22 | X22: 12 | Y22: 999.99 | Z22: 999.99 | AA22: 25 | AB22: 12 | AC22: 999.99 | AD22: 999.99 | AE22: 10 | AF22: 2 | AG22: 999.99 | AH22: 17 | AI22: 6 | AJ22: 999.99 | AK22: 11 | AL22: 3 | AM22: 999.99 | AT22: 17 | AU22: 5 | AV22: 999.99 | BF22: 10 | BG22: 4 | BH22: 999.99 | BU22: 15 | BV22: 6 | BW22: 999.99 | CA22: 16 | CB22: 5 | CC22: 999.99 | CH22: 5 | CI22: 2 | CJ22: 999.99 | CK22: 7 | CL22: 4 | CM22: 999.99 | CN22: 11 | CO22: 4 | CP22: 999.99 | CQ22: 9 | CR22: 4 | CS22: GS | CX22: 11 | CY22: 4 | CZ22: 999.99 | DA22: 12 | DB22: 5 | DC22: 999.99 | DJ22: 16 | DK22: 8 | DL22: 999.99
A23: FEMALES
A24: Rachel Bill | B24: F | C24: 1990 | D24: =INDEX('Age Calculation'!$A$1:'Age Calculation'!$Q$108,MATCH(C24,'Age Calculation'!$A$1:'Age Calculation'!$A$108),MATCH($A$1,'Age Calculation'!$A$1:'Age Calculation'!$Q$1)) -> SEN | E24: 20168 | L24: ='Points Calculation'!$BO22 ->  | M24: ='Points Calculation'!$BX22 ->  | O24: ='Points Calculation'!BQ22 ->  | P24: ='Points Calculation'!BZ22 -> 
A25: Lucy Deller | B25: F | C25: 1996 | D25: =INDEX('Age Calculation'!$A$1:'Age Calculation'!$Q$108,MATCH(C25,'Age Calculation'!$A$1:'Age Calculation'!$A$108),MATCH($A$1,'Age Calculation'!$A$1:'Age Calculation'!$Q$1)) -> U21 | E25: 17888 | L25: ='Points Calculation'!$BO23 ->  | M25: ='Points Calculation'!$BX23 ->  | O25: ='Points Calculation'!BQ23 ->  | P25: ='Points Calculation'!BZ23 -> 
A26: Helena Newboult | B26: F | C26: 1998 | D26: =INDEX('Age Calculation'!$A$1:'Age Calculation'!$Q$108,MATCH(C26,'Age Calculation'!$A$1:'Age Calculation'!$A$108),MATCH($A$1,'Age Calculation'!$A$1:'Age Calculation'!$Q$1)) -> U18 | E26: 20696 | G26: 36.89 | H26: 37.39 | I26: 11.19 | J26: 41.85 | L26: =MIN(S26,V26,AG26,AJ26,AM26,AV26,AY26,BB26,BH26,BN26,BW26,BZ26,CC26,CJ26,CM26,CP26,CZ26,DC26,DL26,DO26,DU26,EA26,ED26,EG26) -> 10 | O26: ='Points Calculation'!BQ24 ->  | P26: ='Points Calculation'!BZ24 ->  | AH26: 4 | AI26: 1 | AJ26: =16.21+10.61 -> 26.82 | AT26: 2 | AU26: 1 | AV26: 12.67 | AW26: 1 | AX26: 1 | AY26: 10 | BF26: 3 | BG26: 1 | BH26: =7.85+10.45 -> 18.3 | CH26: 3 | CI26: 1 | CJ26: 14.6 | CN26: 15 | CO26: 3 | CP26: 123.86 | CQ26: 4 | CR26: 1 | CS26: GS | CX26: 3 | CY26: 1 | CZ26: 22.31
A27: Rowan Vernon | B27: F | C27: 1988 | D27: =INDEX('Age Calculation'!$A$1:'Age Calculation'!$Q$108,MATCH(C27,'Age Calculation'!$A$1:'Age Calculation'!$A$108),MATCH($A$1,'Age Calculation'!$A$1:'Age Calculation'!$Q$1)) -> SEN | E27: 13381 | L27: ='Points Calculation'!$BO25 ->  | M27: =MIN(Y27,Z27,AC27,AD27,AP27,AS27,BQ27,BT3) -> 0 | O27: ='Points Calculation'!BQ25 ->  | P27: ='Points Calculation'!BZ25 -> 
A28: Jessica Mayhew | B28: F | C28: 2000 | D28: =INDEX('Age Calculation'!$A$1:'Age Calculation'!$Q$108,MATCH(C28,'Age Calculation'!$A$1:'Age Calculation'!$A$108),MATCH($A$1,'Age Calculation'!$A$1:'Age Calculation'!$Q$1)) -> U16 | E28: 21014 | G28: 47.27 | H28: 101.02 | I28: 34.45 | J28: 115.68 | L28: =MIN(S28,V28,AG28,AJ28,AM28,AV28,AY28,BB28,BH28,BN28,BW28,BZ28,CC28,CJ28,CM28,CP28,CZ28,DC28,DL28,DO28,DU28,EA28,ED28,EG28) -> 26.22 | O28: ='Points Calculation'!BQ29 ->  | P28: ='Points Calculation'!BZ29 ->  | AE28: 6 | AF28: 2 | AG28: =45.98+10.06 -> 56.04 | AK28: - | AL28: - | AM28: DNF | AT28: 8 | AU28: 2 | AV28: 55.85 | AW28: 6 | AX28: 3 | AY28: 56.48 | BU28: 5 | BV28: 1 | BW28: 64.41 | CA28: 6 | CB28: 2 | CC28: 42.97 | CH28: 9 | CI28: 1 | CJ28: 26.22 | CN28: 24 | CO28: 9 | CP28: 356.97 | CQ28: 7 | CR28: 2 | CS28: GS | CX28: - | CY28: - | DJ28: 9 | DK28: 4 | DL28: 76.68 | DM28: 10 | DN28: 4 | DO28: 67.1
A29: Elisabeth Thomas | B29: F | C29: 1996 | D29: =INDEX('Age Calculation'!$A$1:'Age Calculation'!$Q$108,MATCH(C29,'Age Calculation'!$A$1:'Age Calculation'!$A$108),MATCH($A$1,'Age Calculation'!$A$1:'Age Calculation'!$Q$1)) -> U21 | E29: 18033 | L29: =MIN(S29,V29,AG29,AJ29,AM29,AV29,AY29,BB29,BH29,BN29,BW29,BZ29,CC29,CJ29,CM29,CP29,CZ29,DC29,DL29) -> 0 | M29: =MIN(Y29,Z29,AC29,AD29,AP29,AS29,BQ29,BT5) -> 0 | O29: ='Points Calculation'!BQ27 ->  | P29: ='Points Calculation'!BZ27 -> 
A30: Amy Middleton | B30: F | C30: 1995 | D30: =INDEX('Age Calculation'!$A$1:'Age Calculation'!$Q$108,MATCH(C30,'Age Calculation'!$A$1:'Age Calculation'!$A$108),MATCH($A$1,'Age Calculation'!$A$1:'Age Calculation'!$Q$1)) -> U21 | E30: 20307 | G30: 44.47 | H30: 61.38 | I30: 54.32 | J30: 68.12 | L30: =MIN(S30,V30,AG30,AJ30,AM30,AV30,AY30,BB30,BH30,BN30,BW30,BZ30,CC30,CJ30,CM30,CP30,CZ30,DC30,DL30,DO30,DU30,EA30,ED30,EG30) -> 51.16 | O30: ='Points Calculation'!BQ26 ->  | P30: ='Points Calculation'!BZ26 ->  | AT30: 10 | AU30: 5 | AV30: 66.52 | AW30: 8 | AX30: 3 | AY30: 66.17 | CH30: 13 | CI30: 4 | CJ30: 51.16 | DA30: - | DB30: - | DC30: dnf
A31: Maxine Hancock | B31: F | C31: 1997 | D31: =INDEX('Age Calculation'!$A$1:'Age Calculation'!$Q$108,MATCH(C31,'Age Calculation'!$A$1:'Age Calculation'!$A$108),MATCH($A$1,'Age Calculation'!$A$1:'Age Calculation'!$Q$1)) -> U21 | E31: 18617 | G31: 88.64 | H31: 84.1 | I31: 106.21 | J31: 68.89 | M31: =MIN(Y31,Z31,AC31,AD31,AP31,AS31,BQ31,BT31,CF31,CG31,CV31,CW31,DF31,DI31) -> 56 | O31: ='Points Calculation'!BQ28 ->  | P31: ='Points Calculation'!BZ28 ->  | W31: 5 | X31: 2 | Y31: 56 | Z31: 58.88 | AA31: 8 | AB31: 3 | AC31: 86.07 | AD31: 108.26 | AN31: 7 | AO31: 2 | AP31: =69.42+6.93 -> 76.35 | AQ31: - | AR31: - | AS31: DNF | BO31: 17 | BP31: 4 | BQ31: 119.92 | BR31: 16 | BS31: 6 | BT31: =90.98+4.55 -> 95.53 | CD31: 4 | CE31: 1 | CF31: 132.81 | CG31: =59.78+23.07 -> 82.85 | CT31: 6 | CU31: 3 | CV31: =61.55+42.32 -> 103.87 | CW31: =53.86+34.17 -> 88.03 | DD31: 16 | DE31: 5 | DF31: 108.62 | DG31: 20 | DH31: 6 | DI31: 113.11 | DP31: - | DQ31: - | DR31: dnf | DW31: 6 | DX31: ?? | EH31: 8 | EI31: 3 | EJ31: 122.12
A32: Ellie Jackson | B32: F | C32: 2002 | D32: U14 | E32: 21024 | G32: 163.95 | H32: 159.19 | I32: 97.42 | J32: 97.46 | L32: =MIN(S32,V32,AG32,AJ32,AM32,AV32,AY32,BB32,BH32,BN32,BW32,BZ32,CC32,CJ32,CM32,CP32,CZ32,DC32,DL32,DO32,DU32,EA32,ED32,EG32) -> 90.62 | M32: 95.26 | W32: 13 | X32: 3 | Y32: 160 | Z32: 136.36 | AH32: 20 | AI32: 4 | AJ32: =163.05+10.61 -> 173.66 | AK32: 12 | AL32: 3 | AM32: 150.42 | AN32: 39 | AO32: 10 | AP32: =683.32+6.93 -> 690.25 | AQ32: 13 | AR32: 2 | AS32: 116.53 | BO32: 21 | BP32: 3 | BQ32: 143.58 | BR32: 20 | BS32: 3 | BT32: =135.08+4.55 -> 139.63 | BU32: 11 | BV32: 3 | BW32: 144.39 | CA32: 16 | CB32: 2 | CC32: 132.85 | CH32: 14 | CI32: 1 | CJ32: 90.62 | CK32: - | CL32: - | CM32: dnf | CN32: 14 | CO32: 3 | CP32: 115.83 | CQ32: 14 | CR32: 2 | CS32: GS | CX32: 12 | CY32: 1 | CZ32: 122.4 | DD32: 23 | DE32: 7 | DF32: 120.58 | DG32: 14 | DH32: 3 | DI32: 95.26 | DJ32: 19 | DK32: 3 | DL32: 136.46 | DM32: 18 | DN32: 3 | DO32: 104.51 | EH32: 6 | EI32: 2 | EJ32: 85.83
A33: Hannah Shakeshaft | B33: F | C33: 1996 | D33: =INDEX('Age Calculation'!$A$1:'Age Calculation'!$Q$108,MATCH(C33,'Age Calculation'!$A$1:'Age Calculation'!$A$108),MATCH($A$1,'Age Calculation'!$A$1:'Age Calculation'!$Q$1)) -> U21 | E33: 19833 | L33: =MIN(S33,V33,AG33,AJ33,AM33,AV33,AY33,BB33,BH33,BN33,BW33,BZ33,CC33,CJ33,CM33,CP33,CZ33,DC33,DL33) -> 0 | M33: 0 | O33: ='Points Calculation'!BQ30 ->  | P33: ='Points Calculation'!BZ30 -> 
A34: Chloe Care | B34: F | C34: 1998 | D34: =INDEX('Age Calculation'!$A$1:'Age Calculation'!$Q$108,MATCH(C34,'Age Calculation'!$A$1:'Age Calculation'!$A$108),MATCH($A$1,'Age Calculation'!$A$1:'Age Calculation'!$Q$1)) -> U18 | E34: 19983 | L34: 0 | M34: 0 | O34: ='Points Calculation'!BQ31 ->  | P34: ='Points Calculation'!BZ31 -> 
A35: Geraldine Elgy | B35: F | C35: 1954 | D35: =INDEX('Age Calculation'!$A$1:'Age Calculation'!$Q$108,MATCH(C35,'Age Calculation'!$A$1:'Age Calculation'!$A$108),MATCH($A$1,'Age Calculation'!$A$1:'Age Calculation'!$Q$1)) -> MAS | E35: 19165 | L35: 0 | M35: 0 | O35: ='Points Calculation'!BQ32 ->  | P35: ='Points Calculation'!BZ32 -> 
A36: Laura Newboult | B36: F | C36: 1995 | D36: =INDEX('Age Calculation'!$A$1:'Age Calculation'!$Q$108,MATCH(C36,'Age Calculation'!$A$1:'Age Calculation'!$A$108),MATCH($A$1,'Age Calculation'!$A$1:'Age Calculation'!$Q$1)) -> U21 | E36: 20781 | L36: 0 | M36: 0 | O36: ='Points Calculation'!BQ33 ->  | P36: ='Points Calculation'!BZ33 -> 
A37: Robyn Doherty | B37: F | C37: 1996 | D37: =INDEX('Age Calculation'!$A$1:'Age Calculation'!$Q$108,MATCH(C37,'Age Calculation'!$A$1:'Age Calculation'!$A$108),MATCH($A$1,'Age Calculation'!$A$1:'Age Calculation'!$Q$1)) -> U21 | E37: 19573 | L37: 0 | M37: 0 | O37: ='Points Calculation'!BQ34 ->  | P37: ='Points Calculation'!BZ34 -> 
A38: Jane Lee | B38: F | C38: 1954 | D38: =INDEX('Age Calculation'!$A$1:'Age Calculation'!$Q$108,MATCH(C38,'Age Calculation'!$A$1:'Age Calculation'!$A$108),MATCH($A$1,'Age Calculation'!$A$1:'Age Calculation'!$Q$1)) -> MAS | E38: 41577 | L38: 0 | M38: 0 | O38: ='Points Calculation'!BQ35 ->  | P38: ='Points Calculation'!BZ35 -> 
A39: Emily Dawes | B39: F | C39: 1991 | D39: =INDEX('Age Calculation'!$A$1:'Age Calculation'!$Q$108,MATCH(C39,'Age Calculation'!$A$1:'Age Calculation'!$A$108),MATCH($A$1,'Age Calculation'!$A$1:'Age Calculation'!$Q$1)) -> SEN | E39: 14263 | L39: 0 | M39: 0 | O39: NR | P39: NR
A40: Sophia Phelps | B40: F | C40: 1994 | D40: =INDEX('Age Calculation'!$A$1:'Age Calculation'!$Q$108,MATCH(C40,'Age Calculation'!$A$1:'Age Calculation'!$A$108),MATCH($A$1,'Age Calculation'!$A$1:'Age Calculation'!$Q$1)) -> SEN | E40: 17839 | L40: 0 | M40: 0 | O40: NR | P40: NR
A41: Olivia Waller | B41: F | C41: 1994 | D41: =INDEX('Age Calculation'!$A$1:'Age Calculation'!$Q$108,MATCH(C41,'Age Calculation'!$A$1:'Age Calculation'!$A$108),MATCH($A$1,'Age Calculation'!$A$1:'Age Calculation'!$Q$1)) -> SEN | E41: 17516 | L41: 0 | M41: 0 | O41: NR | P41: NR
A42: Ella Giles | B42: F | C42: 2003 | D42: U14 | E42: 22176 | I42: 165.87 | J42: 529.28 | L42: =MIN(S42,V42,AG42,AJ42,AM42,AV42,AY42,BB42,BH42,BN42,BW42,BZ42,CC42,CJ42,CM42,CP42,CZ42,DC42,DL42,DO42,DU42,EA42,ED42,EG42) -> 155.5 | M42: 435.68 | AA42: - | AB42: - | AC42: dnf | AD42: 435.68 | AE42: 19 | AF42: 4 | AG42: =266.54+10.06 -> 276.6 | AT42: 31 | AU42: 5 | AV42: 184.42 | AW42: 36 | AX42: 6 | AY42: 176.53 | CA42: 20 | CB42: 4 | CC42: 208.65 | CH42: 16 | CI42: 2 | CJ42: 155.5
A43: Lauren Treuge | B43: F | C43: 2003 | D43: =INDEX('Age Calculation'!$A$1:'Age Calculation'!$Q$108,MATCH(C43,'Age Calculation'!$A$1:'Age Calculation'!$A$108),MATCH($A$1,'Age Calculation'!$A$1:'Age Calculation'!$Q$1)) -> U14 | E43: 20669 | L43: =MIN(S43,V43,AG43,AJ43,AM43,AV43,AY43,BB43,BH43,BN43,BW43,BZ43,CC43,CJ43,CM43,CP43,CZ43,DC43,DL43,DO43,DU43,EA43,ED43,EG43) -> 211.26 | O43: 999.99 | P43: 999.99 | CA43: 21 | CB43: 5 | CC43: 211.26
A44: Agathe Vallat | B44: F | C44: 1999 | D44: U16 | E44: 21606 | L44: NR | M44: NR | O44: NR | P44: NR
A45: Rose Tinley | B45: F | C45: 1998 | D45: U18 | E45: Day | L45: NR | M45: NR | O45: NR | P45: NR
A46: Rebecca Tinley | B46: F | C46: 2000 | D46: U16 | E46: Day | L46: NR | M46: NR | O46: NR | P46: NR
A47: Carys Phillips | B47: F | C47: 1999 | D47: U16 | E47: Day | L47: NR | M47: NR | O47: NR | P47: NR
A48: MALES | O48: =IF('Points Calculation'!BO44<#REF!,'Points Calculation'!BO44,"") ->  | P48: =IF('Points Calculation'!CG44<#REF!,'Points Calculation'!CG44,"") -> 
A49: Harry Hornsby | B49: M | C49: 1991 | D49: =INDEX('Age Calculation'!$A$1:'Age Calculation'!$Q$108,MATCH(C49,'Age Calculation'!$A$1:'Age Calculation'!$A$108),MATCH($A$1,'Age Calculation'!$A$1:'Age Calculation'!$Q$1)) -> SEN | E49: 17356 | G49: 7.8 | H49: 15.41 | I49: 10.49 | J49: 20.15 | L49: =MIN(S49,V49,AG49,AJ49,AM49,AV49,AY49,BB49,BH49,BN49,BW49,BZ49,CC49,CJ49,CM49,CP49,CZ49,DC49,DL49,DO49,DU49,EA49,ED49,EG49) -> 10 | O49: ='Points Calculation'!BQ42 ->  | P49: ='Points Calculation'!BZ42 ->  | AH49: 2 | AI49: 1 | AJ49: 14.09 | AT49: 3 | AU49: 1 | AV49: 28.26 | AW49: 2 | AX49: 2 | AY49: 14.45 | BF49: 2 | BG49: 1 | BH49: =46.49 -> 46.49 | BU49: - | BV49: - | BW49: dnf | CA49: 1 | CB49: 1 | CC49: 10 | DA49: 3 | DB49: 1 | DC49: 18.67
A50: Jonny Powell | B50: M | C50: 1986 | D50: =INDEX('Age Calculation'!$A$1:'Age Calculation'!$Q$108,MATCH(C50,'Age Calculation'!$A$1:'Age Calculation'!$A$108),MATCH($A$1,'Age Calculation'!$A$1:'Age Calculation'!$Q$1)) -> SEN | E50: 17479 | G50: 28.72 | H50: 28.72 | I50: 36.98 | J50: 33.46 | L50: =MIN(S50,V50,AG50,AJ50,AM50,AV50,AY50,BB50,BH50,BN50,BW50,BZ50,CC50,CJ50,CM50,CP50,CZ50,DC50,DL50,DO50,DU50,EA50,ED50,EG50) -> 51.9 | O50: ='Points Calculation'!BQ43 ->  | P50: ='Points Calculation'!BZ43 ->  | AH50: 10 | AI50: 5 | AJ50: 56.05 | AK50: 12 | AL50: 3 | AM50: 56.27 | BF50: 12 | BG50: 2 | BH50: 51.9
A51: Andrew Du Plessis | B51: M | C51: 1985 | D51: =INDEX('Age Calculation'!$A$1:'Age Calculation'!$Q$108,MATCH(C51,'Age Calculation'!$A$1:'Age Calculation'!$A$108),MATCH($A$1,'Age Calculation'!$A$1:'Age Calculation'!$Q$1)) -> MAS | E51: 12318 | L51: =MIN(S51,V51,AG51,AJ51,AM51,AV51,AY51,BB51,BH51,BN51,BW51,BZ51,CC51,CJ51,CM51,CP51,CZ51,DC51,DL51) -> 0 | O51: ='Points Calculation'!BQ44 ->  | P51: ='Points Calculation'!BZ44 -> 
A52: Adam Beardmore | B52: M | C52: 1986 | D52: =INDEX('Age Calculation'!$A$1:'Age Calculation'!$Q$108,MATCH(C52,'Age Calculation'!$A$1:'Age Calculation'!$A$108),MATCH($A$1,'Age Calculation'!$A$1:'Age Calculation'!$Q$1)) -> SEN | E52: 19704 | L52: 0 | O52: ='Points Calculation'!BQ45 ->  | P52: ='Points Calculation'!BZ45 -> 
A53: Adam. Lee | B53: M | C53: 1994 | D53: =INDEX('Age Calculation'!$A$1:'Age Calculation'!$Q$108,MATCH(C53,'Age Calculation'!$A$1:'Age Calculation'!$A$108),MATCH($A$1,'Age Calculation'!$A$1:'Age Calculation'!$Q$1)) -> SEN | E53: 41578 | G53: 37.32 | H53: 48.93 | I53: 53.67 | J53: 43.54 | L53: =MIN(S53,V53,AG53,AJ53,AM53,AV53,AY53,BB53,BH53,BN53,BW53,BZ53,CC53,CJ53,CM53,CP53,CZ53,DC53,DL53,DO53,DU53,EA53,ED53,EG53) -> 39.49 | O53: ='Points Calculation'!BQ46 ->  | P53: ='Points Calculation'!BZ46 ->  | AK53: - | AL53: - | AM53: DNF | CA53: - | CB53: - | CC53: dnf | CH53: 4 | CI53: 2 | CJ53: 49.02 | CN53: 32 | CO53: 3 | CP53: =190.23+16.17 -> 206.4 | CQ53: - | CR53: - | CS53: dns | CX53: 9 | CY53: 4 | CZ53: 97.79 | DA53: 9 | DB53: 3 | DC53: 61.42 | DJ53: 8 | DK53: 1 | DL53: 70.95 | DM53: 5 | DN53: 1 | DO53: 39.49 | DS53: 7 | DT53: 1 | DU53: =105.79+11.91 -> 117.7
A54: Oliver Weeks | B54: M | C54: 2001 | D54: =INDEX('Age Calculation'!$A$1:'Age Calculation'!$Q$108,MATCH(C54,'Age Calculation'!$A$1:'Age Calculation'!$A$108),MATCH($A$1,'Age Calculation'!$A$1:'Age Calculation'!$Q$1)) -> U16 | E54: 19051 | G54: 53.47 | H54: 66.97 | I54: 35.07 | J54: 46.15 | L54: =MIN(S54,V54,AG54,AJ54,AM54,AV54,AY54,BB54,BH54,BN54,BW54,BZ54,CC54,CJ54,CM54,CP54,CZ54,DC54,DL54,DO54,DU54,EA54,ED54,EG54) -> 31.66 | M54: =MIN(Y54,Z54,AC54,AD54,AP54,AS54,BQ54,BT54,CF54,CG54,CV54,CW54,DF54,DI54) -> 50.37 | O54: ='Points Calculation'!BQ53 ->  | P54: ='Points Calculation'!BZ53 ->  | W54: 10 | X54: 2 | Y54: 79.82 | Z54: 75.11 | AA54: 9 | AB54: 1 | AC54: 68.23 | AD54: 79 | AE54: 7 | AF54: 1 | AG54: 57.37 | AK54: 11 | AL54: 2 | AM54: 55.05 | AN54: 11 | AO54: 2 | AP54: =75.65+5.52 -> 81.17 | AQ54: 9 | AR54: 1 | AS54: 65.55 | BF54: 9 | BG54: 1 | BH54: 62.03 | BO54: 5 | BP54: 1 | BQ54: =42.6+7.77 -> 50.37 | BR54: 10 | BS54: 2 | BT54: =43.64+12.19 -> 55.83 | BU54: 5 | BV54: 1 | BW54: 47.21 | CA54: 11 | CB54: 1 | CC54: 55.93 | CH54: 11 | CI54: 2 | CJ54: 83.37 | CK54: 3 | CL54: 1 | CM54: 48.46 | CN54: 4 | CO54: 1 | CP54: =25.79+16.17 -> 41.96 | CQ54: 13 | CR54: 1 | CS54: GS | CX54: 7 | CY54: 1 | CZ54: 79.61 | DA54: 7 | DB54: 1 | DC54: 55.47 | DD54: 15 | DE54: 2 | DF54: 52.45 | DG54: 21 | DH54: 4 | DI54: 71 | DJ54: 7 | DK54: 1 | DL54: 61.45 | DM54: 8 | DN54: 1 | DO54: 50.92 | DS54: - | DT54: - | DU54: dnf | DY54: 2 | DZ54: 1 | EA54: GS | EB54: 4 | EC54: 1 | ED54: =29.05+2.61 -> 31.66 | EE54: 9 | EF54: 1 | EG54: 60.63 | EH54: 32 | EI54: 9 | EJ54: 527.5
A55: Phil Emmerson | B55: M | C55: 1990 | D55: =INDEX('Age Calculation'!$A$1:'Age Calculation'!$Q$108,MATCH(C55,'Age Calculation'!$A$1:'Age Calculation'!$A$108),MATCH($A$1,'Age Calculation'!$A$1:'Age Calculation'!$Q$1)) -> SEN | E55: 21084 | L55: 0 | O55: ='Points Calculation'!BQ48 ->  | P55: ='Points Calculation'!BZ48 -> 
A56: Jack Rigby | B56: M | C56: 1995 | D56: =INDEX('Age Calculation'!$A$1:'Age Calculation'!$Q$108,MATCH(C56,'Age Calculation'!$A$1:'Age Calculation'!$A$108),MATCH($A$1,'Age Calculation'!$A$1:'Age Calculation'!$Q$1)) -> U21 | E56: 41722 | I56: 60.48 | J56: 44.57 | M56: =MIN(Y56,Z56,AC56,AD56,AP56,AS56,BQ56,BT56,CF56,CG56,CV56,CW56,DF56,DI56) -> 76.38 | O56: ='Points Calculation'!BQ47 ->  | P56: ='Points Calculation'!BZ47 ->  | CT56: 6 | CU56: 3 | CV56: =67.08+13.22 -> 80.3 | CW56: 76.38
A57: Nick Miller | B57: M | C57: 1993 | D57: =INDEX('Age Calculation'!$A$1:'Age Calculation'!$Q$108,MATCH(C57,'Age Calculation'!$A$1:'Age Calculation'!$A$108),MATCH($A$1,'Age Calculation'!$A$1:'Age Calculation'!$Q$1)) -> SEN | E57: 18607 | L57: =MIN(S57,V57,AG57,AJ57,AM57,AV57,AY57,BB57,BH57,BN57,BW57,BZ57,CC57,CJ57,CM57,CP57,CZ57,DC57,DL57) -> 0 | O57: ='Points Calculation'!BQ50 ->  | P57: ='Points Calculation'!BZ50 -> 
A58: Alasdair Thorley | B58: M | C58: 1994 | D58: =INDEX('Age Calculation'!$A$1:'Age Calculation'!$Q$108,MATCH(C58,'Age Calculation'!$A$1:'Age Calculation'!$A$108),MATCH($A$1,'Age Calculation'!$A$1:'Age Calculation'!$Q$1)) -> SEN | E58: 18586 | L58: 0 | O58: ='Points Calculation'!BQ51 ->  | P58: ='Points Calculation'!BZ51 -> 
A59: Edmund Walker | B59: M | C59: 1992 | D59: =INDEX('Age Calculation'!$A$1:'Age Calculation'!$Q$108,MATCH(C59,'Age Calculation'!$A$1:'Age Calculation'!$A$108),MATCH($A$1,'Age Calculation'!$A$1:'Age Calculation'!$Q$1)) -> SEN | E59: 14213 | G59: 50.77 | H59: 92.59 | I59: 59.18 | J59: 105.85 | L59: =MIN(S59,V59,AG59,AJ59,AM59,AV59,AY59,BB59,BH59,BN59,BW59,BZ59,CC59,CJ59,CM59,CP59,CZ59,DC59,DL59,DO59,DU59,EA59,ED59,EG59) -> 71.59 | O59: ='Points Calculation'!BQ56 ->  | P59: ='Points Calculation'!BZ56 ->  | AT59: 11 | AU59: 5 | AV59: 71.59 | AW59: - | AX59: - | AY59: DNF
A60: Mark Hawkins | B60: M | C60: 1979 | D60: =INDEX('Age Calculation'!$A$1:'Age Calculation'!$Q$108,MATCH(C60,'Age Calculation'!$A$1:'Age Calculation'!$A$108),MATCH($A$1,'Age Calculation'!$A$1:'Age Calculation'!$Q$1)) -> MAS | E60: 19163 | G60: 55.53 | H60: 73.74 | I60: 52.15 | J60: 83.23 | L60: =MIN(S60,V60,AG60,AJ60,AM60,AV60,AY60,BB60,BH60,BN60,BW60,BZ60,CC60,CJ60,CM60,CP60,CZ60,DC60,DL60,DO60,DU60,EA60,ED60,EG60) -> 46.63 | O60: ='Points Calculation'!BQ49 ->  | P60: ='Points Calculation'!BZ49 ->  | AH60: 13 | AI60: 2 | AJ60: 46.63 | AK60: - | AL60: - | AM60: DNF | CA60: - | CB60: - | CC60: dnf | CN60: - | CO60: - | CP60: dnf | CQ60: 7 | CR60: 3 | CS60: GS | CX60: - | CY60: - | CZ60: dnf
A61: James Smith | B61: M | C61: 1992 | D61: =INDEX('Age Calculation'!$A$1:'Age Calculation'!$Q$108,MATCH(C61,'Age Calculation'!$A$1:'Age Calculation'!$A$108),MATCH($A$1,'Age Calculation'!$A$1:'Age Calculation'!$Q$1)) -> SEN | E61: 21595 | L61: 0 | M61: =MIN(Y61,Z61,AC61,AD61,AP61,AS61,BQ61,BT38,CF38,CG38,CV60,CW60,DF60,DI60) -> 0 | O61: ='Points Calculation'!BQ54 ->  | P61: ='Points Calculation'!BZ54 -> 
A62: Gareth Miller | B62: M | C62: 1994 | D62: =INDEX('Age Calculation'!$A$1:'Age Calculation'!$Q$108,MATCH(C62,'Age Calculation'!$A$1:'Age Calculation'!$A$108),MATCH($A$1,'Age Calculation'!$A$1:'Age Calculation'!$Q$1)) -> SEN | E62: 18509 | L62: 0 | M62: =MIN(Y62,Z62,AC62,AD62,AP62,AS62,BQ62,BT39,CF39,CG39,CV61,CW61,DF61,DI61) -> 0 | O62: ='Points Calculation'!BQ55 ->  | P62: ='Points Calculation'!BZ55 -> 
A63: Thomas Upton | B63: M | C63: 2001 | D63: =INDEX('Age Calculation'!$A$1:'Age Calculation'!$Q$108,MATCH(C63,'Age Calculation'!$A$1:'Age Calculation'!$A$108),MATCH($A$1,'Age Calculation'!$A$1:'Age Calculation'!$Q$1)) -> U16 | E63: 21051 | G63: 104.95 | H63: 121.49 | I63: 70.14 | J63: 97.61 | L63: =MIN(S63,V63,AG63,AJ63,AM63,AV63,AY63,BB63,BH63,BN63,BW63,BZ63,CC63,CJ63,CM63,CP63,CZ63,DC63,DL63,DO63,DU63,EA63,ED63,EG63) -> 64.28 | M63: =MIN(Y63,Z63,AC63,AD63,AP63,AS63,BQ63,BT63,CF63,CG63,CV63,CW63,DF63,DI63) -> 107.3 | O63: ='Points Calculation'!BQ67 ->  | P63: ='Points Calculation'!BZ67 ->  | Q63: 26 | R63: 12 | S63: =1060.73+123.67 -> 1184.4 | W63: 36 | X63: 12 | Y63: 165.34 | Z63: 217.7 | AA63: 25 | AB63: 7 | AC63: 166.96 | AD63: 182.1 | AE63: 25 | AF63: 5 | AG63: 117.37 | AH63: 20 | AI63: 3 | AJ63: 96.98 | AK63: 23 | AL63: 6 | AM63: 104.9 | AN63: 36 | AO63: 11 | AP63: =159.49+5.52 -> 165.01 | AQ63: 35 | AR63: 10 | AS63: 157.97 | AT63: 28 | AU63: 2 | AV63: 128.55 | AW63: 18 | AX63: 4 | AY63: 103.26 | BO63: 31 | BP63: 10 | BQ63: =137.26+7.77 -> 145.03 | BR63: 29 | BS63: 10 | BT63: =107.76+12.19 -> 119.95 | BU63: 15 | BV63: 2 | BW63: 66.45 | CA63: 22 | CB63: 2 | CC63: 86.83 | CH63: 24 | CI63: 3 | CJ63: 150.7 | CK63: 5 | CL63: 1 | CM63: 64.28 | CN63: 9 | CO63: 2 | CP63: =61.13+16.17 -> 77.3 | CQ63: 27 | CR63: 6 | CS63: GS | CX63: 19 | CY63: 4 | CZ63: 129.47 | DA63: 16 | DB63: 3 | DC63: 97.41 | DD63: 38 | DE63: 9 | DF63: 107.3 | DG63: 36 | DH63: 10 | DI63: 110.27 | DJ63: 13 | DK63: 3 | DL63: 86.85 | EH63: 7 | EI63: 3 | EJ63: 85.79
A64: Jordan Rigby | B64: M | C64: 2000 | D64: =INDEX('Age Calculation'!$A$1:'Age Calculation'!$Q$108,MATCH(C64,'Age Calculation'!$A$1:'Age Calculation'!$A$108),MATCH($A$1,'Age Calculation'!$A$1:'Age Calculation'!$Q$1)) -> U16 | E64: 19910 | L64: 0 | M64: =MIN(Y64,Z64,AC64,AD64,AP64,AS64,BQ64,BT41,CF41,CG41,CV63,CW63,DF63,DI63) -> 107.3 | O64: ='Points Calculation'!BQ57 ->  | P64: ='Points Calculation'!BZ57 -> 
A65: Thomas Lawrence | B65: M | C65: 1999 | D65: =INDEX('Age Calculation'!$A$1:'Age Calculation'!$Q$108,MATCH(C65,'Age Calculation'!$A$1:'Age Calculation'!$A$108),MATCH($A$1,'Age Calculation'!$A$1:'Age Calculation'!$Q$1)) -> U18 | E65: 19941 | G65: 103.46 | H65: 143.83 | I65: 72.88 | J65: 202.98 | L65: =MIN(S65,V65,AG65,AJ65,AM65,AV65,AY65,BB65,BH65,BN65,BW65,BZ65,CC65,CJ65,CM65,CP65,CZ65,DC65,DL65,DO65,DU65,EA65,ED65,EG65) -> 63.38 | O65: ='Points Calculation'!BQ63 ->  | P65: ='Points Calculation'!BZ63 ->  | AE65: 13 | AF65: 5 | AG65: 78.69 | AT65: 24 | AU65: 8 | AV65: 116.01 | BU65: 13 | BV65: 3 | BW65: 63.38 | CA65: 24 | CB65: 8 | CC65: 102.5 | CH65: 13 | CI65: 2 | CJ65: 85.85 | DM65: 22 | DN65: 12 | DO65: 90.8 | EB65: 16 | EC65: 2 | ED65: =106.59+2.61 -> 109.2 | EE65: 37 | EF65: 9 | EG65: 610.2
A66: Roger Crombleholme | B66: M | C66: 1957 | D66: =INDEX('Age Calculation'!$A$1:'Age Calculation'!$Q$108,MATCH(C66,'Age Calculation'!$A$1:'Age Calculation'!$A$108),MATCH($A$1,'Age Calculation'!$A$1:'Age Calculation'!$Q$1)) -> MAS | E66: 5666 | L66: 0 | M66: =MIN(Y66,Z66,AC66,AD66,AP66,AS66,BQ66,BT43,CF43,CG43,CV65,CW65,DF65,DI65) -> 0 | O66: ='Points Calculation'!BQ59 ->  | P66: ='Points Calculation'!BZ59 -> 
A67: Joey Frost | B67: M | C67: 1995 | D67: =INDEX('Age Calculation'!$A$1:'Age Calculation'!$Q$108,MATCH(C67,'Age Calculation'!$A$1:'Age Calculation'!$A$108),MATCH($A$1,'Age Calculation'!$A$1:'Age Calculation'!$Q$1)) -> U21 | E67: 20677 | L67: 0 | M67: =MIN(Y67,Z67,AC67,AD67,AP67,AS67,BQ67,BT44,CF44,CG44,CV66,CW66,DF66,DI66) -> 0 | O67: ='Points Calculation'!BQ60 ->  | P67: ='Points Calculation'!BZ60 -> 
A68: Sam Lee | B68: M | C68: 1996 | D68: =INDEX('Age Calculation'!$A$1:'Age Calculation'!$Q$108,MATCH(C68,'Age Calculation'!$A$1:'Age Calculation'!$A$108),MATCH($A$1,'Age Calculation'!$A$1:'Age Calculation'!$Q$1)) -> U21 | E68: 41662 | L68: 0 | M68: =MIN(Y68,Z68,AC68,AD68,AP68,AS68,BQ68,BT45,CF45,CG45,CV67,CW67,DF67,DI67) -> 0 | O68: ='Points Calculation'!BQ61 ->  | P68: ='Points Calculation'!BZ61 -> 
A69: Duncan Thorley | B69: M | C69: 1997 | D69: =INDEX('Age Calculation'!$A$1:'Age Calculation'!$Q$108,MATCH(C69,'Age Calculation'!$A$1:'Age Calculation'!$A$108),MATCH($A$1,'Age Calculation'!$A$1:'Age Calculation'!$Q$1)) -> U21 | E69: 18998 | L69: 0 | M69: =MIN(Y69,Z69,AC69,AD69,AP69,AS69,BQ69,BT46,CF46,CG46,CV68,CW68,DF68,DI68) -> 0 | O69: ='Points Calculation'!BQ62 ->  | P69: ='Points Calculation'!BZ62 -> 
A70: Nick Phelps | B70: M | C70: 1997 | D70: =INDEX('Age Calculation'!$A$1:'Age Calculation'!$Q$108,MATCH(C70,'Age Calculation'!$A$1:'Age Calculation'!$A$108),MATCH($A$1,'Age Calculation'!$A$1:'Age Calculation'!$Q$1)) -> U21 | E70: 17840 | G70: 103.06 | H70: 173.53 | I70: 95.66 | J70: 96.03 | L70: =MIN(S70,V70,AG70,AJ70,AM70,AV70,AY70,BB70,BH70,BN70,BW70,BZ70,CC70,CJ70,CM70,CP70,CZ70,DC70,DL70,DO70,DU70,EA70,ED70,EG70) -> 81.17 | O70: ='Points Calculation'!BQ52 ->  | P70: ='Points Calculation'!BZ52 ->  | CA70: 21 | CB70: 5 | CC70: 81.17
A71: Seamus O'Brien | B71: M | C71: 2002 | D71: =INDEX('Age Calculation'!$A$1:'Age Calculation'!$Q$108,MATCH(C71,'Age Calculation'!$A$1:'Age Calculation'!$A$108),MATCH($A$1,'Age Calculation'!$A$1:'Age Calculation'!$Q$1)) -> U14 | E71: 19737 | G71: 999.99 | H71: 91.11 | I71: 999.99 | J71: 91.11 | M71: =MIN(Y71,Z71,AC71,AD71,AP71,AS71,BQ71,BT71,CF71,CG71,CV71,CW71,DF71,DI71) -> 74.94 | O71: ='Points Calculation'!BQ78 ->  | P71: ='Points Calculation'!BZ78 ->  | W71: 15 | X71: 3 | Y71: 110.04 | Z71: 106.8 | AA71: 17 | AB71: 2 | AC71: 103.17 | AD71: 101.42 | AN71: - | AO71: - | AP71: DNF | AQ71: 25 | AR71: 4 | AS71: 114.09 | BO71: 22 | BP71: 4 | BQ71: =109.7+7.77 -> 117.47 | BR71: 21 | BS71: 2 | BT71: =62.75+12.19 -> 74.94 | DD71: 43 | DE71: 6 | DF71: 123.51
A72: James Elgy | B72: M | C72: 1993 | D72: =INDEX('Age Calculation'!$A$1:'Age Calculation'!$Q$108,MATCH(C72,'Age Calculation'!$A$1:'Age Calculation'!$A$108),MATCH($A$1,'Age Calculation'!$A$1:'Age Calculation'!$Q$1)) -> SEN | E72: 19166 | L72: =MIN(S72,V72,AG72,AJ72,AM72,AV72,AY72,BB72,BH72,BN72,BW72,BZ72,CC72,CJ72,CM72,CP72,CZ72,DC72,DL72) -> 0 | M72: =MIN(Y72,Z72,AC72,AD72,AP72,AS72,BQ72,BT72,CF72,CG72,CV72,CW72,DF72,DI72) -> 0 | O72: ='Points Calculation'!BQ65 ->  | P72: ='Points Calculation'!BZ65 -> 
A73: Toby Tarrant | B73: M | C73: 1997 | D73: =INDEX('Age Calculation'!$A$1:'Age Calculation'!$Q$108,MATCH(C73,'Age Calculation'!$A$1:'Age Calculation'!$A$108),MATCH($A$1,'Age Calculation'!$A$1:'Age Calculation'!$Q$1)) -> U21 | E73: 21550 | L73: 0 | M73: =MIN(Y73,Z73,AC73,AD73,AP73,AS73,BQ73,BT73,CF73,CG73,CV73,CW73,DF73,DI73) -> 0 | O73: ='Points Calculation'!BQ66 ->  | P73: ='Points Calculation'!BZ66 -> 
A74: Sam Dewison | B74: M | C74: 1998 | D74: =INDEX('Age Calculation'!$A$1:'Age Calculation'!$Q$108,MATCH(C74,'Age Calculation'!$A$1:'Age Calculation'!$A$108),MATCH($A$1,'Age Calculation'!$A$1:'Age Calculation'!$Q$1)) -> U18 | E74: 20846 | I74: 70.88 | J74: 167.34 | L74: =MIN(S74,V74,AG74,AJ74,AM74,AV74,AY74,BB74,BH74,BN74,BW74,BZ74,CC74,CJ74,CM74,CP74,CZ74,DC74,DL74,DO74,DU74,EA74,ED74,EG74) -> 60.52 | O74: ='Points Calculation'!BQ58 ->  | P74: ='Points Calculation'!BZ58 ->  | AH74: 18 | AI74: 5 | AJ74: 93.3 | CA74: 23 | CB74: 7 | CC74: 88.79 | CK74: 4 | CL74: 2 | CM74: 60.52
A75: Ethan Hemming | B75: M | C75: 2001 | D75: =INDEX('Age Calculation'!$A$1:'Age Calculation'!$Q$108,MATCH(C75,'Age Calculation'!$A$1:'Age Calculation'!$A$108),MATCH($A$1,'Age Calculation'!$A$1:'Age Calculation'!$Q$1)) -> U16 | E75: 19829 | G75: 999.99 | H75: 999.99 | I75: 130.27 | J75: 211.04 | L75: =MIN(S75,V75,AG75,AJ75,AM75,AV75,AY75,BB75,BH75,BN75,BW75,BZ75,CC75,CJ75,CM75,CP75,CZ75,DC75,DL75,DO75,DU75,EA75,ED75,EG75) -> 127.03 | O75: ='Points Calculation'!BQ64 ->  | P75: ='Points Calculation'!BZ64 ->  | AE75: 27 | AF75: 8 | AG75: 148.73 | AT75: 33 | AU75: 4 | AV75: 136.99 | AW75: - | AX75: - | AY75: DNF | CA75: - | CB75: - | CC75: dnf | CH75: 29 | CI75: 5 | CJ75: 156.47 | CK75: 13 | CL75: 4 | CM75: 127.03 | DM75: 42 | DN75: 14 | DO75: 281.5
A76: Samuel Doherty | B76: M | C76: 1999 | D76: =INDEX('Age Calculation'!$A$1:'Age Calculation'!$Q$108,MATCH(C76,'Age Calculation'!$A$1:'Age Calculation'!$A$108),MATCH($A$1,'Age Calculation'!$A$1:'Age Calculation'!$Q$1)) -> U18 | E76: 19572 | L76: 0 | M76: =MIN(Y76,Z76,AC76,AD76,AP76,AS76,BQ76,BT53,CF53,CG53,CV75,CW75,DF75,DI75) -> 0 | O76: ='Points Calculation'!BQ69 ->  | P76: ='Points Calculation'!BZ69 -> 
A77: Adam Kent | B77: M | C77: 1991 | D77: SEN | E77: 19737 | G77: 114.45 | H77: 180.25 | I77: 111.82 | J77: 999.99 | L77: =MIN(S77,V77,AG77,AJ77,AM77,AV77,AY77,BB77,BH77,BN77,BW77,BZ77,CC77,CJ77,CM77,CP77,CZ77,DC77,DL77,DO77,DU77,EA77,ED77,EG77) -> 113.35 | O77: ='Points Calculation'!BQ77 ->  | P77: ='Points Calculation'!BZ77 ->  | T77: 1 | U77: 1 | V77: 113.77 | AK77: 27 | AL77: 4 | AM77: 126.86 | BU77: - | BV77: - | BW77: dnf | CK77: 12 | CL77: 2 | CM77: 113.35 | DA77: 37 | DB77: 6 | DC77: 310.35
A78: Karl Hancock | B78: M | C78: 1995 | D78: =INDEX('Age Calculation'!$A$1:'Age Calculation'!$Q$108,MATCH(C78,'Age Calculation'!$A$1:'Age Calculation'!$A$108),MATCH($A$1,'Age Calculation'!$A$1:'Age Calculation'!$Q$1)) -> U21 | E78: 18616 | L78: 0 | M78: =MIN(Y78,Z78,AC78,AD78,AP78,AS78,BQ78,BT55,CF55,CG55,CV77,CW77,DF77,DI77) -> 0 | O78: ='Points Calculation'!BQ70 ->  | P78: ='Points Calculation'!BZ70 -> 
A79: John Elgy | B79: M | C79: 1951 | D79: =INDEX('Age Calculation'!$A$1:'Age Calculation'!$Q$108,MATCH(C79,'Age Calculation'!$A$1:'Age Calculation'!$A$108),MATCH($A$1,'Age Calculation'!$A$1:'Age Calculation'!$Q$1)) -> MAS | E79: 19164 | L79: 0 | M79: 0 | O79: ='Points Calculation'!BQ71 ->  | P79: ='Points Calculation'!BZ71 -> 
A80: Matthew Kirkland | B80: M | C80: 1992 | D80: =INDEX('Age Calculation'!$A$1:'Age Calculation'!$Q$108,MATCH(C80,'Age Calculation'!$A$1:'Age Calculation'!$A$108),MATCH($A$1,'Age Calculation'!$A$1:'Age Calculation'!$Q$1)) -> SEN | E80: 21633 | L80: 0 | M80: 0 | O80: ='Points Calculation'!BQ72 ->  | P80: ='Points Calculation'!BZ72 -> 
A81: Phil Deller | B81: M | C81: 1959 | D81: =INDEX('Age Calculation'!$A$1:'Age Calculation'!$Q$108,MATCH(C81,'Age Calculation'!$A$1:'Age Calculation'!$A$108),MATCH($A$1,'Age Calculation'!$A$1:'Age Calculation'!$Q$1)) -> MAS | E81: 17039 | L81: 0 | M81: 0 | O81: ='Points Calculation'!BQ73 ->  | P81: ='Points Calculation'!BZ73 -> 
A82: David Hancock | B82: M | C82: 1964 | D82: =INDEX('Age Calculation'!$A$1:'Age Calculation'!$Q$108,MATCH(C82,'Age Calculation'!$A$1:'Age Calculation'!$A$108),MATCH($A$1,'Age Calculation'!$A$1:'Age Calculation'!$Q$1)) -> MAS | E82: 17037 | L82: 0 | M82: 0 | O82: ='Points Calculation'!BQ74 ->  | P82: ='Points Calculation'!BZ74 -> 
A83: Joe Bird | B83: M | C83: 1994 | D83: =INDEX('Age Calculation'!$A$1:'Age Calculation'!$Q$108,MATCH(C83,'Age Calculation'!$A$1:'Age Calculation'!$A$108),MATCH($A$1,'Age Calculation'!$A$1:'Age Calculation'!$Q$1)) -> SEN | E83: 21714 | L83: 0 | M83: 0 | O83: ='Points Calculation'!BQ75 ->  | P83: ='Points Calculation'!BZ75 -> 
A84: Jake Heard | B84: M | C84: 1998 | D84: =INDEX('Age Calculation'!$A$1:'Age Calculation'!$Q$108,MATCH(C84,'Age Calculation'!$A$1:'Age Calculation'!$A$108),MATCH($A$1,'Age Calculation'!$A$1:'Age Calculation'!$Q$1)) -> U18 | E84: 21075 | L84: 0 | M84: 0 | O84: ='Points Calculation'!BQ76 ->  | P84: ='Points Calculation'!BZ76 -> 
A85: James Care | B85: M | C85: 2002 | D85: =INDEX('Age Calculation'!$A$1:'Age Calculation'!$Q$108,MATCH(C85,'Age Calculation'!$A$1:'Age Calculation'!$A$108),MATCH($A$1,'Age Calculation'!$A$1:'Age Calculation'!$Q$1)) -> U14 | E85: 20590 | L85: 0 | M85: 0 | O85: ='Points Calculation'!BQ77 ->  | P85: ='Points Calculation'!BZ77 -> 
A86: Edward Guy | B86: M | C86: 2001 | D86: =INDEX('Age Calculation'!$A$1:'Age Calculation'!$Q$108,MATCH(C86,'Age Calculation'!$A$1:'Age Calculation'!$A$108),MATCH($A$1,'Age Calculation'!$A$1:'Age Calculation'!$Q$1)) -> U16 | E86: 19379 | G86: 138.32 | H86: 286.87 | I86: 164.24 | J86: 243.4 | M86: =MIN(Y86,Z86,AC86,AD86,AP86,AS86,BQ86,BT86,CF86,CG86,CV86,CW86,DF86,DI86) -> 196.58 | O86: ='Points Calculation'!BQ68 ->  | P86: ='Points Calculation'!BZ68 ->  | W86: 38 | X86: 13 | Y86: 223.99 | Z86: 196.58
A87: Thomas Jinks | B87: M | C87: 2001 | D87: U16 | E87: 22484 | G87: 999.99 | H87: 999.99 | I87: 288.59 | J87: 142.36 | M87: =MIN(Y87,Z87,AC87,AD87,AP87,AS87,BQ87,BT87,CF87,CG87,CV87,CW87,DF87,DI87) -> 131.9 | W87: 47 | X87: 16 | Y87: 278.73 | Z87: 346.21 | AA87: 37 | AB87: 13 | AC87: 235.19 | AD87: 327.78 | BO87: 41 | BP87: 14 | BQ87: =170.67+7.77 -> 178.44 | BR87: 51 | BS87: 18 | BT87: =166.56+12.19 -> 178.75 | CD87: 16 | CE87: 5 | CF87: =112.2+19.7 -> 131.9 | CG87: =165.54+14.57 -> 180.11 | DD87: 59 | DE87: 16 | DF87: 185.64 | DG87: 57 | DH87: 16 | DI87: 198.36 | DJ87: 45 | DK87: 20 | DL87: 241.94 | EH87: 23 | EI87: 7 | EJ87: 163.33
A88: Daniel Giles | B88: M | C88: 2003 | D88: =INDEX('Age Calculation'!$A$1:'Age Calculation'!$Q$108,MATCH(C88,'Age Calculation'!$A$1:'Age Calculation'!$A$108),MATCH($A$1,'Age Calculation'!$A$1:'Age Calculation'!$Q$1)) -> U14 | E88: 22203 | G88: 999.99 | H88: 999.99 | I88: 241.01 | J88: 999.99 | L88: =MIN(S88,V88,AG88,AJ88,AM88,AV88,AY88,BB88,BH88,BN88,BW88,BZ88,CC88,CJ88,CM88,CP88,CZ88,DC88,DL88,DO88,DU88,EA88,ED88,EG88) -> 204.36 | O88: 999.99 | P88: 999.99 | AE88: 52 | AF88: 13 | AG88: 370.09 | AT88: 65 | AU88: 12 | AV88: 328.58 | AW88: 47 | AX88: 8 | AY88: 204.36 | CH88: 52 | CI88: 8 | CJ88: 277.66
A89: James Shakeshaft | B89: M | C89: 2004 | D89: U14 | E89: Day | L89: =MIN(S89,V89,AG89,AJ89,AM89,AV89,AY89,BB89,BH89,BN89,BW89,BZ89,CC89,CJ89,CM89,CP89,CZ89,DC89,DL89,DO89,DU89,EA89,ED89,EG89) -> 312.54 | CA89: 59 | CB89: 11 | CC89: 312.54
A90: Matthew Treuge | B90: M | C90: 2002 | D90: =INDEX('Age Calculation'!$A$1:'Age Calculation'!$Q$108,MATCH(C90,'Age Calculation'!$A$1:'Age Calculation'!$A$108),MATCH($A$1,'Age Calculation'!$A$1:'Age Calculation'!$Q$1)) -> U14 | E90: 20670 | L90: ='Points Calculation'!$BO79 ->  | M90: ='Points Calculation'!$BX79 ->  | O90: ='Points Calculation'!BQ79 ->  | P90: ='Points Calculation'!BZ79 -> 
A91: JJ Frost | B91: M | C91: 1993 | D91: =INDEX('Age Calculation'!$A$1:'Age Calculation'!$Q$108,MATCH(C91,'Age Calculation'!$A$1:'Age Calculation'!$A$108),MATCH($A$1,'Age Calculation'!$A$1:'Age Calculation'!$Q$1)) -> SEN | E91: 20676 | L91: NR | M91: NR | O91: NR | P91: NR
A92: Ben Hall | B92: M | C92: 1994 | D92: =INDEX('Age Calculation'!$A$1:'Age Calculation'!$Q$108,MATCH(C92,'Age Calculation'!$A$1:'Age Calculation'!$A$108),MATCH($A$1,'Age Calculation'!$A$1:'Age Calculation'!$Q$1)) -> SEN | E92: 21130 | L92: NR | M92: NR | O92: NR | P92: NR
A93: Matthew Waller | B93: M | C93: 1999 | D93: =INDEX('Age Calculation'!$A$1:'Age Calculation'!$Q$108,MATCH(C93,'Age Calculation'!$A$1:'Age Calculation'!$A$108),MATCH($A$1,'Age Calculation'!$A$1:'Age Calculation'!$Q$1)) -> U18 | E93: 17958 | L93: NR | M93: NR | O93: NR | P93: NR
A94: Patrick Kelly | B94: M | C94: 2000 | D94: U16 | E94: Day | L94: NR | M94: NR | O94: NR | P94: NR
A95: Macaulay Clover | B95: M | C95: 2002 | D95: =INDEX('Age Calculation'!$A$1:'Age Calculation'!$Q$108,MATCH(C95,'Age Calculation'!$A$1:'Age Calculation'!$A$108),MATCH($A$1,'Age Calculation'!$A$1:'Age Calculation'!$Q$1)) -> U14 | E95: Day | G95: NR | H95: NR | L95: NR | M95: NR | O95: NR | P95: NR
Q96: =COUNTIF(Q8:Q95,"<=3") -> 2 | R96: =COUNTIF(R8:R95,"<=3") -> 3 | S96: =COUNTA(S8:S95) -> 5 | T96: =COUNTIF(T8:T95,"<=3") -> 1 | U96: =COUNTIF(U8:U95,"<=3") -> 2 | V96: =COUNTA(V8:V95) -> 2 | W96: =COUNTIF(W8:W95,"<=3") -> 2 | X96: =COUNTIF(X8:X95,"<=3") -> 7 | Y96: =COUNTA(Y8:Y95) -> 12 | Z96: =COUNTA(Z8:Z95) -> 12 | AA96: =COUNTIF(AA8:AA95,"<=3") -> 2 | AB96: =COUNTIF(AB8:AB95,"<=3") -> 6 | AC96: =COUNTA(AC8:AC95) -> 11 | AD96: =COUNTA(AD8:AD95) -> 11 | AE96: =COUNTIF(AE8:AE95,"<=3") -> 1 | AF96: =COUNTIF(AF8:AF95,"<=3") -> 5 | AG96: =COUNTA(AG8:AG95) -> 11 | AH96: =COUNTIF(AH8:AH95,"<=3") -> 2 | AI96: =COUNTIF(AI8:AI95,"<=3") -> 6 | AJ96: =COUNTA(AJ8:AJ95) -> 12 | AK96: =COUNTIF(AK8:AK95,"<=3") -> 2 | AL96: =COUNTIF(AL8:AL95,"<=3") -> 8 | AM96: =COUNTA(AM8:AM95) -> 13 | AN96: =COUNTIF(AN8:AN95,"<=3") -> 3 | AO96: =COUNTIF(AO8:AO95,"<=3") -> 6 | AP96: =COUNTA(AP8:AP95) -> 10 | AQ96: =COUNTIF(AQ8:AQ95,"<=3") -> 3 | AR96: =COUNTIF(AR8:AR95,"<=3") -> 7 | AS96: =COUNTA(AS8:AS95) -> 10 | AT96: =COUNTIF(AT8:AT95,"<=3") -> 3 | AU96: =COUNTIF(AU8:AU95,"<=3") -> 7 | AV96: =COUNTA(AV8:AV95) -> 15 | AW96: =COUNTIF(AW8:AW95,"<=3") -> 3 | AX96: =COUNTIF(AX8:AX95,"<=3") -> 6 | AY96: =COUNTA(AY8:AY95) -> 13 | AZ96: =COUNTIF(AZ8:AZ95,"<=3") -> 0 | BA96: =COUNTIF(BA8:BA95,"<=3") -> 0 | BB96: =COUNTA(BB8:BB95) -> 0 | BC96: =COUNTIF(BC24:BC95,"<=3") -> 0 | BD96: =COUNTIF(BD8:BD95,"<=3") -> 0 | BE96: =COUNTA(BE8:BE95) -> 0 | BF96: =COUNTIF(BF8:BF95,"<=3") -> 2 | BG96: =COUNTIF(BG8:BG95,"<=3") -> 4 | BH96: =COUNTA(BH8:BH95) -> 5 | BI96: =COUNTIF(BI24:BI95,"<=3") -> 0 | BJ96: =COUNTIF(BJ8:BJ95,"<=3") -> 0 | BK96: =COUNTA(BK8:BK95) -> 0 | BL96: =COUNTIF(BL8:BL95,"<=3") -> 0 | BM96: =COUNTIF(BM8:BM95,"<=3") -> 0 | BN96: =COUNTA(BN8:BN95) -> 0 | BO96: =COUNTIF(BO8:BO95,"<=3") -> 2 | BP96: =COUNTIF(BP8:BP95,"<=3") -> 4 | BQ96: =COUNTA(BQ8:BQ95) -> 10 | BR96: =COUNTIF(BR8:BR95,"<=3") -> 2 | BS96: =COUNTIF(BS8:BS95,"<=3") -> 6 | BT96: =COUNTA(BT8:BT95) -> 11 | BU96: =COUNTIF(BU8:BU95,"<=3") -> 2 | BV96: =COUNTIF(BV8:BV95,"<=3") -> 9 | BW96: =COUNTA(BW8:BW95) -> 12 | BX96: =COUNTIF(BX8:BX95,"<=3") -> 0 | BY96: =COUNTIF(BY8:BY95,"<=3") -> 0 | BZ96: =COUNTA(BZ8:BZ95) -> 0 | CA96: =COUNTIF(CA8:CA95,"<=3") -> 3 | CB96: =COUNTIF(CB8:CB95,"<=3") -> 8 | CC96: =COUNTA(CC8:CC95) -> 19 | CD96: =COUNTIF(CD8:CD95,"<=3") -> 0 | CE96: =COUNTIF(CE8:CE95,"<=3") -> 1 | CF96: =COUNTA(CF8:CF95) -> 2 | CG96: =COUNTA(CG8:CG95) -> 2 | CH96: =COUNTIF(CH8:CH95,"<=3") -> 2 | CI96: =COUNTIF(CI8:CI95,"<=3") -> 11 | CJ96: =COUNT(CJ8:CJ95) -> 14 | CK96: =COUNTIF(CK8:CK95,"<=3") -> 1 | CL96: =COUNTIF(CL8:CL95,"<=3") -> 4 | CM96: =COUNT(CM8:CM95) -> 7 | CN96: =COUNTIF(CN8:CN95,"<=3") -> 2 | CO96: =COUNTIF(CO8:CO95,"<=3") -> 9 | CP96: =COUNT(CP8:CP95) -> 11 | CQ96: =COUNTIF(CQ8:CQ95,"<=3") -> 1 | CR96: =COUNTIF(CR8:CR95,"<=3") -> 8 | CS96: =COUNT(CS8:CS95) -> 0 | CT96: =COUNTIF(CT8:CT95,"<=3") -> 0 | CU96: =COUNTIF(CU8:CU95,"<=3") -> 2 | CV96: =COUNT(CV8:CV95) -> 2 | CW96: =COUNTA(CW8:CW95) -> 2 | CX96: =COUNTIF(CX8:CX95,"<=3") -> 3 | CY96: =COUNTIF(CY8:CY95,"<=3") -> 7 | CZ96: =COUNT(CZ8:CZ95) -> 10 | DA96: =COUNTIF(DA8:DA95,"<=3") -> 4 | DB96: =COUNTIF(DB8:DB95,"<=3") -> 7 | DC96: =COUNT(DC8:DC95) -> 9 | DD96: =COUNTIF(DD8:DD95,"<=3") -> 2 | DE96: =COUNTIF(DE8:DE95,"<=3") -> 3 | DF96: =COUNT(DF8:DF95) -> 11 | DG96: =COUNTIF(DG8:DG95,"<=3") -> 1 | DH96: =COUNTIF(DH8:DH95,"<=3") -> 2 | DI96: =COUNT(DI8:DI95) -> 9 | DJ96: =COUNTIF(DJ8:DJ95,"<=3") -> 2 | DK96: =COUNTIF(DK8:DK95,"<=3") -> 8 | DL96: =COUNT(DL8:DL95) -> 11 | DM96: =COUNTIF(DM8:DM95,"<=3") -> 2 | DN96: =COUNTIF(DN8:DN95,"<=3") -> 7 | DO96: =COUNT(DO8:DO95) -> 10 | DP96: =COUNTIF(DP8:DP95,"<=3") -> 0 | DQ96: =COUNTIF(DQ8:DQ95,"<=3") -> 0 | DR96: =COUNT(DR8:DR95) -> 1 | DS96: =COUNTIF(DS8:DS95,"<=3") -> 0 | DT96: =COUNTIF(DT8:DT95,"<=3") -> 1 | DU96: =COUNT(DU8:DU95) -> 1 | DV96: =COUNTIF(DV8:DV95,"<=3") -> 1 | DW96: =COUNTIF(DW8:DW95,"<=3") -> 1 | DX96: =COUNT(DX8:DX95) -> 1 | DY96: =COUNTIF(DY8:DY95,"<=3") -> 1 | DZ96: =COUNTIF(DZ8:DZ95,"<=3") -> 1 | EA96: =COUNT(EA8:EA95) -> 0 | EB96: =COUNTIF(EB8:EB95,"<=3") -> 1 | EC96: =COUNTIF(EC8:EC95,"<=3") -> 3 | ED96: =COUNT(ED8:ED95) -> 3 | EE96: =COUNTIF(EE8:EE95,"<=3") -> 1 | EF96: =COUNTIF(EF8:EF95,"<=3") -> 2 | EG96: =COUNT(EG8:EG95) -> 3 | EH96: =COUNTIF(EH8:EH95,"<=3") -> 1 | EI96: =COUNTIF(EI8:EI95,"<=3") -> 5 | EJ96: =COUNT(EJ8:EJ95) -> 9
A98: Figures in red (outdoor) or blue (indoor) - used for current year seed point calculations
A99: Note: Final seed point list cannot use start of year in the calculation unless used alone
D104: Number of Registered Racers | E104: =COUNTIFS(#REF!,">0") -> 
D105: Number of Unregistered Racers | E105: =COUNTIF(#REF!,"=NR") -> 
G106: =COUNTIFS(G24:G95,">0") -> 20
E108: Number of Point Reductions

Sheet Points Calculation (hidden)
A1: Race | B1: ='Races, Positions & Points'!Q2 -> Excel | C1: ='Races, Positions & Points'!T2 -> Excel | D1: ='Races, Positions & Points'!#REF! ->  | E1: ='Races, Positions & Points'!W2 -> Telford CN | F1: ='Races, Positions & Points'!W2 -> Telford CN | G1: ='Races, Positions & Points'!AA2 -> Manchester CN | H1: ='Races, Positions & Points'!AA2 -> Manchester CN | I1: ='Races, Positions & Points'!AE2 -> SSW CH + Team | J1: ='Races, Positions & Points'!AH2 -> Gloucester CN | K1: ='Races, Positions & Points'!AK2 -> GBR #O1 | L1: ='Races, Positions & Points'!AN2 -> GBR #I1 | M1: ='Races, Positions & Points'!AQ2 -> GBR #I2 | N1: ='Races, Positions & Points'!AT2 -> Norfolk CN | O1: ='Races, Positions & Points'!AW2 -> Ipswich CN | P1: ='Races, Positions & Points'!AZ2 -> Firpark CN | Q1: ='Races, Positions & Points'!BC2 -> 0 | R1: ='Races, Positions & Points'!BF2 -> SASA CN | S1: ='Races, Positions & Points'!BI2 -> 0 | T1: ='Races, Positions & Points'!BL2 -> LSRA CN | U1: ='Races, Positions & Points'!BO2 -> GBR #I3 | V1: ='Races, Positions & Points'!BR2 -> Scot Ind Champs | W1: ='Races, Positions & Points'!BU2 -> GBR #O2 | X1: ='Races, Positions & Points'!BU2 -> GBR #O2 | Y1: ='Races, Positions & Points'!BX2 -> GBR #O3 | Z1: ='Races, Positions & Points'!CD2 -> Lions CN | AA1: ='Races, Positions & Points'!CA2 -> Midland CN | AB1: ='Races, Positions & Points'!CH2 -> Pendle CN | AC1: ='Races, Positions & Points'!CK2 -> Avon & WC CN | AD1: ='Races, Positions & Points'!CT2 -> Hemel CN | AE1: ='Races, Positions & Points'!CN2 -> GBR #O4 | AF1: ='Races, Positions & Points'!CX2 -> GBR #O6 | AG1: ='Races, Positions & Points'!#REF! ->  | AH1: ='Races, Positions & Points'!DA2 -> All England Champ | AI1: ='Races, Positions & Points'!DD2 -> Anglo Welsh Indoor Champs | AJ1: ='Races, Positions & Points'!DG2 -> British Indoor Champs | AK1: ='Races, Positions & Points'!DJ2 -> Welsh Champs | AL1: ='Races, Positions & Points'!DM2 -> British Champs | AM1: ='Races, Positions & Points'!DP2 -> Lowlands Indoor Champs | AN1: ='Races, Positions & Points'!#REF! ->  | AO1: ='Races, Positions & Points'!DS2 -> Scottish Dryslope Champs | AP1: ='Races, Positions & Points'!DV2 -> Lowlands Indoor Champs | AQ1: ='Races, Positions & Points'!DY2 -> Scottish Dryslope Champs GS | AR1: ='Races, Positions & Points'!EB2 -> Irish Champs | AS1: ='Races, Positions & Points'!EE2 -> European Champs | AT1: ='Races, Positions & Points'!#REF! ->  | AU1: ='Races, Positions & Points'!#REF! ->  | AV1: ='Races, Positions & Points'!#REF! ->  | AW1: ='Races, Positions & Points'!#REF! ->  | AX1: ='Races, Positions & Points'!#REF! ->  | AY1: ='Races, Positions & Points'!#REF! ->  | BA1: CN/10pt In | BB1: CN/10 pt Out | BC1: GBR In | BD1: GBR Out | BE1: Ch In | BF1: Ch Out | BH1: Registration Number | BI1: Start of Year Points | BJ1: Best Race Points | BK1: Second Best Race Points | BL1: Points Calc Based on Best Two Races | BM1: Points Based on Best Result and start of year | BN1: Points Calc Based on Best Race Plus 20% Loading | BO1: Points | BP1: End of Season Maximum | BQ1: Projected End of Season Points | BS1: Best Race Points | BT1: Second Best Race Points | BU1: Points Calc Based on Best Two Races | BV1: Points Based on Best Result and start of year | BW1: Points Calc Based on Best Race Plus 20% Loading | BX1: Points | BY1: End of Season Maximum | BZ1: Projected End of Season Points | CB1: min Castleford | CC1: min CF | CD1: min Braehead | CE1: min Hemel | CF1: min Pontypool | CG1: min glos | CH1: min Pendle | CI1: min FirPark | CJ1: min Hillend | CK1: min Sunderland | CL1: min Bromley | CM1: min Norfolk | CN1: min Ipswich | CO1: min welwyn | CP1: min Southampton | CQ1: min Dublin | CS1: Best Race Points (0/5pt races) | CT1: Second Best Race Points (0/5pt races) | CU1: Points Calc Based on Best Two Races (0/5pt races) | CV1: Points Calc Based on Best Race Plus 20% Loading (0/5pt races) | CX1: Best Race Points (0/5pt races) | CY1: Second Best Race Points (0/5pt races) | CZ1: Points Calc Based on Best Two Races (0/5pt races) | DA1: Points Calc Based on Best Race Plus 20% Loading (0/5pt races) | DC1: min Castleford (0/5pt races) | DD1: min CF (0/5pt races) | DE1: min Braehead (0/5pt races) | DF1: min Pontypool (0/5pt races) | DG1: min glos (0/5pt races) | DH1: min Pendle (0/5pt races) | DI1: min Hillend (0/5pt races) | DJ1: min Sunderland (0/5pt races) | DK1: min Norfolk (0/5pt races) | DL1: min Dublin (0/5pt races)
A2: Venue | B2: ='Races, Positions & Points'!Q3 -> Pontypool | C2: ='Races, Positions & Points'!T3 -> Pembrey | D2: ='Races, Positions & Points'!#REF! ->  | E2: ='Races, Positions & Points'!W3 -> Manchester | F2: ='Races, Positions & Points'!W3 -> Manchester | G2: ='Races, Positions & Points'!AA3 -> Manchester | H2: ='Races, Positions & Points'!AA3 -> Manchester | I2: ='Races, Positions & Points'!AE3 -> Gloucester | J2: ='Races, Positions & Points'!AH3 -> Gloucester | K2: ='Races, Positions & Points'!AK3 -> Gloucester | L2: ='Races, Positions & Points'!AN3 -> Manchester | M2: ='Races, Positions & Points'!AQ3 -> Manchester | N2: ='Races, Positions & Points'!AT3 -> Norwich | O2: ='Races, Positions & Points'!AW3 -> Ipswich | P2: ='Races, Positions & Points'!AZ3 -> Firpark | Q2: ='Races, Positions & Points'!BC3 -> 0 | R2: ='Races, Positions & Points'!BF3 -> Southampton | S2: ='Races, Positions & Points'!BI3 -> 0 | T2: ='Races, Positions & Points'!BL3 -> Edinburgh | U2: ='Races, Positions & Points'!BO3 -> Glasgow | V2: ='Races, Positions & Points'!BR3 -> Glasgow | W2: ='Races, Positions & Points'!BU3 -> Gloucester | X2: ='Races, Positions & Points'!BU3 -> Gloucester | Y2: ='Races, Positions & Points'!BX3 -> Gloucester | Z2: ='Races, Positions & Points'!CD3 -> Castleford | AA2: ='Races, Positions & Points'!CA3 -> Gloucester | AB2: ='Races, Positions & Points'!CH3 -> Pendle | AC2: ='Races, Positions & Points'!CK3 -> Mendip | AD2: ='Races, Positions & Points'!CT3 -> Hemel | AE2: ='Races, Positions & Points'!CN3 -> Pontypool | AF2: ='Races, Positions & Points'!CX3 -> Pontypool | AG2: ='Races, Positions & Points'!#REF! ->  | AH2: ='Races, Positions & Points'!DA3 -> Sunderland | AI2: ='Races, Positions & Points'!DD3 -> Manchester | AJ2: ='Races, Positions & Points'!DG3 -> Manchester | AK2: ='Races, Positions & Points'!DJ3 -> Pontypool | AL2: ='Races, Positions & Points'!DM3 -> Pontypool | AM2: ='Races, Positions & Points'!DP3 -> Landgraff, NL | AN2: ='Races, Positions & Points'!#REF! ->  | AO2: ='Races, Positions & Points'!DS3 -> Edinburgh | AP2: ='Races, Positions & Points'!DV3 -> Landgraff, NL | AQ2: ='Races, Positions & Points'!DY3 -> Edinburgh | AR2: ='Races, Positions & Points'!EB3 -> Dublin | AS2: ='Races, Positions & Points'!EE3 -> Dublin | AT2: ='Races, Positions & Points'!#REF! ->  | AU2: ='Races, Positions & Points'!#REF! ->  | AV2: ='Races, Positions & Points'!#REF! ->  | AW2: ='Races, Positions & Points'!#REF! ->  | AX2: ='Races, Positions & Points'!#REF! ->  | AY2: ='Races, Positions & Points'!#REF! ->  | BJ2: Outdoor | BS2: Indoor | CS2: Outdoor | CX2: Indoor
A3: Min Penalty | B3: ='Races, Positions & Points'!Q4 -> 40 | C3: ='Races, Positions & Points'!T4 -> 40 | D3: ='Races, Positions & Points'!#REF! ->  | E3: ='Races, Positions & Points'!W4 -> 10 | F3: ='Races, Positions & Points'!W4 -> 10 | G3: ='Races, Positions & Points'!AA4 -> 10 | H3: ='Races, Positions & Points'!AA4 -> 10 | I3: ='Races, Positions & Points'!AE4 -> 10 | J3: ='Races, Positions & Points'!AH4 -> 10 | K3: ='Races, Positions & Points'!AK4 -> 5 | L3: ='Races, Positions & Points'!AN4 -> 5 | M3: ='Races, Positions & Points'!AQ4 -> 5 | N3: ='Races, Positions & Points'!AT4 -> 10 | O3: ='Races, Positions & Points'!AW4 -> 10 | P3: ='Races, Positions & Points'!AZ4 -> 10 | Q3: ='Races, Positions & Points'!BC4 -> 10 | R3: ='Races, Positions & Points'!BF4 -> 10 | S3: ='Races, Positions & Points'!BI4 -> 10 | T3: ='Races, Positions & Points'!BL4 -> 10 | U3: ='Races, Positions & Points'!BO4 -> 5 | V3: ='Races, Positions & Points'!BR4 -> 0 | W3: ='Races, Positions & Points'!BU4 -> 5 | X3: ='Races, Positions & Points'!BU4 -> 5 | Y3: ='Races, Positions & Points'!BX4 -> 5 | Z3: ='Races, Positions & Points'!CD4 -> 10 | AA3: ='Races, Positions & Points'!CA4 -> 10 | AB3: ='Races, Positions & Points'!CH4 -> 10 | AC3: ='Races, Positions & Points'!CK4 -> 10 | AD3: ='Races, Positions & Points'!CT4 -> 10 | AE3: ='Races, Positions & Points'!CN4 -> 5 | AF3: ='Races, Positions & Points'!CX4 -> 5 | AG3: ='Races, Positions & Points'!#REF! ->  | AH3: ='Races, Positions & Points'!DA4 -> 0 | AI3: ='Races, Positions & Points'!DD4 -> 0 | AJ3: ='Races, Positions & Points'!DG4 -> 0 | AK3: ='Races, Positions & Points'!DJ4 -> 0 | AL3: ='Races, Positions & Points'!DM4 -> 0 | AM3: ='Races, Positions & Points'!DP4 -> 0 | AN3: ='Races, Positions & Points'!#REF! ->  | AO3: ='Races, Positions & Points'!DS4 -> 0 | AP3: ='Races, Positions & Points'!DV4 -> 0 | AQ3: ='Races, Positions & Points'!DY4 -> 0 | AR3: ='Races, Positions & Points'!EB4 -> 0 | AS3: ='Races, Positions & Points'!EE4 -> 0 | AT3: ='Races, Positions & Points'!#REF! ->  | AU3: ='Races, Positions & Points'!#REF! ->  | AV3: ='Races, Positions & Points'!#REF! ->  | AW3: ='Races, Positions & Points'!#REF! ->  | AX3: ='Races, Positions & Points'!#REF! ->  | AY3: ='Races, Positions & Points'!#REF! -> 
A4: Type | B4: ='Races, Positions & Points'!S4 -> Out | C4: ='Races, Positions & Points'!V4 -> Out | D4: ='Races, Positions & Points'!#REF! ->  | E4: ='Races, Positions & Points'!Y4 -> 0 | F4: ='Races, Positions & Points'!Y4 -> 0 | G4: ='Races, Positions & Points'!AC4 -> 0 | H4: ='Races, Positions & Points'!AC4 -> 0 | I4: ='Races, Positions & Points'!AG4 -> Out | J4: ='Races, Positions & Points'!AJ4 -> Out | K4: ='Races, Positions & Points'!AM4 -> Out | L4: ='Races, Positions & Points'!AP4 -> In | M4: ='Races, Positions & Points'!AS4 -> In | N4: ='Races, Positions & Points'!AV4 -> Out | O4: ='Races, Positions & Points'!AY4 -> Out | P4: ='Races, Positions & Points'!BB4 -> Out | Q4: ='Races, Positions & Points'!BE4 -> Out | R4: ='Races, Positions & Points'!BH4 -> Out | S4: ='Races, Positions & Points'!BK4 -> Out | T4: ='Races, Positions & Points'!BQ4 -> In | U4: ='Races, Positions & Points'!#REF! ->  | V4: ='Races, Positions & Points'!BT4 -> In | W4: ='Races, Positions & Points'!#REF! ->  | X4: ='Races, Positions & Points'!#REF! ->  | Y4: ='Races, Positions & Points'!BZ4 -> Out | Z4: ='Races, Positions & Points'!CG4 -> In | AA4: ='Races, Positions & Points'!CC4 -> Out | AB4: ='Races, Positions & Points'!CJ4 -> Out | AC4: ='Races, Positions & Points'!CM4 -> Out | AD4: ='Races, Positions & Points'!CW4 -> In | AE4: ='Races, Positions & Points'!CP4 -> Out | AF4: ='Races, Positions & Points'!CZ4 -> Out | AG4: ='Races, Positions & Points'!#REF! ->  | AH4: ='Races, Positions & Points'!DC4 -> Out | AI4: ='Races, Positions & Points'!DF4 -> In | AJ4: ='Races, Positions & Points'!DI4 -> In | AK4: ='Races, Positions & Points'!DL4 -> Out | AL4: ='Races, Positions & Points'!DO4 -> Out | AM4: ='Races, Positions & Points'!DR4 -> In | AN4: ='Races, Positions & Points'!DS4 -> 0 | AO4: ='Races, Positions & Points'!DU4 -> Out | AP4: ='Races, Positions & Points'!DX4 -> In | AQ4: ='Races, Positions & Points'!EA4 -> Out | AR4: ='Races, Positions & Points'!ED4 -> Out | AS4: ='Races, Positions & Points'!EG4 -> Out | AT4: ='Races, Positions & Points'!#REF! ->  | AU4: ='Races, Positions & Points'!#REF! ->  | AV4: ='Races, Positions & Points'!#REF! ->  | AW4: ='Races, Positions & Points'!#REF! ->  | AX4: ='Races, Positions & Points'!#REF! ->  | AY4: ='Races, Positions & Points'!#REF! -> 
A5: Separate Event? | B5: Y | C5: Y | D5: Y | E5: Y | F5: N | G5: Y | H5: N | I5: Y | J5: Y | K5: Y | L5: Y | M5: Y | N5: Y | O5: Y | P5: Y | Q5: Y | R5: Y | S5: Y | T5: Y | U5: Y | V5: Y | W5: Y | X5: N | Y5: Y | Z5: Y | AA5: Y | AB5: Y | AC5: Y | AD5: Y | AE5: Y | AF5: Y | AG5: Y | AH5: Y | AI5: Y | AJ5: Y | AK5: Y | AL5: Y | AM5: Y | AN5: Y | AO5: Y | AP5: Y | AQ5: Y | AR5: Y | AS5: Y | AT5: Y | AU5: Y | AV5: Y | AW5: Y | AX5: Y | AY5: Y
A8: ='Races, Positions & Points'!A42 -> Ella Giles | B8: =IF('Races, Positions & Points'!S42="","",'Races, Positions & Points'!S42) ->  | C8: =IF('Races, Positions & Points'!V42="","",'Races, Positions & Points'!V42) ->  | D8: =IF('Races, Positions & Points'!#REF!="","",'Races, Positions & Points'!#REF!) ->  | E8: =IF('Races, Positions & Points'!Y42="","",'Races, Positions & Points'!Y42) ->  | F8: =IF('Races, Positions & Points'!Z42="","",'Races, Positions & Points'!Z42) ->  | G8: =IF('Races, Positions & Points'!AC42="","",'Races, Positions & Points'!AC42) -> dnf | H8: =IF('Races, Positions & Points'!AD42="","",'Races, Positions & Points'!AD42) -> 435.68 | I8: =IF('Races, Positions & Points'!AG42="","",'Races, Positions & Points'!AG42) -> 276.6 | J8: =IF('Races, Positions & Points'!AJ42="","",'Races, Positions & Points'!AJ42) ->  | K8: =IF('Races, Positions & Points'!AM42="","",'Races, Positions & Points'!AM42) ->  | L8: =IF('Races, Positions & Points'!AP42="","",'Races, Positions & Points'!AP42) ->  | M8: =IF('Races, Positions & Points'!AS42="","",'Races, Positions & Points'!AS42) ->  | N8: =IF('Races, Positions & Points'!AV42="","",'Races, Positions & Points'!AV42) -> 184.42 | O8: =IF('Races, Positions & Points'!AY42="","",'Races, Positions & Points'!AY42) -> 176.53 | P8: =IF('Races, Positions & Points'!BB42="","",'Races, Positions & Points'!BB42) ->  | Q8: =IF('Races, Positions & Points'!BE42="","",'Races, Positions & Points'!BE42) ->  | R8: =IF('Races, Positions & Points'!BH42="","",'Races, Positions & Points'!BH42) ->  | S8: =IF('Races, Positions & Points'!BK42="","",'Races, Positions & Points'!BK42) ->  | T8: =IF('Races, Positions & Points'!BN42="","",'Races, Positions & Points'!BN42) ->  | U8: =IF('Races, Positions & Points'!BQ42="","",'Races, Positions & Points'!BQ42) ->  | V8: =IF('Races, Positions & Points'!BT42="","",'Races, Positions & Points'!BT42) ->  | W8: =IF('Races, Positions & Points'!#REF!="","",'Races, Positions & Points'!#REF!) ->  | X8: =IF('Races, Positions & Points'!BW42="","",'Races, Positions & Points'!BW42) ->  | Y8: =IF('Races, Positions & Points'!BZ42="","",'Races, Positions & Points'!BZ42) ->  | Z8: =IF('Races, Positions & Points'!CG42="","",'Races, Positions & Points'!CG42) ->  | AA8: =IF('Races, Positions & Points'!CC42="","",'Races, Positions & Points'!CC42) -> 208.65 | AB8: =IF('Races, Positions & Points'!CJ42="","",'Races, Positions & Points'!CJ42) -> 155.5 | AC8: =IF('Races, Positions & Points'!CM42="","",'Races, Positions & Points'!CM42) ->  | AD8: =IF('Races, Positions & Points'!CW42="","",'Races, Positions & Points'!CW42) ->  | AE8: =IF('Races, Positions & Points'!CP42="","",'Races, Positions & Points'!CP42) ->  | AF8: =IF('Races, Positions & Points'!CZ42="","",'Races, Positions & Points'!CZ42) ->  | AG8: =IF('Races, Positions & Points'!#REF!="","",'Races, Positions & Points'!#REF!) ->  | AH8: =IF('Races, Positions & Points'!DC42="","",'Races, Positions & Points'!DC42) ->  | AI8: =IF('Races, Positions & Points'!DF42="","",'Races, Positions & Points'!DF42) ->  | AJ8: =IF('Races, Positions & Points'!DI42="","",'Races, Positions & Points'!DI42) ->  | AK8: =IF('Races, Positions & Points'!DL42="","",'Races, Positions & Points'!DL42) ->  | AL8: =IF('Races, Positions & Points'!DO42="","",'Races, Positions & Points'!DO42) ->  | AM8: =IF('Races, Positions & Points'!DR42="","",'Races, Positions & Points'!DR42) ->  | AN8: =IF('Races, Positions & Points'!DS42="","",'Races, Positions & Points'!DS42) ->  | AO8: =IF('Races, Positions & Points'!DU42="","",'Races, Positions & Points'!DU42) ->  | AP8: =IF('Races, Positions & Points'!DX42="","",'Races, Positions & Points'!DX42) ->  | AQ8: =IF('Races, Positions & Points'!EA42="","",'Races, Positions & Points'!EA42) ->  | AR8: =IF('Races, Positions & Points'!ED42="","",'Races, Positions & Points'!ED42) ->  | AS8: =IF('Races, Positions & Points'!EG42="","",'Races, Positions & Points'!EG42) ->  | AT8: =IF('Races, Positions & Points'!#REF!="","",'Races, Positions & Points'!#REF!) ->  | AU8: =IF('Races, Positions & Points'!#REF!="","",'Races, Positions & Points'!#REF!) ->  | AV8: =IF('Races, Positions & Points'!#REF!="","",'Races, Positions & Points'!#REF!) ->  | AW8: =IF('Races, Positions & Points'!#REF!="","",'Races, Positions & Points'!#REF!) ->  | AX8: =IF('Races, Positions & Points'!#REF!="","",'Races, Positions & Points'!#REF!) ->  | AY8: =IF('Races, Positions & Points'!#REF!="","",'Races, Positions & Points'!#REF!) ->  | BA8: =SUMPRODUCT(--(B$4:AY$4="In"),--(B$3:AY$3>5),--(B$5:AY$5="Y"),--(B8:AY8<>"")) ->  | BB8: =SUMPRODUCT(--(B$4:AY$4="Out"),--(B$3:AY$3>5),--(B$5:AY$5="Y"),--(B8:AY8<>"")) ->  | BC8: =SUMPRODUCT(--(B$4:AY$4="In"),--(B$3:AY$3=5),--(B$5:AY$5="Y"),--(B8:AY8<>"")) ->  | BD8: =SUMPRODUCT(--(B$4:AY$4="Out"),--(B$3:AY$3=5),--(B$5:AY$5="Y"),--(B8:AY8<>"")) ->  | BE8: =SUMPRODUCT(--(B$4:AY$4="In"),--(B$3:AY$3=0),--(B$5:AY$5="Y"),--(B8:AY8<>"")) ->  | BF8: =SUMPRODUCT(--(B$4:AY$4="Out"),--(B$3:AY$3=0),--(B$5:AY$5="Y"),--(B8:AY8<>"")) ->  | BH8: ='Races, Positions & Points'!E42 -> 22176
A9: ='Races, Positions & Points'!A8 -> Tilley O'Brien | B9: =IF('Races, Positions & Points'!S8="","",'Races, Positions & Points'!S8) ->  | C9: =IF('Races, Positions & Points'!V8="","",'Races, Positions & Points'!V8) ->  | D9: =IF('Races, Positions & Points'!#REF!="","",'Races, Positions & Points'!#REF!) ->  | E9: =IF('Races, Positions & Points'!Y8="","",'Races, Positions & Points'!Y8) -> 999.99 | F9: =IF('Races, Positions & Points'!Z8="","",'Races, Positions & Points'!Z8) -> 999.99 | G9: =IF('Races, Positions & Points'!AC8="","",'Races, Positions & Points'!AC8) -> 999.99 | H9: =IF('Races, Positions & Points'!AD8="","",'Races, Positions & Points'!AD8) -> 999.99 | I9: =IF('Races, Positions & Points'!AG8="","",'Races, Positions & Points'!AG8) ->  | J9: =IF('Races, Positions & Points'!AJ8="","",'Races, Positions & Points'!AJ8) ->  | K9: =IF('Races, Positions & Points'!AM8="","",'Races, Positions & Points'!AM8) ->  | L9: =IF('Races, Positions & Points'!AP8="","",'Races, Positions & Points'!AP8) -> 999.99 | M9: =IF('Races, Positions & Points'!AS8="","",'Races, Positions & Points'!AS8) -> 999.99 | N9: =IF('Races, Positions & Points'!AV8="","",'Races, Positions & Points'!AV8) ->  | O9: =IF('Races, Positions & Points'!AY8="","",'Races, Positions & Points'!AY8) ->  | P9: =IF('Races, Positions & Points'!BB8="","",'Races, Positions & Points'!BB8) ->  | Q9: =IF('Races, Positions & Points'!BE8="","",'Races, Positions & Points'!BE8) ->  | R9: =IF('Races, Positions & Points'!BH8="","",'Races, Positions & Points'!BH8) ->  | S9: =IF('Races, Positions & Points'!BK8="","",'Races, Positions & Points'!BK8) ->  | T9: =IF('Races, Positions & Points'!BN8="","",'Races, Positions & Points'!BN8) ->  | U9: =IF('Races, Positions & Points'!BQ8="","",'Races, Positions & Points'!BQ8) -> 999.99 | V9: =IF('Races, Positions & Points'!BT8="","",'Races, Positions & Points'!BT8) -> 999.99 | W9: =IF('Races, Positions & Points'!#REF!="","",'Races, Positions & Points'!#REF!) ->  | X9: =IF('Races, Positions & Points'!BW8="","",'Races, Positions & Points'!BW8) ->  | Y9: =IF('Races, Positions & Points'!BZ8="","",'Races, Positions & Points'!BZ8) ->  | Z9: =IF('Races, Positions & Points'!CG8="","",'Races, Positions & Points'!CG8) ->  | AA9: =IF('Races, Positions & Points'!CC8="","",'Races, Positions & Points'!CC8) ->  | AB9: =IF('Races, Positions & Points'!CJ8="","",'Races, Positions & Points'!CJ8) ->  | AC9: =IF('Races, Positions & Points'!CM8="","",'Races, Positions & Points'!CM8) ->  | AD9: =IF('Races, Positions & Points'!CW8="","",'Races, Positions & Points'!CW8) ->  | AE9: =IF('Races, Positions & Points'!CP8="","",'Races, Positions & Points'!CP8) ->  | AF9: =IF('Races, Positions & Points'!CZ8="","",'Races, Positions & Points'!CZ8) ->  | AG9: =IF('Races, Positions & Points'!#REF!="","",'Races, Positions & Points'!#REF!) ->  | AH9: =IF('Races, Positions & Points'!DC8="","",'Races, Positions & Points'!DC8) ->  | AI9: =IF('Races, Positions & Points'!DF8="","",'Races, Positions & Points'!DF8) -> 999.99 | AJ9: =IF('Races, Positions & Points'!DI8="","",'Races, Positions & Points'!DI8) ->  | AK9: =IF('Races, Positions & Points'!DL8="","",'Races, Positions & Points'!DL8) ->  | AL9: =IF('Races, Positions & Points'!DO8="","",'Races, Positions & Points'!DO8) ->  | AM9: =IF('Races, Positions & Points'!DR8="","",'Races, Positions & Points'!DR8) ->  | AN9: =IF('Races, Positions & Points'!DS8="","",'Races, Positions & Points'!DS8) ->  | AO9: =IF('Races, Positions & Points'!DU8="","",'Races, Positions & Points'!DU8) ->  | AP9: =IF('Races, Positions & Points'!DX8="","",'Races, Positions & Points'!DX8) ->  | AQ9: =IF('Races, Positions & Points'!EA8="","",'Races, Positions & Points'!EA8) ->  | AR9: =IF('Races, Positions & Points'!ED8="","",'Races, Positions & Points'!ED8) ->  | AS9: =IF('Races, Positions & Points'!EG8="","",'Races, Positions & Points'!EG8) ->  | AT9: =IF('Races, Positions & Points'!#REF!="","",'Races, Positions & Points'!#REF!) ->  | AU9: =IF('Races, Positions & Points'!#REF!="","",'Races, Positions & Points'!#REF!) ->  | AV9: =IF('Races, Positions & Points'!#REF!="","",'Races, Positions & Points'!#REF!) ->  | AW9: =IF('Races, Positions & Points'!#REF!="","",'Races, Positions & Points'!#REF!) ->  | AX9: =IF('Races, Positions & Points'!#REF!="","",'Races, Positions & Points'!#REF!) ->  | AY9: =IF('Races, Positions & Points'!#REF!="","",'Races, Positions & Points'!#REF!) ->  | BA9: =SUMPRODUCT(--(B$4:AY$4="In"),--(B$3:AY$3>5),--(B$5:AY$5="Y"),--(B9:AY9<>"")) ->  | BB9: =SUMPRODUCT(--(B$4:AY$4="Out"),--(B$3:AY$3>5),--(B$5:AY$5="Y"),--(B9:AY9<>"")) ->  | BC9: =SUMPRODUCT(--(B$4:AY$4="In"),--(B$3:AY$3=5),--(B$5:AY$5="Y"),--(B9:AY9<>"")) ->  | BE9: =SUMPRODUCT(--(B$4:AY$4="In"),--(B$3:AY$3=0),--(B$5:AY$5="Y"),--(B9:AY9<>"")) ->  | BF9: =SUMPRODUCT(--(B$4:AY$4="Out"),--(B$3:AY$3=0),--(B$5:AY$5="Y"),--(B9:AY9<>"")) ->  | BH9: ='Races, Positions & Points'!E8 -> 20809
A10: ='Races, Positions & Points'!#REF! ->  | B10: =IF('Races, Positions & Points'!#REF!="","",'Races, Positions & Points'!#REF!) ->  | C10: =IF('Races, Positions & Points'!#REF!="","",'Races, Positions & Points'!#REF!) ->  | D10: =IF('Races, Positions & Points'!#REF!="","",'Races, Positions & Points'!#REF!) ->  | E10: =IF('Races, Positions & Points'!#REF!="","",'Races, Positions & Points'!#REF!) ->  | F10: =IF('Races, Positions & Points'!#REF!="","",'Races, Positions & Points'!#REF!) ->  | G10: =IF('Races, Positions & Points'!#REF!="","",'Races, Positions & Points'!#REF!) ->  | H10: =IF('Races, Positions & Points'!#REF!="","",'Races, Positions & Points'!#REF!) ->  | I10: =IF('Races, Positions & Points'!#REF!="","",'Races, Positions & Points'!#REF!) ->  | J10: =IF('Races, Positions & Points'!#REF!="","",'Races, Positions & Points'!#REF!) ->  | K10: =IF('Races, Positions & Points'!#REF!="","",'Races, Positions & Points'!#REF!) ->  | L10: =IF('Races, Positions & Points'!#REF!="","",'Races, Positions & Points'!#REF!) ->  | M10: =IF('Races, Positions & Points'!#REF!="","",'Races, Positions & Points'!#REF!) ->  | N10: =IF('Races, Positions & Points'!#REF!="","",'Races, Positions & Points'!#REF!) ->  | O10: =IF('Races, Positions & Points'!#REF!="","",'Races, Positions & Points'!#REF!) ->  | P10: =IF('Races, Positions & Points'!#REF!="","",'Races, Positions & Points'!#REF!) ->  | Q10: =IF('Races, Positions & Points'!#REF!="","",'Races, Positions & Points'!#REF!) ->  | R10: =IF('Races, Positions & Points'!#REF!="","",'Races, Positions & Points'!#REF!) ->  | S10: =IF('Races, Positions & Points'!#REF!="","",'Races, Positions & Points'!#REF!) ->  | T10: =IF('Races, Positions & Points'!#REF!="","",'Races, Positions & Points'!#REF!) ->  | U10: =IF('Races, Positions & Points'!#REF!="","",'Races, Positions & Points'!#REF!) ->  | V10: =IF('Races, Positions & Points'!#REF!="","",'Races, Positions & Points'!#REF!) ->  | W10: =IF('Races, Positions & Points'!#REF!="","",'Races, Positions & Points'!#REF!) ->  | X10: =IF('Races, Positions & Points'!#REF!="","",'Races, Positions & Points'!#REF!) ->  | Y10: =IF('Races, Positions & Points'!#REF!="","",'Races, Positions & Points'!#REF!) ->  | Z10: =IF('Races, Positions & Points'!#REF!="","",'Races, Positions & Points'!#REF!) ->  | AA10: =IF('Races, Positions & Points'!#REF!="","",'Races, Positions & Points'!#REF!) ->  | AB10: =IF('Races, Positions & Points'!#REF!="","",'Races, Positions & Points'!#REF!) ->  | AC10: =IF('Races, Positions & Points'!#REF!="","",'Races, Positions & Points'!#REF!) ->  | AD10: =IF('Races, Positions & Points'!#REF!="","",'Races, Positions & Points'!#REF!) ->  | AE10: =IF('Races, Positions & Points'!#REF!="","",'Races, Positions & Points'!#REF!) ->  | AF10: =IF('Races, Positions & Points'!#REF!="","",'Races, Positions & Points'!#REF!) ->  | AG10: =IF('Races, Positions & Points'!#REF!="","",'Races, Positions & Points'!#REF!) ->  | AH10: =IF('Races, Positions & Points'!#REF!="","",'Races, Positions & Points'!#REF!) ->  | AI10: =IF('Races, Positions & Points'!#REF!="","",'Races, Positions & Points'!#REF!) ->  | AJ10: =IF('Races, Positions & Points'!#REF!="","",'Races, Positions & Points'!#REF!) ->  | AK10: =IF('Races, Positions & Points'!#REF!="","",'Races, Positions & Points'!#REF!) ->  | AL10: =IF('Races, Positions & Points'!#REF!="","",'Races, Positions & Points'!#REF!) ->  | AM10: =IF('Races, Positions & Points'!#REF!="","",'Races, Positions & Points'!#REF!) ->  | AN10: =IF('Races, Positions & Points'!#REF!="","",'Races, Positions & Points'!#REF!) ->  | AO10: =IF('Races, Positions & Points'!#REF!="","",'Races, Positions & Points'!#REF!) ->  | AP10: =IF('Races, Positions & Points'!#REF!="","",'Races, Positions & Points'!#REF!) ->  | AQ10: =IF('Races, Positions & Points'!#REF!="","",'Races, Positions & Points'!#REF!) ->  | AR10: =IF('Races, Positions & Points'!#REF!="","",'Races, Positions & Points'!#REF!) ->  | AS10: =IF('Races, Positions & Points'!#REF!="","",'Races, Positions & Points'!#REF!) ->  | AT10: =IF('Races, Positions & Points'!#REF!="","",'Races, Positions & Points'!#REF!) ->  | AU10: =IF('Races, Positions & Points'!#REF!="","",'Races, Positions & Points'!#REF!) ->  | AV10: =IF('Races, Positions & Points'!#REF!="","",'Races, Positions & Points'!#REF!) ->  | AW10: =IF('Races, Positions & Points'!#REF!="","",'Races, Positions & Points'!#REF!) ->  | AX10: =IF('Races, Positions & Points'!#REF!="","",'Races, Positions & Points'!#REF!) ->  | AY10: =IF('Races, Positions & Points'!#REF!="","",'Races, Positions & Points'!#REF!) ->  | BH10: ='Races, Positions & Points'!#REF! -> 
A11: ='Races, Positions & Points'!A12 -> Anya Hemming | B11: =IF('Races, Positions & Points'!S12="","",'Races, Positions & Points'!S12) ->  | C11: =IF('Races, Positions & Points'!V12="","",'Races, Positions & Points'!V12) ->  | D11: =IF('Races, Positions & Points'!#REF!="","",'Races, Positions & Points'!#REF!) ->  | E11: =IF('Races, Positions & Points'!Y12="","",'Races, Positions & Points'!Y12) ->  | F11: =IF('Races, Positions & Points'!Z12="","",'Races, Positions & Points'!Z12) ->  | G11: =IF('Races, Positions & Points'!AC12="","",'Races, Positions & Points'!AC12) ->  | H11: =IF('Races, Positions & Points'!AD12="","",'Races, Positions & Points'!AD12) ->  | I11: =IF('Races, Positions & Points'!AG12="","",'Races, Positions & Points'!AG12) -> 999.99 | J11: =IF('Races, Positions & Points'!AJ12="","",'Races, Positions & Points'!AJ12) ->  | K11: =IF('Races, Positions & Points'!AM12="","",'Races, Positions & Points'!AM12) ->  | L11: =IF('Races, Positions & Points'!AP12="","",'Races, Positions & Points'!AP12) ->  | M11: =IF('Races, Positions & Points'!AS12="","",'Races, Positions & Points'!AS12) -> 999.99 | N11: =IF('Races, Positions & Points'!AV12="","",'Races, Positions & Points'!AV12) -> 999.99 | O11: =IF('Races, Positions & Points'!AY12="","",'Races, Positions & Points'!AY12) -> 999.99 | P11: =IF('Races, Positions & Points'!BB12="","",'Races, Positions & Points'!BB12) ->  | Q11: =IF('Races, Positions & Points'!BE12="","",'Races, Positions & Points'!BE12) ->  | R11: =IF('Races, Positions & Points'!BH12="","",'Races, Positions & Points'!BH12) ->  | S11: =IF('Races, Positions & Points'!BK12="","",'Races, Positions & Points'!BK12) ->  | T11: =IF('Races, Positions & Points'!BN12="","",'Races, Positions & Points'!BN12) ->  | U11: =IF('Races, Positions & Points'!BQ12="","",'Races, Positions & Points'!BQ12) ->  | V11: =IF('Races, Positions & Points'!BT12="","",'Races, Positions & Points'!BT12) ->  | W11: =IF('Races, Positions & Points'!#REF!="","",'Races, Positions & Points'!#REF!) ->  | X11: =IF('Races, Positions & Points'!BW12="","",'Races, Positions & Points'!BW12) ->  | Y11: =IF('Races, Positions & Points'!BZ12="","",'Races, Positions & Points'!BZ12) ->  | Z11: =IF('Races, Positions & Points'!CG12="","",'Races, Positions & Points'!CG12) ->  | AA11: =IF('Races, Positions & Points'!CC12="","",'Races, Positions & Points'!CC12) ->  | AB11: =IF('Races, Positions & Points'!CJ12="","",'Races, Positions & Points'!CJ12) -> 999.99 | AC11: =IF('Races, Positions & Points'!CM12="","",'Races, Positions & Points'!CM12) -> 999.99 | AD11: =IF('Races, Positions & Points'!CW12="","",'Races, Positions & Points'!CW12) ->  | AE11: =IF('Races, Positions & Points'!CP12="","",'Races, Positions & Points'!CP12) ->  | AF11: =IF('Races, Positions & Points'!CZ12="","",'Races, Positions & Points'!CZ12) ->  | AG11: =IF('Races, Positions & Points'!#REF!="","",'Races, Positions & Points'!#REF!) ->  | AH11: =IF('Races, Positions & Points'!DC12="","",'Races, Positions & Points'!DC12) ->  | AI11: =IF('Races, Positions & Points'!DF12="","",'Races, Positions & Points'!DF12) ->  | AJ11: =IF('Races, Positions & Points'!DI12="","",'Races, Positions & Points'!DI12) ->  | AK11: =IF('Races, Positions & Points'!DL12="","",'Races, Positions & Points'!DL12) ->  | AL11: =IF('Races, Positions & Points'!DO12="","",'Races, Positions & Points'!DO12) ->  | AM11: =IF('Races, Positions & Points'!DR12="","",'Races, Positions & Points'!DR12) ->  | AN11: =IF('Races, Positions & Points'!DS12="","",'Races, Positions & Points'!DS12) ->  | AO11: =IF('Races, Positions & Points'!DU12="","",'Races, Positions & Points'!DU12) ->  | AP11: =IF('Races, Positions & Points'!DX12="","",'Races, Positions & Points'!DX12) ->  | AQ11: =IF('Races, Positions & Points'!EA12="","",'Races, Positions & Points'!EA12) ->  | AR11: =IF('Races, Positions & Points'!ED12="","",'Races, Positions & Points'!ED12) ->  | AS11: =IF('Races, Positions & Points'!EG12="","",'Races, Positions & Points'!EG12) ->  | AT11: =IF('Races, Positions & Points'!#REF!="","",'Races, Positions & Points'!#REF!) ->  | AU11: =IF('Races, Positions & Points'!#REF!="","",'Races, Positions & Points'!#REF!) ->  | AV11: =IF('Races, Positions & Points'!#REF!="","",'Races, Positions & Points'!#REF!) ->  | AW11: =IF('Races, Positions & Points'!#REF!="","",'Races, Positions & Points'!#REF!) ->  | AX11: =IF('Races, Positions & Points'!#REF!="","",'Races, Positions & Points'!#REF!) ->  | AY11: =IF('Races, Positions & Points'!#REF!="","",'Races, Positions & Points'!#REF!) ->  | BH11: ='Races, Positions & Points'!E12 -> 21569
A12: ='Races, Positions & Points'!A13 -> Aaliyah Llewellyn | B12: =IF('Races, Positions & Points'!S13="","",'Races, Positions & Points'!S13) ->  | C12: =IF('Races, Positions & Points'!V13="","",'Races, Positions & Points'!V13) ->  | D12: =IF('Races, Positions & Points'!#REF!="","",'Races, Positions & Points'!#REF!) ->  | E12: =IF('Races, Positions & Points'!Y13="","",'Races, Positions & Points'!Y13) ->  | F12: =IF('Races, Positions & Points'!Z13="","",'Races, Positions & Points'!Z13) ->  | G12: =IF('Races, Positions & Points'!AC13="","",'Races, Positions & Points'!AC13) ->  | H12: =IF('Races, Positions & Points'!AD13="","",'Races, Positions & Points'!AD13) ->  | I12: =IF('Races, Positions & Points'!AG13="","",'Races, Positions & Points'!AG13) ->  | J12: =IF('Races, Positions & Points'!AJ13="","",'Races, Positions & Points'!AJ13) ->  | K12: =IF('Races, Positions & Points'!AM13="","",'Races, Positions & Points'!AM13) ->  | L12: =IF('Races, Positions & Points'!AP13="","",'Races, Positions & Points'!AP13) ->  | M12: =IF('Races, Positions & Points'!AS13="","",'Races, Positions & Points'!AS13) ->  | N12: =IF('Races, Positions & Points'!AV13="","",'Races, Positions & Points'!AV13) ->  | O12: =IF('Races, Positions & Points'!AY13="","",'Races, Positions & Points'!AY13) ->  | P12: =IF('Races, Positions & Points'!BB13="","",'Races, Positions & Points'!BB13) ->  | Q12: =IF('Races, Positions & Points'!BE13="","",'Races, Positions & Points'!BE13) ->  | R12: =IF('Races, Positions & Points'!BH13="","",'Races, Positions & Points'!BH13) ->  | S12: =IF('Races, Positions & Points'!BK13="","",'Races, Positions & Points'!BK13) ->  | T12: =IF('Races, Positions & Points'!BN13="","",'Races, Positions & Points'!BN13) ->  | U12: =IF('Races, Positions & Points'!BQ13="","",'Races, Positions & Points'!BQ13) ->  | V12: =IF('Races, Positions & Points'!BT13="","",'Races, Positions & Points'!BT13) ->  | W12: =IF('Races, Positions & Points'!#REF!="","",'Races, Positions & Points'!#REF!) ->  | X12: =IF('Races, Positions & Points'!BW13="","",'Races, Positions & Points'!BW13) ->  | Y12: =IF('Races, Positions & Points'!BZ13="","",'Races, Positions & Points'!BZ13) ->  | Z12: =IF('Races, Positions & Points'!CG13="","",'Races, Positions & Points'!CG13) ->  | AA12: =IF('Races, Positions & Points'!CC13="","",'Races, Positions & Points'!CC13) ->  | AB12: =IF('Races, Positions & Points'!CJ13="","",'Races, Positions & Points'!CJ13) ->  | AC12: =IF('Races, Positions & Points'!CM13="","",'Races, Positions & Points'!CM13) ->  | AD12: =IF('Races, Positions & Points'!CW13="","",'Races, Positions & Points'!CW13) ->  | AE12: =IF('Races, Positions & Points'!CP13="","",'Races, Positions & Points'!CP13) ->  | AF12: =IF('Races, Positions & Points'!CZ13="","",'Races, Positions & Points'!CZ13) ->  | AG12: =IF('Races, Positions & Points'!#REF!="","",'Races, Positions & Points'!#REF!) ->  | AH12: =IF('Races, Positions & Points'!DC13="","",'Races, Positions & Points'!DC13) ->  | AI12: =IF('Races, Positions & Points'!DF13="","",'Races, Positions & Points'!DF13) ->  | AJ12: =IF('Races, Positions & Points'!DI13="","",'Races, Positions & Points'!DI13) ->  | AK12: =IF('Races, Positions & Points'!DL13="","",'Races, Positions & Points'!DL13) ->  | AL12: =IF('Races, Positions & Points'!DO13="","",'Races, Positions & Points'!DO13) ->  | AM12: =IF('Races, Positions & Points'!DR13="","",'Races, Positions & Points'!DR13) ->  | AN12: =IF('Races, Positions & Points'!DS13="","",'Races, Positions & Points'!DS13) ->  | AO12: =IF('Races, Positions & Points'!DU13="","",'Races, Positions & Points'!DU13) ->  | AP12: =IF('Races, Positions & Points'!DX13="","",'Races, Positions & Points'!DX13) ->  | AQ12: =IF('Races, Positions & Points'!EA13="","",'Races, Positions & Points'!EA13) ->  | AR12: =IF('Races, Positions & Points'!ED13="","",'Races, Positions & Points'!ED13) ->  | AS12: =IF('Races, Positions & Points'!EG13="","",'Races, Positions & Points'!EG13) ->  | AT12: =IF('Races, Positions & Points'!#REF!="","",'Races, Positions & Points'!#REF!) ->  | AU12: =IF('Races, Positions & Points'!#REF!="","",'Races, Positions & Points'!#REF!) ->  | AV12: =IF('Races, Positions & Points'!#REF!="","",'Races, Positions & Points'!#REF!) ->  | AW12: =IF('Races, Positions & Points'!#REF!="","",'Races, Positions & Points'!#REF!) ->  | AX12: =IF('Races, Positions & Points'!#REF!="","",'Races, Positions & Points'!#REF!) ->  | AY12: =IF('Races, Positions & Points'!#REF!="","",'Races, Positions & Points'!#REF!) ->  | BH12: ='Races, Positions & Points'!E13 -> 22015
A14: ='Races, Positions & Points'!A15 -> James Shakeshaft | B14: =IF('Races, Positions & Points'!S15="","",'Races, Positions & Points'!S15) ->  | C14: =IF('Races, Positions & Points'!V15="","",'Races, Positions & Points'!V15) ->  | D14: =IF('Races, Positions & Points'!#REF!="","",'Races, Positions & Points'!#REF!) ->  | E14: =IF('Races, Positions & Points'!Y15="","",'Races, Positions & Points'!Y15) ->  | F14: =IF('Races, Positions & Points'!Z15="","",'Races, Positions & Points'!Z15) ->  | G14: =IF('Races, Positions & Points'!AC15="","",'Races, Positions & Points'!AC15) ->  | H14: =IF('Races, Positions & Points'!AD15="","",'Races, Positions & Points'!AD15) ->  | I14: =IF('Races, Positions & Points'!AG15="","",'Races, Positions & Points'!AG15) ->  | J14: =IF('Races, Positions & Points'!AJ15="","",'Races, Positions & Points'!AJ15) ->  | K14: =IF('Races, Positions & Points'!AM15="","",'Races, Positions & Points'!AM15) ->  | L14: =IF('Races, Positions & Points'!AP15="","",'Races, Positions & Points'!AP15) ->  | M14: =IF('Races, Positions & Points'!AS15="","",'Races, Positions & Points'!AS15) ->  | N14: =IF('Races, Positions & Points'!AV15="","",'Races, Positions & Points'!AV15) ->  | O14: =IF('Races, Positions & Points'!AY15="","",'Races, Positions & Points'!AY15) ->  | P14: =IF('Races, Positions & Points'!BB15="","",'Races, Positions & Points'!BB15) ->  | Q14: =IF('Races, Positions & Points'!BE15="","",'Races, Positions & Points'!BE15) ->  | R14: =IF('Races, Positions & Points'!BH15="","",'Races, Positions & Points'!BH15) ->  | S14: =IF('Races, Positions & Points'!BK15="","",'Races, Positions & Points'!BK15) ->  | T14: =IF('Races, Positions & Points'!BN15="","",'Races, Positions & Points'!BN15) ->  | U14: =IF('Races, Positions & Points'!BQ15="","",'Races, Positions & Points'!BQ15) ->  | V14: =IF('Races, Positions & Points'!BT15="","",'Races, Positions & Points'!BT15) ->  | W14: =IF('Races, Positions & Points'!#REF!="","",'Races, Positions & Points'!#REF!) ->  | X14: =IF('Races, Positions & Points'!BW15="","",'Races, Positions & Points'!BW15) ->  | Y14: =IF('Races, Positions & Points'!BZ15="","",'Races, Positions & Points'!BZ15) ->  | Z14: =IF('Races, Positions & Points'!CG15="","",'Races, Positions & Points'!CG15) ->  | AA14: =IF('Races, Positions & Points'!CC15="","",'Races, Positions & Points'!CC15) ->  | AB14: =IF('Races, Positions & Points'!CJ15="","",'Races, Positions & Points'!CJ15) ->  | AC14: =IF('Races, Positions & Points'!CM15="","",'Races, Positions & Points'!CM15) ->  | AD14: =IF('Races, Positions & Points'!CW15="","",'Races, Positions & Points'!CW15) ->  | AE14: =IF('Races, Positions & Points'!CP15="","",'Races, Positions & Points'!CP15) ->  | AF14: =IF('Races, Positions & Points'!CZ15="","",'Races, Positions & Points'!CZ15) ->  | AG14: =IF('Races, Positions & Points'!#REF!="","",'Races, Positions & Points'!#REF!) ->  | AH14: =IF('Races, Positions & Points'!DC15="","",'Races, Positions & Points'!DC15) ->  | AI14: =IF('Races, Positions & Points'!DF15="","",'Races, Positions & Points'!DF15) ->  | AJ14: =IF('Races, Positions & Points'!DI15="","",'Races, Positions & Points'!DI15) ->  | AK14: =IF('Races, Positions & Points'!DL15="","",'Races, Positions & Points'!DL15) ->  | AL14: =IF('Races, Positions & Points'!DO15="","",'Races, Positions & Points'!DO15) ->  | AM14: =IF('Races, Positions & Points'!DR15="","",'Races, Positions & Points'!DR15) ->  | AN14: =IF('Races, Positions & Points'!DS15="","",'Races, Positions & Points'!DS15) ->  | AO14: =IF('Races, Positions & Points'!DU15="","",'Races, Positions & Points'!DU15) ->  | AP14: =IF('Races, Positions & Points'!DX15="","",'Races, Positions & Points'!DX15) ->  | AQ14: =IF('Races, Positions & Points'!EA15="","",'Races, Positions & Points'!EA15) ->  | AR14: =IF('Races, Positions & Points'!ED15="","",'Races, Positions & Points'!ED15) ->  | AS14: =IF('Races, Positions & Points'!EG15="","",'Races, Positions & Points'!EG15) ->  | AT14: =IF('Races, Positions & Points'!#REF!="","",'Races, Positions & Points'!#REF!) ->  | AU14: =IF('Races, Positions & Points'!#REF!="","",'Races, Positions & Points'!#REF!) ->  | AV14: =IF('Races, Positions & Points'!#REF!="","",'Races, Positions & Points'!#REF!) ->  | AW14: =IF('Races, Positions & Points'!#REF!="","",'Races, Positions & Points'!#REF!) ->  | AX14: =IF('Races, Positions & Points'!#REF!="","",'Races, Positions & Points'!#REF!) ->  | AY14: =IF('Races, Positions & Points'!#REF!="","",'Races, Positions & Points'!#REF!) ->  | BA14: =SUMPRODUCT(--(B$4:AY$4="In"),--(B$3:AY$3>5),--(B$5:AY$5="Y"),--(B14:AY14<>"")) ->  | BB14: =SUMPRODUCT(--(B$4:AY$4="Out"),--(B$3:AY$3>5),--(B$5:AY$5="Y"),--(B14:AY14<>"")) ->  | BC14: =SUMPRODUCT(--(B$4:AY$4="In"),--(B$3:AY$3=5),--(B$5:AY$5="Y"),--(B14:AY14<>"")) ->  | BD14: =SUMPRODUCT(--(B$4:AY$4="Out"),--(B$3:AY$3=5),--(B$5:AY$5="Y"),--(B14:AY14<>"")) ->  | BE14: =SUMPRODUCT(--(B$4:AY$4="In"),--(B$3:AY$3=0),--(B$5:AY$5="Y"),--(B14:AY14<>"")) ->  | BF14: =SUMPRODUCT(--(B$4:AY$4="Out"),--(B$3:AY$3=0),--(B$5:AY$5="Y"),--(B14:AY14<>"")) ->  | BH14: ='Races, Positions & Points'!E15 -> 20340
A15: ='Races, Positions & Points'!A16 -> Daniel Hadley | B15: =IF('Races, Positions & Points'!S16="","",'Races, Positions & Points'!S16) ->  | C15: =IF('Races, Positions & Points'!V16="","",'Races, Positions & Points'!V16) ->  | D15: =IF('Races, Positions & Points'!#REF!="","",'Races, Positions & Points'!#REF!) ->  | E15: =IF('Races, Positions & Points'!Y16="","",'Races, Positions & Points'!Y16) ->  | F15: =IF('Races, Positions & Points'!Z16="","",'Races, Positions & Points'!Z16) ->  | G15: =IF('Races, Positions & Points'!AC16="","",'Races, Positions & Points'!AC16) ->  | H15: =IF('Races, Positions & Points'!AD16="","",'Races, Positions & Points'!AD16) ->  | I15: =IF('Races, Positions & Points'!AG16="","",'Races, Positions & Points'!AG16) ->  | J15: =IF('Races, Positions & Points'!AJ16="","",'Races, Positions & Points'!AJ16) ->  | K15: =IF('Races, Positions & Points'!AM16="","",'Races, Positions & Points'!AM16) ->  | L15: =IF('Races, Positions & Points'!AP16="","",'Races, Positions & Points'!AP16) ->  | M15: =IF('Races, Positions & Points'!AS16="","",'Races, Positions & Points'!AS16) ->  | N15: =IF('Races, Positions & Points'!AV16="","",'Races, Positions & Points'!AV16) ->  | O15: =IF('Races, Positions & Points'!AY16="","",'Races, Positions & Points'!AY16) ->  | P15: =IF('Races, Positions & Points'!BB16="","",'Races, Positions & Points'!BB16) ->  | Q15: =IF('Races, Positions & Points'!BE16="","",'Races, Positions & Points'!BE16) ->  | R15: =IF('Races, Positions & Points'!BH16="","",'Races, Positions & Points'!BH16) ->  | S15: =IF('Races, Positions & Points'!BK16="","",'Races, Positions & Points'!BK16) ->  | T15: =IF('Races, Positions & Points'!BN16="","",'Races, Positions & Points'!BN16) ->  | U15: =IF('Races, Positions & Points'!BQ16="","",'Races, Positions & Points'!BQ16) ->  | V15: =IF('Races, Positions & Points'!BT16="","",'Races, Positions & Points'!BT16) ->  | W15: =IF('Races, Positions & Points'!#REF!="","",'Races, Positions & Points'!#REF!) ->  | X15: =IF('Races, Positions & Points'!BW16="","",'Races, Positions & Points'!BW16) ->  | Y15: =IF('Races, Positions & Points'!BZ16="","",'Races, Positions & Points'!BZ16) ->  | Z15: =IF('Races, Positions & Points'!CG16="","",'Races, Positions & Points'!CG16) ->  | AA15: =IF('Races, Positions & Points'!CC16="","",'Races, Positions & Points'!CC16) ->  | AB15: =IF('Races, Positions & Points'!CJ16="","",'Races, Positions & Points'!CJ16) ->  | AC15: =IF('Races, Positions & Points'!CM16="","",'Races, Positions & Points'!CM16) ->  | AD15: =IF('Races, Positions & Points'!CW16="","",'Races, Positions & Points'!CW16) ->  | AE15: =IF('Races, Positions & Points'!CP16="","",'Races, Positions & Points'!CP16) ->  | AF15: =IF('Races, Positions & Points'!CZ16="","",'Races, Positions & Points'!CZ16) ->  | AG15: =IF('Races, Positions & Points'!#REF!="","",'Races, Positions & Points'!#REF!) ->  | AH15: =IF('Races, Positions & Points'!DC16="","",'Races, Positions & Points'!DC16) ->  | AI15: =IF('Races, Positions & Points'!DF16="","",'Races, Positions & Points'!DF16) ->  | AJ15: =IF('Races, Positions & Points'!DI16="","",'Races, Positions & Points'!DI16) ->  | AK15: =IF('Races, Positions & Points'!DL16="","",'Races, Positions & Points'!DL16) ->  | AL15: =IF('Races, Positions & Points'!DO16="","",'Races, Positions & Points'!DO16) ->  | AM15: =IF('Races, Positions & Points'!DR16="","",'Races, Positions & Points'!DR16) ->  | AN15: =IF('Races, Positions & Points'!DS16="","",'Races, Positions & Points'!DS16) ->  | AO15: =IF('Races, Positions & Points'!DU16="","",'Races, Positions & Points'!DU16) ->  | AP15: =IF('Races, Positions & Points'!DX16="","",'Races, Positions & Points'!DX16) ->  | AQ15: =IF('Races, Positions & Points'!EA16="","",'Races, Positions & Points'!EA16) ->  | AR15: =IF('Races, Positions & Points'!ED16="","",'Races, Positions & Points'!ED16) ->  | AS15: =IF('Races, Positions & Points'!EG16="","",'Races, Positions & Points'!EG16) ->  | AT15: =IF('Races, Positions & Points'!#REF!="","",'Races, Positions & Points'!#REF!) ->  | AU15: =IF('Races, Positions & Points'!#REF!="","",'Races, Positions & Points'!#REF!) ->  | AV15: =IF('Races, Positions & Points'!#REF!="","",'Races, Positions & Points'!#REF!) ->  | AW15: =IF('Races, Positions & Points'!#REF!="","",'Races, Positions & Points'!#REF!) ->  | AX15: =IF('Races, Positions & Points'!#REF!="","",'Races, Positions & Points'!#REF!) ->  | AY15: =IF('Races, Positions & Points'!#REF!="","",'Races, Positions & Points'!#REF!) ->  | BH15: ='Races, Positions & Points'!E16 -> 20719
A16: ='Races, Positions & Points'!A17 -> Jack Teague | B16: =IF('Races, Positions & Points'!S17="","",'Races, Positions & Points'!S17) ->  | C16: =IF('Races, Positions & Points'!V17="","",'Races, Positions & Points'!V17) ->  | D16: =IF('Races, Positions & Points'!#REF!="","",'Races, Positions & Points'!#REF!) ->  | E16: =IF('Races, Positions & Points'!Y17="","",'Races, Positions & Points'!Y17) ->  | F16: =IF('Races, Positions & Points'!Z17="","",'Races, Positions & Points'!Z17) ->  | G16: =IF('Races, Positions & Points'!AC17="","",'Races, Positions & Points'!AC17) ->  | H16: =IF('Races, Positions & Points'!AD17="","",'Races, Positions & Points'!AD17) ->  | I16: =IF('Races, Positions & Points'!AG17="","",'Races, Positions & Points'!AG17) ->  | J16: =IF('Races, Positions & Points'!AJ17="","",'Races, Positions & Points'!AJ17) ->  | K16: =IF('Races, Positions & Points'!AM17="","",'Races, Positions & Points'!AM17) ->  | L16: =IF('Races, Positions & Points'!AP17="","",'Races, Positions & Points'!AP17) ->  | M16: =IF('Races, Positions & Points'!AS17="","",'Races, Positions & Points'!AS17) ->  | N16: =IF('Races, Positions & Points'!AV17="","",'Races, Positions & Points'!AV17) ->  | O16: =IF('Races, Positions & Points'!AY17="","",'Races, Positions & Points'!AY17) ->  | P16: =IF('Races, Positions & Points'!BB17="","",'Races, Positions & Points'!BB17) ->  | Q16: =IF('Races, Positions & Points'!BE17="","",'Races, Positions & Points'!BE17) ->  | R16: =IF('Races, Positions & Points'!BH17="","",'Races, Positions & Points'!BH17) ->  | S16: =IF('Races, Positions & Points'!BK17="","",'Races, Positions & Points'!BK17) ->  | T16: =IF('Races, Positions & Points'!BN17="","",'Races, Positions & Points'!BN17) ->  | U16: =IF('Races, Positions & Points'!BQ17="","",'Races, Positions & Points'!BQ17) ->  | V16: =IF('Races, Positions & Points'!BT17="","",'Races, Positions & Points'!BT17) ->  | W16: =IF('Races, Positions & Points'!#REF!="","",'Races, Positions & Points'!#REF!) ->  | X16: =IF('Races, Positions & Points'!BW17="","",'Races, Positions & Points'!BW17) ->  | Y16: =IF('Races, Positions & Points'!BZ17="","",'Races, Positions & Points'!BZ17) ->  | Z16: =IF('Races, Positions & Points'!CG17="","",'Races, Positions & Points'!CG17) ->  | AA16: =IF('Races, Positions & Points'!CC17="","",'Races, Positions & Points'!CC17) ->  | AB16: =IF('Races, Positions & Points'!CJ17="","",'Races, Positions & Points'!CJ17) ->  | AC16: =IF('Races, Positions & Points'!CM17="","",'Races, Positions & Points'!CM17) ->  | AD16: =IF('Races, Positions & Points'!CW17="","",'Races, Positions & Points'!CW17) ->  | AE16: =IF('Races, Positions & Points'!CP17="","",'Races, Positions & Points'!CP17) ->  | AF16: =IF('Races, Positions & Points'!CZ17="","",'Races, Positions & Points'!CZ17) ->  | AG16: =IF('Races, Positions & Points'!#REF!="","",'Races, Positions & Points'!#REF!) ->  | AH16: =IF('Races, Positions & Points'!DC17="","",'Races, Positions & Points'!DC17) ->  | AI16: =IF('Races, Positions & Points'!DF17="","",'Races, Positions & Points'!DF17) ->  | AJ16: =IF('Races, Positions & Points'!DI17="","",'Races, Positions & Points'!DI17) ->  | AK16: =IF('Races, Positions & Points'!DL17="","",'Races, Positions & Points'!DL17) ->  | AL16: =IF('Races, Positions & Points'!DO17="","",'Races, Positions & Points'!DO17) ->  | AM16: =IF('Races, Positions & Points'!DR17="","",'Races, Positions & Points'!DR17) ->  | AN16: =IF('Races, Positions & Points'!DS17="","",'Races, Positions & Points'!DS17) ->  | AO16: =IF('Races, Positions & Points'!DU17="","",'Races, Positions & Points'!DU17) ->  | AP16: =IF('Races, Positions & Points'!DX17="","",'Races, Positions & Points'!DX17) ->  | AQ16: =IF('Races, Positions & Points'!EA17="","",'Races, Positions & Points'!EA17) ->  | AR16: =IF('Races, Positions & Points'!ED17="","",'Races, Positions & Points'!ED17) ->  | AS16: =IF('Races, Positions & Points'!EG17="","",'Races, Positions & Points'!EG17) ->  | AT16: =IF('Races, Positions & Points'!#REF!="","",'Races, Positions & Points'!#REF!) ->  | AU16: =IF('Races, Positions & Points'!#REF!="","",'Races, Positions & Points'!#REF!) ->  | AV16: =IF('Races, Positions & Points'!#REF!="","",'Races, Positions & Points'!#REF!) ->  | AW16: =IF('Races, Positions & Points'!#REF!="","",'Races, Positions & Points'!#REF!) ->  | AX16: =IF('Races, Positions & Points'!#REF!="","",'Races, Positions & Points'!#REF!) ->  | AY16: =IF('Races, Positions & Points'!#REF!="","",'Races, Positions & Points'!#REF!) ->  | BH16: ='Races, Positions & Points'!E17 -> 20630
A17: ='Races, Positions & Points'!A18 -> Jack Upton | B17: =IF('Races, Positions & Points'!S18="","",'Races, Positions & Points'!S18) -> 999.99 | C17: =IF('Races, Positions & Points'!V18="","",'Races, Positions & Points'!V18) ->  | D17: =IF('Races, Positions & Points'!#REF!="","",'Races, Positions & Points'!#REF!) ->  | E17: =IF('Races, Positions & Points'!Y18="","",'Races, Positions & Points'!Y18) -> 999.99 | F17: =IF('Races, Positions & Points'!Z18="","",'Races, Positions & Points'!Z18) -> 999.99 | G17: =IF('Races, Positions & Points'!AC18="","",'Races, Positions & Points'!AC18) -> 999.99 | H17: =IF('Races, Positions & Points'!AD18="","",'Races, Positions & Points'!AD18) -> 999.99 | I17: =IF('Races, Positions & Points'!AG18="","",'Races, Positions & Points'!AG18) -> 999.99 | J17: =IF('Races, Positions & Points'!AJ18="","",'Races, Positions & Points'!AJ18) -> 999.99 | K17: =IF('Races, Positions & Points'!AM18="","",'Races, Positions & Points'!AM18) -> 999.99 | L17: =IF('Races, Positions & Points'!AP18="","",'Races, Positions & Points'!AP18) -> 999.99 | M17: =IF('Races, Positions & Points'!AS18="","",'Races, Positions & Points'!AS18) -> 999.99 | N17: =IF('Races, Positions & Points'!AV18="","",'Races, Positions & Points'!AV18) -> 999.99 | O17: =IF('Races, Positions & Points'!AY18="","",'Races, Positions & Points'!AY18) -> 999.99 | P17: =IF('Races, Positions & Points'!BB18="","",'Races, Positions & Points'!BB18) ->  | Q17: =IF('Races, Positions & Points'!BE18="","",'Races, Positions & Points'!BE18) ->  | R17: =IF('Races, Positions & Points'!BH18="","",'Races, Positions & Points'!BH18) ->  | S17: =IF('Races, Positions & Points'!BK18="","",'Races, Positions & Points'!BK18) ->  | T17: =IF('Races, Positions & Points'!BN18="","",'Races, Positions & Points'!BN18) ->  | U17: =IF('Races, Positions & Points'!BQ18="","",'Races, Positions & Points'!BQ18) -> 999.99 | V17: =IF('Races, Positions & Points'!BT18="","",'Races, Positions & Points'!BT18) -> 999.99 | W17: =IF('Races, Positions & Points'!#REF!="","",'Races, Positions & Points'!#REF!) ->  | X17: =IF('Races, Positions & Points'!BW18="","",'Races, Positions & Points'!BW18) -> 999.99 | Y17: =IF('Races, Positions & Points'!BZ18="","",'Races, Positions & Points'!BZ18) ->  | Z17: =IF('Races, Positions & Points'!CG18="","",'Races, Positions & Points'!CG18) ->  | AA17: =IF('Races, Positions & Points'!CC18="","",'Races, Positions & Points'!CC18) -> 999.99 | AB17: =IF('Races, Positions & Points'!CJ18="","",'Races, Positions & Points'!CJ18) -> 999.99 | AC17: =IF('Races, Positions & Points'!CM18="","",'Races, Positions & Points'!CM18) ->  | AD17: =IF('Races, Positions & Points'!CW18="","",'Races, Positions & Points'!CW18) ->  | AE17: =IF('Races, Positions & Points'!CP18="","",'Races, Positions & Points'!CP18) -> 999.99 | AF17: =IF('Races, Positions & Points'!CZ18="","",'Races, Positions & Points'!CZ18) -> 999.99 | AG17: =IF('Races, Positions & Points'!#REF!="","",'Races, Positions & Points'!#REF!) ->  | AH17: =IF('Races, Positions & Points'!DC18="","",'Races, Positions & Points'!DC18) -> 999.99 | AI17: =IF('Races, Positions & Points'!DF18="","",'Races, Positions & Points'!DF18) -> 999.99 | AJ17: =IF('Races, Positions & Points'!DI18="","",'Races, Positions & Points'!DI18) -> 999.99 | AK17: =IF('Races, Positions & Points'!DL18="","",'Races, Positions & Points'!DL18) -> 999.99 | AL17: =IF('Races, Positions & Points'!DO18="","",'Races, Positions & Points'!DO18) -> 999.99 | AM17: =IF('Races, Positions & Points'!DR18="","",'Races, Positions & Points'!DR18) ->  | AN17: =IF('Races, Positions & Points'!DS18="","",'Races, Positions & Points'!DS18) ->  | AO17: =IF('Races, Positions & Points'!DU18="","",'Races, Positions & Points'!DU18) ->  | AP17: =IF('Races, Positions & Points'!DX18="","",'Races, Positions & Points'!DX18) ->  | AQ17: =IF('Races, Positions & Points'!EA18="","",'Races, Positions & Points'!EA18) ->  | AR17: =IF('Races, Positions & Points'!ED18="","",'Races, Positions & Points'!ED18) ->  | AS17: =IF('Races, Positions & Points'!EG18="","",'Races, Positions & Points'!EG18) ->  | AT17: =IF('Races, Positions & Points'!#REF!="","",'Races, Positions & Points'!#REF!) ->  | AU17: =IF('Races, Positions & Points'!#REF!="","",'Races, Positions & Points'!#REF!) ->  | AV17: =IF('Races, Positions & Points'!#REF!="","",'Races, Positions & Points'!#REF!) ->  | AW17: =IF('Races, Positions & Points'!#REF!="","",'Races, Positions & Points'!#REF!) ->  | AX17: =IF('Races, Positions & Points'!#REF!="","",'Races, Positions & Points'!#REF!) ->  | AY17: =IF('Races, Positions & Points'!#REF!="","",'Races, Positions & Points'!#REF!) ->  | BH17: ='Races, Positions & Points'!E18 -> 21052
A18: ='Races, Positions & Points'!A19 -> Keiran Woolley | B18: =IF('Races, Positions & Points'!S19="","",'Races, Positions & Points'!S19) -> 999.99 | C18: =IF('Races, Positions & Points'!V19="","",'Races, Positions & Points'!V19) ->  | D18: =IF('Races, Positions & Points'!#REF!="","",'Races, Positions & Points'!#REF!) ->  | E18: =IF('Races, Positions & Points'!Y19="","",'Races, Positions & Points'!Y19) -> 999.99 | F18: =IF('Races, Positions & Points'!Z19="","",'Races, Positions & Points'!Z19) -> 999.99 | G18: =IF('Races, Positions & Points'!AC19="","",'Races, Positions & Points'!AC19) -> 999.99 | H18: =IF('Races, Positions & Points'!AD19="","",'Races, Positions & Points'!AD19) -> 999.99 | I18: =IF('Races, Positions & Points'!AG19="","",'Races, Positions & Points'!AG19) ->  | J18: =IF('Races, Positions & Points'!AJ19="","",'Races, Positions & Points'!AJ19) -> 999.99 | K18: =IF('Races, Positions & Points'!AM19="","",'Races, Positions & Points'!AM19) -> 999.99 | L18: =IF('Races, Positions & Points'!AP19="","",'Races, Positions & Points'!AP19) -> 999.99 | M18: =IF('Races, Positions & Points'!AS19="","",'Races, Positions & Points'!AS19) -> 999.99 | N18: =IF('Races, Positions & Points'!AV19="","",'Races, Positions & Points'!AV19) ->  | O18: =IF('Races, Positions & Points'!AY19="","",'Races, Positions & Points'!AY19) ->  | P18: =IF('Races, Positions & Points'!BB19="","",'Races, Positions & Points'!BB19) ->  | Q18: =IF('Races, Positions & Points'!BE19="","",'Races, Positions & Points'!BE19) ->  | R18: =IF('Races, Positions & Points'!BH19="","",'Races, Positions & Points'!BH19) ->  | S18: =IF('Races, Positions & Points'!BK19="","",'Races, Positions & Points'!BK19) ->  | T18: =IF('Races, Positions & Points'!BN19="","",'Races, Positions & Points'!BN19) ->  | U18: =IF('Races, Positions & Points'!BQ19="","",'Races, Positions & Points'!BQ19) -> 999.99 | V18: =IF('Races, Positions & Points'!BT19="","",'Races, Positions & Points'!BT19) -> 999.99 | W18: =IF('Races, Positions & Points'!#REF!="","",'Races, Positions & Points'!#REF!) ->  | X18: =IF('Races, Positions & Points'!BW19="","",'Races, Positions & Points'!BW19) -> 999.99 | Y18: =IF('Races, Positions & Points'!BZ19="","",'Races, Positions & Points'!BZ19) ->  | Z18: =IF('Races, Positions & Points'!CG19="","",'Races, Positions & Points'!CG19) ->  | AA18: =IF('Races, Positions & Points'!CC19="","",'Races, Positions & Points'!CC19) -> 999.99 | AB18: =IF('Races, Positions & Points'!CJ19="","",'Races, Positions & Points'!CJ19) ->  | AC18: =IF('Races, Positions & Points'!CM19="","",'Races, Positions & Points'!CM19) ->  | AD18: =IF('Races, Positions & Points'!CW19="","",'Races, Positions & Points'!CW19) ->  | AE18: =IF('Races, Positions & Points'!CP19="","",'Races, Positions & Points'!CP19) -> 999.99 | AF18: =IF('Races, Positions & Points'!CZ19="","",'Races, Positions & Points'!CZ19) -> 999.99 | AG18: =IF('Races, Positions & Points'!#REF!="","",'Races, Positions & Points'!#REF!) ->  | AH18: =IF('Races, Positions & Points'!DC19="","",'Races, Positions & Points'!DC19) -> 999.99 | AI18: =IF('Races, Positions & Points'!DF19="","",'Races, Positions & Points'!DF19) ->  | AJ18: =IF('Races, Positions & Points'!DI19="","",'Races, Positions & Points'!DI19) ->  | AK18: =IF('Races, Positions & Points'!DL19="","",'Races, Positions & Points'!DL19) -> 999.99 | AL18: =IF('Races, Positions & Points'!DO19="","",'Races, Positions & Points'!DO19) -> 999.99 | AM18: =IF('Races, Positions & Points'!DX19="","",'Races, Positions & Points'!DX19) -> 999.99 | AN18: =IF('Races, Positions & Points'!DS19="","",'Races, Positions & Points'!DS19) ->  | AO18: =IF('Races, Positions & Points'!DU19="","",'Races, Positions & Points'!DU19) ->  | AP18: =IF('Races, Positions & Points'!#REF!="","",'Races, Positions & Points'!#REF!) ->  | AQ18: =IF('Races, Positions & Points'!EA19="","",'Races, Positions & Points'!EA19) ->  | AR18: =IF('Races, Positions & Points'!ED19="","",'Races, Positions & Points'!ED19) ->  | AS18: =IF('Races, Positions & Points'!EG19="","",'Races, Positions & Points'!EG19) ->  | AT18: =IF('Races, Positions & Points'!#REF!="","",'Races, Positions & Points'!#REF!) ->  | AU18: =IF('Races, Positions & Points'!#REF!="","",'Races, Positions & Points'!#REF!) ->  | AV18: =IF('Races, Positions & Points'!#REF!="","",'Races, Positions & Points'!#REF!) ->  | AW18: =IF('Races, Positions & Points'!#REF!="","",'Races, Positions & Points'!#REF!) ->  | AX18: =IF('Races, Positions & Points'!#REF!="","",'Races, Positions & Points'!#REF!) ->  | AY18: =IF('Races, Positions & Points'!#REF!="","",'Races, Positions & Points'!#REF!) ->  | BH18: ='Races, Positions & Points'!E19 -> 21837
A19: ='Races, Positions & Points'!A21 -> Noah Bailey | B19: =IF('Races, Positions & Points'!S21="","",'Races, Positions & Points'!S21) ->  | C19: =IF('Races, Positions & Points'!V21="","",'Races, Positions & Points'!V21) ->  | D19: =IF('Races, Positions & Points'!#REF!="","",'Races, Positions & Points'!#REF!) ->  | E19: =IF('Races, Positions & Points'!Y21="","",'Races, Positions & Points'!Y21) ->  | F19: =IF('Races, Positions & Points'!Z21="","",'Races, Positions & Points'!Z21) ->  | G19: =IF('Races, Positions & Points'!AC21="","",'Races, Positions & Points'!AC21) ->  | H19: =IF('Races, Positions & Points'!AD21="","",'Races, Positions & Points'!AD21) ->  | I19: =IF('Races, Positions & Points'!AG21="","",'Races, Positions & Points'!AG21) ->  | J19: =IF('Races, Positions & Points'!AJ21="","",'Races, Positions & Points'!AJ21) ->  | K19: =IF('Races, Positions & Points'!AM21="","",'Races, Positions & Points'!AM21) ->  | L19: =IF('Races, Positions & Points'!AP21="","",'Races, Positions & Points'!AP21) ->  | M19: =IF('Races, Positions & Points'!AS21="","",'Races, Positions & Points'!AS21) ->  | N19: =IF('Races, Positions & Points'!AV21="","",'Races, Positions & Points'!AV21) ->  | O19: =IF('Races, Positions & Points'!AY21="","",'Races, Positions & Points'!AY21) ->  | P19: =IF('Races, Positions & Points'!BB21="","",'Races, Positions & Points'!BB21) ->  | Q19: =IF('Races, Positions & Points'!BE21="","",'Races, Positions & Points'!BE21) ->  | R19: =IF('Races, Positions & Points'!BH21="","",'Races, Positions & Points'!BH21) ->  | S19: =IF('Races, Positions & Points'!BK21="","",'Races, Positions & Points'!BK21) ->  | T19: =IF('Races, Positions & Points'!BN21="","",'Races, Positions & Points'!BN21) ->  | U19: =IF('Races, Positions & Points'!BQ21="","",'Races, Positions & Points'!BQ21) ->  | V19: =IF('Races, Positions & Points'!BT21="","",'Races, Positions & Points'!BT21) ->  | W19: =IF('Races, Positions & Points'!#REF!="","",'Races, Positions & Points'!#REF!) ->  | X19: =IF('Races, Positions & Points'!BW21="","",'Races, Positions & Points'!BW21) ->  | Y19: =IF('Races, Positions & Points'!BZ21="","",'Races, Positions & Points'!BZ21) ->  | Z19: =IF('Races, Positions & Points'!CG21="","",'Races, Positions & Points'!CG21) ->  | AA19: =IF('Races, Positions & Points'!CC21="","",'Races, Positions & Points'!CC21) ->  | AB19: =IF('Races, Positions & Points'!CJ21="","",'Races, Positions & Points'!CJ21) ->  | AC19: =IF('Races, Positions & Points'!CM21="","",'Races, Positions & Points'!CM21) ->  | AD19: =IF('Races, Positions & Points'!CW21="","",'Races, Positions & Points'!CW21) ->  | AE19: =IF('Races, Positions & Points'!CP21="","",'Races, Positions & Points'!CP21) ->  | AF19: =IF('Races, Positions & Points'!CZ21="","",'Races, Positions & Points'!CZ21) ->  | AG19: =IF('Races, Positions & Points'!#REF!="","",'Races, Positions & Points'!#REF!) ->  | AH19: =IF('Races, Positions & Points'!DC21="","",'Races, Positions & Points'!DC21) ->  | AI19: =IF('Races, Positions & Points'!DF21="","",'Races, Positions & Points'!DF21) ->  | AJ19: =IF('Races, Positions & Points'!DI21="","",'Races, Positions & Points'!DI21) ->  | AK19: =IF('Races, Positions & Points'!DL21="","",'Races, Positions & Points'!DL21) ->  | AL19: =IF('Races, Positions & Points'!DO21="","",'Races, Positions & Points'!DO21) ->  | AM19: =IF('Races, Positions & Points'!DR21="","",'Races, Positions & Points'!DR21) ->  | AN19: =IF('Races, Positions & Points'!DS21="","",'Races, Positions & Points'!DS21) ->  | AO19: =IF('Races, Positions & Points'!DU21="","",'Races, Positions & Points'!DU21) ->  | AP19: =IF('Races, Positions & Points'!DX21="","",'Races, Positions & Points'!DX21) ->  | AQ19: =IF('Races, Positions & Points'!EA21="","",'Races, Positions & Points'!EA21) ->  | AR19: =IF('Races, Positions & Points'!ED21="","",'Races, Positions & Points'!ED21) ->  | AS19: =IF('Races, Positions & Points'!EG21="","",'Races, Positions & Points'!EG21) ->  | AT19: =IF('Races, Positions & Points'!#REF!="","",'Races, Positions & Points'!#REF!) ->  | AU19: =IF('Races, Positions & Points'!#REF!="","",'Races, Positions & Points'!#REF!) ->  | AV19: =IF('Races, Positions & Points'!#REF!="","",'Races, Positions & Points'!#REF!) ->  | AW19: =IF('Races, Positions & Points'!#REF!="","",'Races, Positions & Points'!#REF!) ->  | AX19: =IF('Races, Positions & Points'!#REF!="","",'Races, Positions & Points'!#REF!) ->  | AY19: =IF('Races, Positions & Points'!#REF!="","",'Races, Positions & Points'!#REF!) ->  | BH19: ='Races, Positions & Points'!E21 -> 22198
A20: ='Races, Positions & Points'!A89 -> James Shakeshaft | B20: =IF('Races, Positions & Points'!S89="","",'Races, Positions & Points'!S89) ->  | C20: =IF('Races, Positions & Points'!V89="","",'Races, Positions & Points'!V89) ->  | D20: =IF('Races, Positions & Points'!#REF!="","",'Races, Positions & Points'!#REF!) ->  | E20: =IF('Races, Positions & Points'!Y89="","",'Races, Positions & Points'!Y89) ->  | F20: =IF('Races, Positions & Points'!Z89="","",'Races, Positions & Points'!Z89) ->  | G20: =IF('Races, Positions & Points'!AC89="","",'Races, Positions & Points'!AC89) ->  | H20: =IF('Races, Positions & Points'!AD89="","",'Races, Positions & Points'!AD89) ->  | I20: =IF('Races, Positions & Points'!AG89="","",'Races, Positions & Points'!AG89) ->  | J20: =IF('Races, Positions & Points'!AJ89="","",'Races, Positions & Points'!AJ89) ->  | K20: =IF('Races, Positions & Points'!AM89="","",'Races, Positions & Points'!AM89) ->  | L20: =IF('Races, Positions & Points'!AP89="","",'Races, Positions & Points'!AP89) ->  | M20: =IF('Races, Positions & Points'!AS89="","",'Races, Positions & Points'!AS89) ->  | N20: =IF('Races, Positions & Points'!AV89="","",'Races, Positions & Points'!AV89) ->  | O20: =IF('Races, Positions & Points'!AY89="","",'Races, Positions & Points'!AY89) ->  | P20: =IF('Races, Positions & Points'!BB89="","",'Races, Positions & Points'!BB89) ->  | Q20: =IF('Races, Positions & Points'!BE89="","",'Races, Positions & Points'!BE89) ->  | R20: =IF('Races, Positions & Points'!BH89="","",'Races, Positions & Points'!BH89) ->  | S20: =IF('Races, Positions & Points'!BK89="","",'Races, Positions & Points'!BK89) ->  | T20: =IF('Races, Positions & Points'!BN89="","",'Races, Positions & Points'!BN89) ->  | U20: =IF('Races, Positions & Points'!BQ89="","",'Races, Positions & Points'!BQ89) ->  | V20: =IF('Races, Positions & Points'!BT89="","",'Races, Positions & Points'!BT89) ->  | W20: =IF('Races, Positions & Points'!#REF!="","",'Races, Positions & Points'!#REF!) ->  | X20: =IF('Races, Positions & Points'!BW89="","",'Races, Positions & Points'!BW89) ->  | Y20: =IF('Races, Positions & Points'!BZ89="","",'Races, Positions & Points'!BZ89) ->  | Z20: =IF('Races, Positions & Points'!CG89="","",'Races, Positions & Points'!CG89) ->  | AA20: =IF('Races, Positions & Points'!CC89="","",'Races, Positions & Points'!CC89) -> 312.54 | AB20: =IF('Races, Positions & Points'!CJ89="","",'Races, Positions & Points'!CJ89) ->  | AC20: =IF('Races, Positions & Points'!CM89="","",'Races, Positions & Points'!CM89) ->  | AD20: =IF('Races, Positions & Points'!CW89="","",'Races, Positions & Points'!CW89) ->  | AE20: =IF('Races, Positions & Points'!CP89="","",'Races, Positions & Points'!CP89) ->  | AF20: =IF('Races, Positions & Points'!CZ89="","",'Races, Positions & Points'!CZ89) ->  | AG20: =IF('Races, Positions & Points'!#REF!="","",'Races, Positions & Points'!#REF!) ->  | AH20: =IF('Races, Positions & Points'!DC89="","",'Races, Positions & Points'!DC89) ->  | AI20: =IF('Races, Positions & Points'!DF89="","",'Races, Positions & Points'!DF89) ->  | AJ20: =IF('Races, Positions & Points'!DI89="","",'Races, Positions & Points'!DI89) ->  | AK20: =IF('Races, Positions & Points'!DL89="","",'Races, Positions & Points'!DL89) ->  | AL20: =IF('Races, Positions & Points'!DO89="","",'Races, Positions & Points'!DO89) ->  | AM20: =IF('Races, Positions & Points'!DR89="","",'Races, Positions & Points'!DR89) ->  | AN20: =IF('Races, Positions & Points'!DS89="","",'Races, Positions & Points'!DS89) ->  | AO20: =IF('Races, Positions & Points'!DU89="","",'Races, Positions & Points'!DU89) ->  | AP20: =IF('Races, Positions & Points'!DX89="","",'Races, Positions & Points'!DX89) ->  | AQ20: =IF('Races, Positions & Points'!EA89="","",'Races, Positions & Points'!EA89) ->  | AR20: =IF('Races, Positions & Points'!ED89="","",'Races, Positions & Points'!ED89) ->  | AS20: =IF('Races, Positions & Points'!EG89="","",'Races, Positions & Points'!EG89) ->  | AT20: =IF('Races, Positions & Points'!#REF!="","",'Races, Positions & Points'!#REF!) ->  | AU20: =IF('Races, Positions & Points'!#REF!="","",'Races, Positions & Points'!#REF!) ->  | AV20: =IF('Races, Positions & Points'!#REF!="","",'Races, Positions & Points'!#REF!) ->  | AW20: =IF('Races, Positions & Points'!#REF!="","",'Races, Positions & Points'!#REF!) ->  | AX20: =IF('Races, Positions & Points'!#REF!="","",'Races, Positions & Points'!#REF!) ->  | AY20: =IF('Races, Positions & Points'!#REF!="","",'Races, Positions & Points'!#REF!) ->  | BH20: ='Races, Positions & Points'!E89 -> Day
CB21: =IF(MIN(C21,K21,L21,AH21,AI21,,AK21,AL21)>0,MIN(C21,K21,L21,AH21,AI21,,AK21,AL21),"") ->  | CC21: =IF(MIN(E21,F21,G21,H21,Z21,AF21,AG21,AP21,AQ21,AU21)>0,MIN(E21,F21,G21,H21,Z21,AF21,AG21,AP21,AQ21,AU21),"") ->  | CD21: =IF(MIN(T21,V21)>0,MIN(T21,V21),"") ->  | CE21: =IF(MIN(W21,X21)>0,MIN(W21,X21),"") ->  | CF21: =IF(MIN(B21,M21,N21,AR21,AS21)>0,MIN(B21,M21,N21,AR21,AS21),"") ->  | CG21: =IF(MIN(D21,O21,AB21,AC21,AE21)>0,MIN(D21,O21,AB21,AC21,AE21),"") ->  | CH21: =IF(MIN(I21,J21)>0,MIN(I21,J21),"") ->  | CI21: =IF(Q21>0,Q21,"") ->  | CJ21: =IF(MIN(S21,AM21,AT21,AY21)>0,MIN(S21,AM21,AT21,AY21),"") ->  | CK21: =IF(MIN(P21,R21)>0,MIN(P21,R21),"") ->  | CL21: =IF(U21>0,U21,"") ->  | CM21: =IF(MIN(Y21,AO21)>0,MIN(Y21,AO21),"") ->  | CN21: =IF(AA21>0,AA21,"") ->  | CO21: =IF(AD21>0,AD21,"") ->  | CP21: =IF(AJ21>0,AJ21,"") ->  | CQ21: =IF(MIN(AV21,AW21)>0,MIN(AV21,AW21),"") ->  | CS21: =IF(MIN(DF21:DL21)>0,MIN(DF21:DL21),"") ->  | CT21: =IF(ISERROR(SMALL(DF21:DL21,2)),"",SMALL(DF21:DL21,2)) ->  | CU21: =IF(ISERROR(SMALL(DF21:DL21,2)),"",AVERAGE(CS21,CT21)) ->  | CV21: =IF(ISERROR(CS21*1.2),"",IF(CS21<50,CS21+10,CS21*1.2)) ->  | CX21: =IF(MIN(DC21:DE21)>0,MIN(DC21:DE21),"") ->  | CY21: =IF(ISERROR(SMALL(DC21:DE21,2)),"",SMALL(DC21:DE21,2)) ->  | CZ21: =IF(ISERROR(SMALL(DC21:DE21,2)),"",AVERAGE(CX21,CY21)) ->  | DA21: =IF(ISERROR(CX21*1.2),"",IF(CX21<50,CX21+10,CX21*1.2)) ->  | DC21: =IF(MIN(C21,K21,L21,AH21,AI21,AK21,AL21)>0,MIN(C21,K21,L21,AH21,AI21,AK21,AL21),"") ->  | DD21: =IF(MIN(Z21,AF21,AG21,AP21,AQ21,AU21)>0,MIN(Z21,AF21,AG21,AP21,AQ21,AU21),"") ->  | DE21: =IF(MIN(T21,V21)>0,MIN(T21,V21),"") ->  | DF21: =IF(MIN(M21,N21,AR21,AS21)>0,MIN(M21,N21,AR21,AS21),"") ->  | DG21: =IF(MIN(O21,AE21),MIN(O21,AE21),"") ->  | DH21: =IF(J21>0,J21,"") ->  | DI21: =IF(MIN(AM21,AY21)>0,MIN(AM21,AY21),"") ->  | DJ21: =IF(R21>0,R21,"") ->  | DK21: =IF(AO21>0,AO21,"") ->  | DL21: =IF(MIN(AV21,AW21),MIN(AV21,AW21),"") -> 
A22: ='Races, Positions & Points'!A24 -> Rachel Bill | B22: =IF('Races, Positions & Points'!S24="","",'Races, Positions & Points'!S24) ->  | C22: =IF('Races, Positions & Points'!V24="","",'Races, Positions & Points'!V24) ->  | D22: =IF('Races, Positions & Points'!#REF!="","",'Races, Positions & Points'!#REF!) ->  | E22: =IF('Races, Positions & Points'!Y24="","",'Races, Positions & Points'!Y24) ->  | F22: =IF('Races, Positions & Points'!Z24="","",'Races, Positions & Points'!Z24) ->  | G22: =IF('Races, Positions & Points'!AC24="","",'Races, Positions & Points'!AC24) ->  | H22: =IF('Races, Positions & Points'!AD24="","",'Races, Positions & Points'!AD24) ->  | I22: =IF('Races, Positions & Points'!AG24="","",'Races, Positions & Points'!AG24) ->  | J22: =IF('Races, Positions & Points'!AJ24="","",'Races, Positions & Points'!AJ24) ->  | K22: =IF('Races, Positions & Points'!AM24="","",'Races, Positions & Points'!AM24) ->  | L22: =IF('Races, Positions & Points'!AP24="","",'Races, Positions & Points'!AP24) ->  | M22: =IF('Races, Positions & Points'!AS24="","",'Races, Positions & Points'!AS24) ->  | N22: =IF('Races, Positions & Points'!AV24="","",'Races, Positions & Points'!AV24) ->  | O22: =IF('Races, Positions & Points'!AY24="","",'Races, Positions & Points'!AY24) ->  | P22: =IF('Races, Positions & Points'!BB24="","",'Races, Positions & Points'!BB24) ->  | Q22: =IF('Races, Positions & Points'!BE24="","",'Races, Positions & Points'!BE24) ->  | R22: =IF('Races, Positions & Points'!BH24="","",'Races, Positions & Points'!BH24) ->  | S22: =IF('Races, Positions & Points'!BK24="","",'Races, Positions & Points'!BK24) ->  | T22: =IF('Races, Positions & Points'!BN24="","",'Races, Positions & Points'!BN24) ->  | U22: =IF('Races, Positions & Points'!BQ24="","",'Races, Positions & Points'!BQ24) ->  | V22: =IF('Races, Positions & Points'!BT24="","",'Races, Positions & Points'!BT24) ->  | W22: =IF('Races, Positions & Points'!#REF!="","",'Races, Positions & Points'!#REF!) ->  | X22: =IF('Races, Positions & Points'!BW24="","",'Races, Positions & Points'!BW24) ->  | Y22: =IF('Races, Positions & Points'!BZ24="","",'Races, Positions & Points'!BZ24) ->  | Z22: =IF('Races, Positions & Points'!CG24="","",'Races, Positions & Points'!CG24) ->  | AA22: =IF('Races, Positions & Points'!CC24="","",'Races, Positions & Points'!CC24) ->  | AB22: =IF('Races, Positions & Points'!CJ24="","",'Races, Positions & Points'!CJ24) ->  | AC22: =IF('Races, Positions & Points'!CM24="","",'Races, Positions & Points'!CM24) ->  | AD22: =IF('Races, Positions & Points'!CW24="","",'Races, Positions & Points'!CW24) ->  | AE22: =IF('Races, Positions & Points'!CP24="","",'Races, Positions & Points'!CP24) ->  | AF22: =IF('Races, Positions & Points'!CZ24="","",'Races, Positions & Points'!CZ24) ->  | AG22: =IF('Races, Positions & Points'!#REF!="","",'Races, Positions & Points'!#REF!) ->  | AH22: =IF('Races, Positions & Points'!DC24="","",'Races, Positions & Points'!DC24) ->  | AI22: =IF('Races, Positions & Points'!DF24="","",'Races, Positions & Points'!DF24) ->  | AJ22: =IF('Races, Positions & Points'!DI24="","",'Races, Positions & Points'!DI24) ->  | AK22: =IF('Races, Positions & Points'!DL24="","",'Races, Positions & Points'!DL24) ->  | AL22: =IF('Races, Positions & Points'!DO24="","",'Races, Positions & Points'!DO24) ->  | AM22: =IF('Races, Positions & Points'!DR24="","",'Races, Positions & Points'!DR24) ->  | AN22: =IF('Races, Positions & Points'!DS24="","",'Races, Positions & Points'!DS24) ->  | AO22: =IF('Races, Positions & Points'!DU24="","",'Races, Positions & Points'!DU24) ->  | AP22: =IF('Races, Positions & Points'!DX24="","",'Races, Positions & Points'!DX24) ->  | AQ22: =IF('Races, Positions & Points'!EA24="","",'Races, Positions & Points'!EA24) ->  | AR22: =IF('Races, Positions & Points'!ED24="","",'Races, Positions & Points'!ED24) ->  | AS22: =IF('Races, Positions & Points'!EG24="","",'Races, Positions & Points'!EG24) ->  | AT22: =IF('Races, Positions & Points'!#REF!="","",'Races, Positions & Points'!#REF!) ->  | AU22: =IF('Races, Positions & Points'!#REF!="","",'Races, Positions & Points'!#REF!) ->  | AV22: =IF('Races, Positions & Points'!#REF!="","",'Races, Positions & Points'!#REF!) ->  | AW22: =IF('Races, Positions & Points'!#REF!="","",'Races, Positions & Points'!#REF!) ->  | AX22: =IF('Races, Positions & Points'!#REF!="","",'Races, Positions & Points'!#REF!) ->  | AY22: =IF('Races, Positions & Points'!#REF!="","",'Races, Positions & Points'!#REF!) ->  | BA22: =SUMPRODUCT(--(B$4:AY$4="In"),--(B$3:AY$3>5),--(B$5:AY$5="Y"),--(B22:AY22<>"")) ->  | BB22: =SUMPRODUCT(--(B$4:AY$4="Out"),--(B$3:AY$3>5),--(B$5:AY$5="Y"),--(B22:AY22<>"")) ->  | BC22: =SUMPRODUCT(--(B$4:AY$4="In"),--(B$3:AY$3=5),--(B$5:AY$5="Y"),--(B22:AY22<>"")) ->  | BD22: =SUMPRODUCT(--(B$4:AY$4="Out"),--(B$3:AY$3=5),--(B$5:AY$5="Y"),--(B22:AY22<>"")) ->  | BE22: =SUMPRODUCT(--(B$4:AY$4="In"),--(B$3:AY$3=0),--(B$5:AY$5="Y"),--(B22:AY22<>"")) ->  | BF22: =SUMPRODUCT(--(B$4:AY$4="Out"),--(B$3:AY$3=0),--(B$5:AY$5="Y"),--(B22:AY22<>"")) ->  | BH22: ='Races, Positions & Points'!E24 -> 20168 | BI22: ='Races, Positions & Points'!#REF! ->  | BJ22: =IF(MIN(CF22:CQ22)<999.99,IF(MIN(CF22:CQ22)>0,MIN(CF22:CQ22),""),"") ->  | BK22: =IF(ISERROR(SMALL(CF22:CQ22,2)),"",SMALL(CF22:CQ22,2)) ->  | BL22: =IF(ISERROR(SMALL(CF22:CQ22,2)),"",ROUND(AVERAGE(BJ22:BK22),2)) ->  | BM22: =IF(BI22<999.99,IF(AVERAGE(BI22,BJ22)>0,ROUND(AVERAGE(BI22,BJ22),2),""),"") ->  | BN22: =IF(ISERROR(BJ22*1.2),"",IF(BJ22<50,BJ22+10,ROUND(BJ22*1.2,2))) ->  | BO22: =MIN(BI22,BL22,BM22,BN22) ->  | BP22: =IF(BI22*0.2<10,BI22+10,IF(BI22*1.2>999.99,999.99,ROUND(BI22*1.2,2))) ->  | BQ22: =MIN(BL22,BN22,BP22) ->  | BS22: =IF(MIN(CB22:CE22)<999.99,IF(MIN(CB22:CE22)>0,MIN(CB22:CE22),""),"") ->  | BT22: =IF(ISERROR(SMALL(CB22:CE22,2)),"",SMALL(CB22:CE22,2)) ->  | BU22: =IF(ISERROR(SMALL(CB22:CE22,2)),"",ROUND(AVERAGE(BS22:BT22),2)) ->  | BV22: =IF(BI22<999.99,IF(AVERAGE(BI22,BS22)>0,ROUND(AVERAGE(BI22,BS22),2),""),"") ->  | BW22: =IF(ISERROR(BS22*1.2),"",IF(BS22<50,BS22+10,ROUND(BS22*1.2,2))) ->  | BX22: =MIN(BI22,BU22,BV22,BW22) ->  | BY22: =IF(BI22*0.2<10,BI22+10,IF(BI22*1.2>999.99,999.99,ROUND(BI22*1.2,2))) ->  | BZ22: =MIN(BU22,BW22,BY22) ->  | CB22: =IF(MIN(C22,K22,L22,AH22,AI22,AK22,AL22)>0,MIN(C22,K22,L22,AH22,AI22,AK22,AL22),"") ->  | CS22: =IF(MIN(DF22:DL22)>0,MIN(DF22:DL22),"") ->  | CT22: =IF(ISERROR(SMALL(DF22:DL22,2)),"",SMALL(DF22:DL22,2)) ->  | CU22: =IF(ISERROR(SMALL(DF22:DL22,2)),"",AVERAGE(CS22,CT22)) ->  | CV22: =IF(ISERROR(CS22*1.2),"",IF(CS22<50,CS22+10,IF(CS22<999.99,CS22*1.2,""))) ->  | CX22: =IF(MIN(DC22:DE22)>0,MIN(DC22:DE22),"") ->  | CY22: =IF(ISERROR(SMALL(DC22:DE22,2)),"",SMALL(DC22:DE22,2)) ->  | CZ22: =IF(ISERROR(SMALL(DC22:DE22,2)),"",AVERAGE(CX22,CY22)) ->  | DA22: =IF(ISERROR(CX22*1.2),"",IF(CX22<50,CX22+10,CX22*1.2)) ->  | DK22: =IF(AO22>0,AO22,"") -> 
A23: ='Races, Positions & Points'!A25 -> Lucy Deller | B23: =IF('Races, Positions & Points'!S25="","",'Races, Positions & Points'!S25) ->  | C23: =IF('Races, Positions & Points'!V25="","",'Races, Positions & Points'!V25) ->  | D23: =IF('Races, Positions & Points'!#REF!="","",'Races, Positions & Points'!#REF!) ->  | E23: =IF('Races, Positions & Points'!Y25="","",'Races, Positions & Points'!Y25) ->  | F23: =IF('Races, Positions & Points'!Z25="","",'Races, Positions & Points'!Z25) ->  | G23: =IF('Races, Positions & Points'!AC25="","",'Races, Positions & Points'!AC25) ->  | H23: =IF('Races, Positions & Points'!AD25="","",'Races, Positions & Points'!AD25) ->  | I23: =IF('Races, Positions & Points'!AG25="","",'Races, Positions & Points'!AG25) ->  | J23: =IF('Races, Positions & Points'!AJ25="","",'Races, Positions & Points'!AJ25) ->  | K23: =IF('Races, Positions & Points'!AM25="","",'Races, Positions & Points'!AM25) ->  | L23: =IF('Races, Positions & Points'!AP25="","",'Races, Positions & Points'!AP25) ->  | M23: =IF('Races, Positions & Points'!AS25="","",'Races, Positions & Points'!AS25) ->  | N23: =IF('Races, Positions & Points'!AV25="","",'Races, Positions & Points'!AV25) ->  | O23: =IF('Races, Positions & Points'!AY25="","",'Races, Positions & Points'!AY25) ->  | P23: =IF('Races, Positions & Points'!BB25="","",'Races, Positions & Points'!BB25) ->  | Q23: =IF('Races, Positions & Points'!BE25="","",'Races, Positions & Points'!BE25) ->  | R23: =IF('Races, Positions & Points'!BH25="","",'Races, Positions & Points'!BH25) ->  | S23: =IF('Races, Positions & Points'!BK25="","",'Races, Positions & Points'!BK25) ->  | T23: =IF('Races, Positions & Points'!BN25="","",'Races, Positions & Points'!BN25) ->  | U23: =IF('Races, Positions & Points'!BQ25="","",'Races, Positions & Points'!BQ25) ->  | V23: =IF('Races, Positions & Points'!BT25="","",'Races, Positions & Points'!BT25) ->  | W23: =IF('Races, Positions & Points'!#REF!="","",'Races, Positions & Points'!#REF!) ->  | X23: =IF('Races, Positions & Points'!BW25="","",'Races, Positions & Points'!BW25) ->  | Y23: =IF('Races, Positions & Points'!BZ25="","",'Races, Positions & Points'!BZ25) ->  | Z23: =IF('Races, Positions & Points'!CG25="","",'Races, Positions & Points'!CG25) ->  | AA23: =IF('Races, Positions & Points'!CC25="","",'Races, Positions & Points'!CC25) ->  | AB23: =IF('Races, Positions & Points'!CJ25="","",'Races, Positions & Points'!CJ25) ->  | AC23: =IF('Races, Positions & Points'!CM25="","",'Races, Positions & Points'!CM25) ->  | AD23: =IF('Races, Positions & Points'!CW25="","",'Races, Positions & Points'!CW25) ->  | AE23: =IF('Races, Positions & Points'!CP25="","",'Races, Positions & Points'!CP25) ->  | AF23: =IF('Races, Positions & Points'!CZ25="","",'Races, Positions & Points'!CZ25) ->  | AG23: =IF('Races, Positions & Points'!#REF!="","",'Races, Positions & Points'!#REF!) ->  | AH23: =IF('Races, Positions & Points'!DC25="","",'Races, Positions & Points'!DC25) ->  | AI23: =IF('Races, Positions & Points'!DF25="","",'Races, Positions & Points'!DF25) ->  | AJ23: =IF('Races, Positions & Points'!DI25="","",'Races, Positions & Points'!DI25) ->  | AK23: =IF('Races, Positions & Points'!DL25="","",'Races, Positions & Points'!DL25) ->  | AL23: =IF('Races, Positions & Points'!DO25="","",'Races, Positions & Points'!DO25) ->  | AM23: =IF('Races, Positions & Points'!DR25="","",'Races, Positions & Points'!DR25) ->  | AN23: =IF('Races, Positions & Points'!DS25="","",'Races, Positions & Points'!DS25) ->  | AO23: =IF('Races, Positions & Points'!DU25="","",'Races, Positions & Points'!DU25) ->  | AP23: =IF('Races, Positions & Points'!DX25="","",'Races, Positions & Points'!DX25) ->  | AQ23: =IF('Races, Positions & Points'!EA25="","",'Races, Positions & Points'!EA25) ->  | AR23: =IF('Races, Positions & Points'!ED25="","",'Races, Positions & Points'!ED25) ->  | AS23: =IF('Races, Positions & Points'!EG25="","",'Races, Positions & Points'!EG25) ->  | AT23: =IF('Races, Positions & Points'!#REF!="","",'Races, Positions & Points'!#REF!) ->  | AU23: =IF('Races, Positions & Points'!#REF!="","",'Races, Positions & Points'!#REF!) ->  | AV23: =IF('Races, Positions & Points'!#REF!="","",'Races, Positions & Points'!#REF!) ->  | AW23: =IF('Races, Positions & Points'!#REF!="","",'Races, Positions & Points'!#REF!) ->  | AX23: =IF('Races, Positions & Points'!#REF!="","",'Races, Positions & Points'!#REF!) ->  | AY23: =IF('Races, Positions & Points'!#REF!="","",'Races, Positions & Points'!#REF!) ->  | BH23: ='Races, Positions & Points'!E25 -> 17888 | BI23: ='Races, Positions & Points'!#REF! ->  | BJ23: =IF(MIN(CF23:CQ23)<999.99,IF(MIN(CF23:CQ23)>0,MIN(CF23:CQ23),""),"") ->  | BK23: =IF(ISERROR(SMALL(CF23:CQ23,2)),"",SMALL(CF23:CQ23,2)) ->  | BL23: =IF(ISERROR(SMALL(CF23:CQ23,2)),"",ROUND(AVERAGE(BJ23:BK23),2)) ->  | BM23: =IF(BI23<999.99,IF(AVERAGE(BI23,BJ23)>0,ROUND(AVERAGE(BI23,BJ23),2),""),"") ->  | BN23: =IF(ISERROR(BJ23*1.2),"",IF(BJ23<50,BJ23+10,ROUND(BJ23*1.2,2))) ->  | BO23: =MIN(BI23,BL23,BM23,BN23) ->  | BP23: =IF(BI23*0.2<10,BI23+10,IF(BI23*1.2>999.99,999.99,ROUND(BI23*1.2,2))) ->  | BQ23: =MIN(BL23,BN23,BP23) ->  | BS23: =IF(MIN(CB23:CE23)<999.99,IF(MIN(CB23:CE23)>0,MIN(CB23:CE23),""),"") ->  | BT23: =IF(ISERROR(SMALL(CB23:CE23,2)),"",SMALL(CB23:CE23,2)) ->  | BU23: =IF(ISERROR(SMALL(CB23:CE23,2)),"",ROUND(AVERAGE(BS23:BT23),2)) ->  | BV23: =IF(BI23<999.99,IF(AVERAGE(BI23,BS23)>0,ROUND(AVERAGE(BI23,BS23),2),""),"") ->  | BW23: =IF(ISERROR(BS23*1.2),"",IF(BS23<50,BS23+10,ROUND(BS23*1.2,2))) ->  | BX23: =MIN(BI23,BU23,BV23,BW23) ->  | BY23: =IF(BI23*0.2<10,BI23+10,IF(BI23*1.2>999.99,999.99,ROUND(BI23*1.2,2))) ->  | BZ23: =MIN(BU23,BW23,BY23) ->  | CS23: =IF(MIN(DF23:DL23)>0,MIN(DF23:DL23),"") ->  | CT23: =IF(ISERROR(SMALL(DF23:DL23,2)),"",SMALL(DF23:DL23,2)) ->  | CX23: =IF(MIN(DC23:DE23)>0,MIN(DC23:DE23),"") ->  | CY23: =IF(ISERROR(SMALL(DC23:DE23,2)),"",SMALL(DC23:DE23,2)) ->  | CZ23: =IF(ISERROR(SMALL(DC23:DE23,2)),"",AVERAGE(CX23,CY23)) ->  | DA23: =IF(ISERROR(CX23*1.2),"",IF(CX23<50,CX23+10,CX23*1.2)) -> 
A24: ='Races, Positions & Points'!A26 -> Helena Newboult | B24: =IF('Races, Positions & Points'!S26="","",'Races, Positions & Points'!S26) ->  | C24: =IF('Races, Positions & Points'!V26="","",'Races, Positions & Points'!V26) ->  | D24: =IF('Races, Positions & Points'!#REF!="","",'Races, Positions & Points'!#REF!) ->  | E24: =IF('Races, Positions & Points'!Y26="","",'Races, Positions & Points'!Y26) ->  | F24: =IF('Races, Positions & Points'!Z26="","",'Races, Positions & Points'!Z26) ->  | G24: =IF('Races, Positions & Points'!AC26="","",'Races, Positions & Points'!AC26) ->  | H24: =IF('Races, Positions & Points'!AD26="","",'Races, Positions & Points'!AD26) ->  | I24: =IF('Races, Positions & Points'!AG26="","",'Races, Positions & Points'!AG26) ->  | J24: =IF('Races, Positions & Points'!AJ26="","",'Races, Positions & Points'!AJ26) -> 26.82 | K24: =IF('Races, Positions & Points'!AM26="","",'Races, Positions & Points'!AM26) ->  | L24: =IF('Races, Positions & Points'!AP26="","",'Races, Positions & Points'!AP26) ->  | M24: =IF('Races, Positions & Points'!AS26="","",'Races, Positions & Points'!AS26) ->  | N24: =IF('Races, Positions & Points'!AV26="","",'Races, Positions & Points'!AV26) -> 12.67 | O24: =IF('Races, Positions & Points'!AY26="","",'Races, Positions & Points'!AY26) -> 10 | P24: =IF('Races, Positions & Points'!BB26="","",'Races, Positions & Points'!BB26) ->  | Q24: =IF('Races, Positions & Points'!BE26="","",'Races, Positions & Points'!BE26) ->  | R24: =IF('Races, Positions & Points'!BH26="","",'Races, Positions & Points'!BH26) -> 18.3 | S24: =IF('Races, Positions & Points'!BK26="","",'Races, Positions & Points'!BK26) ->  | T24: =IF('Races, Positions & Points'!BN26="","",'Races, Positions & Points'!BN26) ->  | U24: =IF('Races, Positions & Points'!BQ26="","",'Races, Positions & Points'!BQ26) ->  | V24: =IF('Races, Positions & Points'!BT26="","",'Races, Positions & Points'!BT26) ->  | W24: =IF('Races, Positions & Points'!#REF!="","",'Races, Positions & Points'!#REF!) ->  | X24: =IF('Races, Positions & Points'!BW26="","",'Races, Positions & Points'!BW26) ->  | Y24: =IF('Races, Positions & Points'!BZ26="","",'Races, Positions & Points'!BZ26) ->  | Z24: =IF('Races, Positions & Points'!CG26="","",'Races, Positions & Points'!CG26) ->  | AA24: =IF('Races, Positions & Points'!CC26="","",'Races, Positions & Points'!CC26) ->  | AB24: =IF('Races, Positions & Points'!CJ26="","",'Races, Positions & Points'!CJ26) -> 14.6 | AC24: =IF('Races, Positions & Points'!CM26="","",'Races, Positions & Points'!CM26) ->  | AD24: =IF('Races, Positions & Points'!CW26="","",'Races, Positions & Points'!CW26) ->  | AE24: =IF('Races, Positions & Points'!CP26="","",'Races, Positions & Points'!CP26) -> 123.86 | AF24: =IF('Races, Positions & Points'!CZ26="","",'Races, Positions & Points'!CZ26) -> 22.31 | AG24: =IF('Races, Positions & Points'!#REF!="","",'Races, Positions & Points'!#REF!) ->  | AH24: =IF('Races, Positions & Points'!DC26="","",'Races, Positions & Points'!DC26) ->  | AI24: =IF('Races, Positions & Points'!DF26="","",'Races, Positions & Points'!DF26) ->  | AJ24: =IF('Races, Positions & Points'!DI26="","",'Races, Positions & Points'!DI26) ->  | AK24: =IF('Races, Positions & Points'!DL26="","",'Races, Positions & Points'!DL26) ->  | AL24: =IF('Races, Positions & Points'!DO26="","",'Races, Positions & Points'!DO26) ->  | AM24: =IF('Races, Positions & Points'!DR26="","",'Races, Positions & Points'!DR26) ->  | AN24: =IF('Races, Positions & Points'!DS26="","",'Races, Positions & Points'!DS26) ->  | AO24: =IF('Races, Positions & Points'!DU26="","",'Races, Positions & Points'!DU26) ->  | AP24: =IF('Races, Positions & Points'!DX26="","",'Races, Positions & Points'!DX26) ->  | AQ24: =IF('Races, Positions & Points'!EA26="","",'Races, Positions & Points'!EA26) ->  | AR24: =IF('Races, Positions & Points'!ED26="","",'Races, Positions & Points'!ED26) ->  | AS24: =IF('Races, Positions & Points'!EG26="","",'Races, Positions & Points'!EG26) ->  | AT24: =IF('Races, Positions & Points'!#REF!="","",'Races, Positions & Points'!#REF!) ->  | AU24: =IF('Races, Positions & Points'!#REF!="","",'Races, Positions & Points'!#REF!) ->  | AV24: =IF('Races, Positions & Points'!#REF!="","",'Races, Positions & Points'!#REF!) ->  | AW24: =IF('Races, Positions & Points'!#REF!="","",'Races, Positions & Points'!#REF!) ->  | AX24: =IF('Races, Positions & Points'!#REF!="","",'Races, Positions & Points'!#REF!) ->  | AY24: =IF('Races, Positions & Points'!#REF!="","",'Races, Positions & Points'!#REF!) ->  | BH24: ='Races, Positions & Points'!E26 -> 20696 | BI24: ='Races, Positions & Points'!#REF! ->  | CF24: 12.67 | CH24: 26.82 | CK24: 18.3 | CS24: =IF(MIN(DF24:DL24)>0,MIN(DF24:DL24),"") ->  | CT24: =IF(ISERROR(SMALL(DF24:DL24,2)),"",SMALL(DF24:DL24,2)) ->  | CX24: =IF(MIN(DC24:DE24)>0,MIN(DC24:DE24),"") ->  | CY24: =IF(ISERROR(SMALL(DC24:DE24,2)),"",SMALL(DC24:DE24,2)) ->  | CZ24: =IF(ISERROR(SMALL(DC24:DE24,2)),"",AVERAGE(CX24,CY24)) ->  | DA24: =IF(ISERROR(CX24*1.2),"",IF(CX24<50,CX24+10,CX24*1.2)) ->  | DF24: 12.67 | DG24: 10 | DH24: 26.82 | DJ24: 18.3
A25: ='Races, Positions & Points'!A27 -> Rowan Vernon | B25: =IF('Races, Positions & Points'!S27="","",'Races, Positions & Points'!S27) ->  | C25: =IF('Races, Positions & Points'!V27="","",'Races, Positions & Points'!V27) ->  | D25: =IF('Races, Positions & Points'!#REF!="","",'Races, Positions & Points'!#REF!) ->  | E25: =IF('Races, Positions & Points'!Y27="","",'Races, Positions & Points'!Y27) ->  | F25: =IF('Races, Positions & Points'!Z27="","",'Races, Positions & Points'!Z27) ->  | G25: =IF('Races, Positions & Points'!AC27="","",'Races, Positions & Points'!AC27) ->  | H25: =IF('Races, Positions & Points'!AD27="","",'Races, Positions & Points'!AD27) ->  | I25: =IF('Races, Positions & Points'!AG27="","",'Races, Positions & Points'!AG27) ->  | J25: =IF('Races, Positions & Points'!AJ27="","",'Races, Positions & Points'!AJ27) ->  | K25: =IF('Races, Positions & Points'!AM27="","",'Races, Positions & Points'!AM27) ->  | L25: =IF('Races, Positions & Points'!AP27="","",'Races, Positions & Points'!AP27) ->  | M25: =IF('Races, Positions & Points'!AS27="","",'Races, Positions & Points'!AS27) ->  | N25: =IF('Races, Positions & Points'!AV27="","",'Races, Positions & Points'!AV27) ->  | O25: =IF('Races, Positions & Points'!AY27="","",'Races, Positions & Points'!AY27) ->  | P25: =IF('Races, Positions & Points'!BB27="","",'Races, Positions & Points'!BB27) ->  | Q25: =IF('Races, Positions & Points'!BE27="","",'Races, Positions & Points'!BE27) ->  | R25: =IF('Races, Positions & Points'!BH27="","",'Races, Positions & Points'!BH27) ->  | S25: =IF('Races, Positions & Points'!BK27="","",'Races, Positions & Points'!BK27) ->  | T25: =IF('Races, Positions & Points'!BN27="","",'Races, Positions & Points'!BN27) ->  | U25: =IF('Races, Positions & Points'!BQ27="","",'Races, Positions & Points'!BQ27) ->  | V25: =IF('Races, Positions & Points'!BT27="","",'Races, Positions & Points'!BT27) ->  | W25: =IF('Races, Positions & Points'!#REF!="","",'Races, Positions & Points'!#REF!) ->  | X25: =IF('Races, Positions & Points'!BW27="","",'Races, Positions & Points'!BW27) ->  | Y25: =IF('Races, Positions & Points'!BZ27="","",'Races, Positions & Points'!BZ27) ->  | Z25: =IF('Races, Positions & Points'!CG27="","",'Races, Positions & Points'!CG27) ->  | AA25: =IF('Races, Positions & Points'!CC27="","",'Races, Positions & Points'!CC27) ->  | AB25: =IF('Races, Positions & Points'!CJ27="","",'Races, Positions & Points'!CJ27) ->  | AC25: =IF('Races, Positions & Points'!CM27="","",'Races, Positions & Points'!CM27) ->  | AD25: =IF('Races, Positions & Points'!CW27="","",'Races, Positions & Points'!CW27) ->  | AE25: =IF('Races, Positions & Points'!CP27="","",'Races, Positions & Points'!CP27) ->  | AF25: =IF('Races, Positions & Points'!CZ27="","",'Races, Positions & Points'!CZ27) ->  | AG25: =IF('Races, Positions & Points'!#REF!="","",'Races, Positions & Points'!#REF!) ->  | AH25: =IF('Races, Positions & Points'!DC27="","",'Races, Positions & Points'!DC27) ->  | AI25: =IF('Races, Positions & Points'!DF27="","",'Races, Positions & Points'!DF27) ->  | AJ25: =IF('Races, Positions & Points'!DI27="","",'Races, Positions & Points'!DI27) ->  | AK25: =IF('Races, Positions & Points'!DL27="","",'Races, Positions & Points'!DL27) ->  | AL25: =IF('Races, Positions & Points'!DO27="","",'Races, Positions & Points'!DO27) ->  | AM25: =IF('Races, Positions & Points'!DR27="","",'Races, Positions & Points'!DR27) ->  | AN25: =IF('Races, Positions & Points'!DS27="","",'Races, Positions & Points'!DS27) ->  | AO25: =IF('Races, Positions & Points'!DU27="","",'Races, Positions & Points'!DU27) ->  | AP25: =IF('Races, Positions & Points'!DX27="","",'Races, Positions & Points'!DX27) ->  | AQ25: =IF('Races, Positions & Points'!EA27="","",'Races, Positions & Points'!EA27) ->  | AR25: =IF('Races, Positions & Points'!ED27="","",'Races, Positions & Points'!ED27) ->  | AS25: =IF('Races, Positions & Points'!EG27="","",'Races, Positions & Points'!EG27) ->  | AT25: =IF('Races, Positions & Points'!#REF!="","",'Races, Positions & Points'!#REF!) ->  | AU25: =IF('Races, Positions & Points'!#REF!="","",'Races, Positions & Points'!#REF!) ->  | AV25: =IF('Races, Positions & Points'!#REF!="","",'Races, Positions & Points'!#REF!) ->  | AW25: =IF('Races, Positions & Points'!#REF!="","",'Races, Positions & Points'!#REF!) ->  | AX25: =IF('Races, Positions & Points'!#REF!="","",'Races, Positions & Points'!#REF!) ->  | AY25: =IF('Races, Positions & Points'!#REF!="","",'Races, Positions & Points'!#REF!) ->  | BH25: ='Races, Positions & Points'!E27 -> 13381 | BI25: ='Races, Positions & Points'!#REF! ->  | CS25: =IF(MIN(DF25:DL25)>0,MIN(DF25:DL25),"") ->  | CT25: =IF(ISERROR(SMALL(DF25:DL25,2)),"",SMALL(DF25:DL25,2)) ->  | CX25: =IF(MIN(DC25:DE25)>0,MIN(DC25:DE25),"") ->  | CY25: =IF(ISERROR(SMALL(DC25:DE25,2)),"",SMALL(DC25:DE25,2)) ->  | CZ25: =IF(ISERROR(SMALL(DC25:DE25,2)),"",AVERAGE(CX25,CY25)) ->  | DA25: =IF(ISERROR(CX25*1.2),"",IF(CX25<50,CX25+10,CX25*1.2)) -> 
A26: ='Races, Positions & Points'!A28 -> Jessica Mayhew | B26: =IF('Races, Positions & Points'!S28="","",'Races, Positions & Points'!S28) ->  | C26: =IF('Races, Positions & Points'!V28="","",'Races, Positions & Points'!V28) ->  | D26: =IF('Races, Positions & Points'!#REF!="","",'Races, Positions & Points'!#REF!) ->  | E26: =IF('Races, Positions & Points'!Y28="","",'Races, Positions & Points'!Y28) ->  | F26: =IF('Races, Positions & Points'!Z28="","",'Races, Positions & Points'!Z28) ->  | G26: =IF('Races, Positions & Points'!AC28="","",'Races, Positions & Points'!AC28) ->  | H26: =IF('Races, Positions & Points'!AD28="","",'Races, Positions & Points'!AD28) ->  | I26: =IF('Races, Positions & Points'!AG28="","",'Races, Positions & Points'!AG28) -> 56.04 | J26: =IF('Races, Positions & Points'!AJ28="","",'Races, Positions & Points'!AJ28) ->  | K26: =IF('Races, Positions & Points'!AM28="","",'Races, Positions & Points'!AM28) -> DNF | L26: =IF('Races, Positions & Points'!AP28="","",'Races, Positions & Points'!AP28) ->  | M26: =IF('Races, Positions & Points'!AS28="","",'Races, Positions & Points'!AS28) ->  | N26: =IF('Races, Positions & Points'!AV28="","",'Races, Positions & Points'!AV28) -> 55.85 | O26: =IF('Races, Positions & Points'!AY28="","",'Races, Positions & Points'!AY28) -> 56.48 | P26: =IF('Races, Positions & Points'!BB28="","",'Races, Positions & Points'!BB28) ->  | Q26: =IF('Races, Positions & Points'!BE28="","",'Races, Positions & Points'!BE28) ->  | R26: =IF('Races, Positions & Points'!BH28="","",'Races, Positions & Points'!BH28) ->  | S26: =IF('Races, Positions & Points'!BK28="","",'Races, Positions & Points'!BK28) ->  | T26: =IF('Races, Positions & Points'!BN28="","",'Races, Positions & Points'!BN28) ->  | U26: =IF('Races, Positions & Points'!BQ28="","",'Races, Positions & Points'!BQ28) ->  | V26: =IF('Races, Positions & Points'!BT28="","",'Races, Positions & Points'!BT28) ->  | W26: =IF('Races, Positions & Points'!#REF!="","",'Races, Positions & Points'!#REF!) ->  | X26: =IF('Races, Positions & Points'!BW28="","",'Races, Positions & Points'!BW28) -> 64.41 | Y26: =IF('Races, Positions & Points'!BZ28="","",'Races, Positions & Points'!BZ28) ->  | Z26: =IF('Races, Positions & Points'!CG28="","",'Races, Positions & Points'!CG28) ->  | AA26: =IF('Races, Positions & Points'!CC28="","",'Races, Positions & Points'!CC28) -> 42.97 | AB26: =IF('Races, Positions & Points'!CJ28="","",'Races, Positions & Points'!CJ28) -> 26.22 | AC26: =IF('Races, Positions & Points'!CM28="","",'Races, Positions & Points'!CM28) ->  | AD26: =IF('Races, Positions & Points'!CW28="","",'Races, Positions & Points'!CW28) ->  | AE26: =IF('Races, Positions & Points'!CP28="","",'Races, Positions & Points'!CP28) -> 356.97 | AF26: =IF('Races, Positions & Points'!CZ28="","",'Races, Positions & Points'!CZ28) ->  | AG26: =IF('Races, Positions & Points'!#REF!="","",'Races, Positions & Points'!#REF!) ->  | AH26: =IF('Races, Positions & Points'!DC28="","",'Races, Positions & Points'!DC28) ->  | AI26: =IF('Races, Positions & Points'!DF28="","",'Races, Positions & Points'!DF28) ->  | AJ26: =IF('Races, Positions & Points'!DI28="","",'Races, Positions & Points'!DI28) ->  | AK26: =IF('Races, Positions & Points'!DL28="","",'Races, Positions & Points'!DL28) -> 76.68 | AL26: =IF('Races, Positions & Points'!DO28="","",'Races, Positions & Points'!DO28) -> 67.1 | AM26: =IF('Races, Positions & Points'!DR28="","",'Races, Positions & Points'!DR28) ->  | AN26: =IF('Races, Positions & Points'!DS28="","",'Races, Positions & Points'!DS28) ->  | AO26: =IF('Races, Positions & Points'!DU28="","",'Races, Positions & Points'!DU28) ->  | AP26: =IF('Races, Positions & Points'!DX28="","",'Races, Positions & Points'!DX28) ->  | AQ26: =IF('Races, Positions & Points'!EA28="","",'Races, Positions & Points'!EA28) ->  | AR26: =IF('Races, Positions & Points'!ED28="","",'Races, Positions & Points'!ED28) ->  | AS26: =IF('Races, Positions & Points'!EG28="","",'Races, Positions & Points'!EG28) ->  | AT26: =IF('Races, Positions & Points'!#REF!="","",'Races, Positions & Points'!#REF!) ->  | AU26: =IF('Races, Positions & Points'!#REF!="","",'Races, Positions & Points'!#REF!) ->  | AV26: =IF('Races, Positions & Points'!#REF!="","",'Races, Positions & Points'!#REF!) ->  | AW26: =IF('Races, Positions & Points'!#REF!="","",'Races, Positions & Points'!#REF!) ->  | AX26: =IF('Races, Positions & Points'!#REF!="","",'Races, Positions & Points'!#REF!) ->  | AY26: =IF('Races, Positions & Points'!#REF!="","",'Races, Positions & Points'!#REF!) ->  | BH26: ='Races, Positions & Points'!E28 -> 21014 | BI26: ='Races, Positions & Points'!#REF! ->  | CB26: 67.1 | CF26: 55.85 | CH26: 56.04 | CN26: 42.97 | DC26: 67.1 | DF26: 55.85 | DG26: 56.48
A27: ='Races, Positions & Points'!A29 -> Elisabeth Thomas | B27: =IF('Races, Positions & Points'!S29="","",'Races, Positions & Points'!S29) ->  | C27: =IF('Races, Positions & Points'!V29="","",'Races, Positions & Points'!V29) ->  | D27: =IF('Races, Positions & Points'!#REF!="","",'Races, Positions & Points'!#REF!) ->  | E27: =IF('Races, Positions & Points'!Y29="","",'Races, Positions & Points'!Y29) ->  | F27: =IF('Races, Positions & Points'!Z29="","",'Races, Positions & Points'!Z29) ->  | G27: =IF('Races, Positions & Points'!AC29="","",'Races, Positions & Points'!AC29) ->  | H27: =IF('Races, Positions & Points'!AD29="","",'Races, Positions & Points'!AD29) ->  | I27: =IF('Races, Positions & Points'!AG29="","",'Races, Positions & Points'!AG29) ->  | J27: =IF('Races, Positions & Points'!AJ29="","",'Races, Positions & Points'!AJ29) ->  | K27: =IF('Races, Positions & Points'!AM29="","",'Races, Positions & Points'!AM29) ->  | L27: =IF('Races, Positions & Points'!AP29="","",'Races, Positions & Points'!AP29) ->  | M27: =IF('Races, Positions & Points'!AS29="","",'Races, Positions & Points'!AS29) ->  | N27: =IF('Races, Positions & Points'!AV29="","",'Races, Positions & Points'!AV29) ->  | O27: =IF('Races, Positions & Points'!AY29="","",'Races, Positions & Points'!AY29) ->  | P27: =IF('Races, Positions & Points'!BB29="","",'Races, Positions & Points'!BB29) ->  | Q27: =IF('Races, Positions & Points'!BE29="","",'Races, Positions & Points'!BE29) ->  | R27: =IF('Races, Positions & Points'!BH29="","",'Races, Positions & Points'!BH29) ->  | S27: =IF('Races, Positions & Points'!BK29="","",'Races, Positions & Points'!BK29) ->  | T27: =IF('Races, Positions & Points'!BN29="","",'Races, Positions & Points'!BN29) ->  | U27: =IF('Races, Positions & Points'!BQ29="","",'Races, Positions & Points'!BQ29) ->  | V27: =IF('Races, Positions & Points'!BT29="","",'Races, Positions & Points'!BT29) ->  | W27: =IF('Races, Positions & Points'!#REF!="","",'Races, Positions & Points'!#REF!) ->  | X27: =IF('Races, Positions & Points'!BW29="","",'Races, Positions & Points'!BW29) ->  | Y27: =IF('Races, Positions & Points'!BZ29="","",'Races, Positions & Points'!BZ29) ->  | Z27: =IF('Races, Positions & Points'!CG29="","",'Races, Positions & Points'!CG29) ->  | AA27: =IF('Races, Positions & Points'!CC29="","",'Races, Positions & Points'!CC29) ->  | AB27: =IF('Races, Positions & Points'!CJ29="","",'Races, Positions & Points'!CJ29) ->  | AC27: =IF('Races, Positions & Points'!CM29="","",'Races, Positions & Points'!CM29) ->  | AD27: =IF('Races, Positions & Points'!CW29="","",'Races, Positions & Points'!CW29) ->  | AE27: =IF('Races, Positions & Points'!CP29="","",'Races, Positions & Points'!CP29) ->  | AF27: =IF('Races, Positions & Points'!CZ29="","",'Races, Positions & Points'!CZ29) ->  | AG27: =IF('Races, Positions & Points'!#REF!="","",'Races, Positions & Points'!#REF!) ->  | AH27: =IF('Races, Positions & Points'!DC29="","",'Races, Positions & Points'!DC29) ->  | AI27: =IF('Races, Positions & Points'!DF29="","",'Races, Positions & Points'!DF29) ->  | AJ27: =IF('Races, Positions & Points'!DI29="","",'Races, Positions & Points'!DI29) ->  | AK27: =IF('Races, Positions & Points'!DL29="","",'Races, Positions & Points'!DL29) ->  | AL27: =IF('Races, Positions & Points'!DO29="","",'Races, Positions & Points'!DO29) ->  | AM27: =IF('Races, Positions & Points'!DR29="","",'Races, Positions & Points'!DR29) ->  | AN27: =IF('Races, Positions & Points'!DS29="","",'Races, Positions & Points'!DS29) ->  | AO27: =IF('Races, Positions & Points'!DU29="","",'Races, Positions & Points'!DU29) ->  | AP27: =IF('Races, Positions & Points'!DX29="","",'Races, Positions & Points'!DX29) ->  | AQ27: =IF('Races, Positions & Points'!EA29="","",'Races, Positions & Points'!EA29) ->  | AR27: =IF('Races, Positions & Points'!ED29="","",'Races, Positions & Points'!ED29) ->  | AS27: =IF('Races, Positions & Points'!EG29="","",'Races, Positions & Points'!EG29) ->  | AT27: =IF('Races, Positions & Points'!#REF!="","",'Races, Positions & Points'!#REF!) ->  | AU27: =IF('Races, Positions & Points'!#REF!="","",'Races, Positions & Points'!#REF!) ->  | AV27: =IF('Races, Positions & Points'!#REF!="","",'Races, Positions & Points'!#REF!) ->  | AW27: =IF('Races, Positions & Points'!#REF!="","",'Races, Positions & Points'!#REF!) ->  | AX27: =IF('Races, Positions & Points'!#REF!="","",'Races, Positions & Points'!#REF!) ->  | AY27: =IF('Races, Positions & Points'!#REF!="","",'Races, Positions & Points'!#REF!) ->  | BH27: ='Races, Positions & Points'!E29 -> 18033 | BI27: ='Races, Positions & Points'!#REF! -> 
A28: ='Races, Positions & Points'!A31 -> Maxine Hancock | B28: =IF('Races, Positions & Points'!S31="","",'Races, Positions & Points'!S31) ->  | C28: =IF('Races, Positions & Points'!V31="","",'Races, Positions & Points'!V31) ->  | D28: =IF('Races, Positions & Points'!#REF!="","",'Races, Positions & Points'!#REF!) ->  | E28: =IF('Races, Positions & Points'!Y31="","",'Races, Positions & Points'!Y31) -> 56 | F28: =IF('Races, Positions & Points'!Z31="","",'Races, Positions & Points'!Z31) -> 58.88 | G28: =IF('Races, Positions & Points'!AC31="","",'Races, Positions & Points'!AC31) -> 86.07 | H28: =IF('Races, Positions & Points'!AD31="","",'Races, Positions & Points'!AD31) -> 108.26 | I28: =IF('Races, Positions & Points'!AG31="","",'Races, Positions & Points'!AG31) ->  | J28: =IF('Races, Positions & Points'!AJ31="","",'Races, Positions & Points'!AJ31) ->  | K28: =IF('Races, Positions & Points'!AM31="","",'Races, Positions & Points'!AM31) ->  | L28: =IF('Races, Positions & Points'!AP31="","",'Races, Positions & Points'!AP31) -> 76.35 | M28: =IF('Races, Positions & Points'!AS31="","",'Races, Positions & Points'!AS31) -> DNF | N28: =IF('Races, Positions & Points'!AV31="","",'Races, Positions & Points'!AV31) ->  | O28: =IF('Races, Positions & Points'!AY31="","",'Races, Positions & Points'!AY31) ->  | P28: =IF('Races, Positions & Points'!BB31="","",'Races, Positions & Points'!BB31) ->  | Q28: =IF('Races, Positions & Points'!BE31="","",'Races, Positions & Points'!BE31) ->  | R28: =IF('Races, Positions & Points'!BH31="","",'Races, Positions & Points'!BH31) ->  | S28: =IF('Races, Positions & Points'!BK31="","",'Races, Positions & Points'!BK31) ->  | T28: =IF('Races, Positions & Points'!BN31="","",'Races, Positions & Points'!BN31) ->  | U28: =IF('Races, Positions & Points'!BQ31="","",'Races, Positions & Points'!BQ31) -> 119.92 | V28: =IF('Races, Positions & Points'!#REF!="","",'Races, Positions & Points'!#REF!) ->  | W28: =IF('Races, Positions & Points'!#REF!="","",'Races, Positions & Points'!#REF!) ->  | X28: =IF('Races, Positions & Points'!BW31="","",'Races, Positions & Points'!BW31) ->  | Y28: =IF('Races, Positions & Points'!BZ31="","",'Races, Positions & Points'!BZ31) ->  | Z28: =IF('Races, Positions & Points'!CG31="","",'Races, Positions & Points'!CG31) -> 82.85 | AA28: =IF('Races, Positions & Points'!CC31="","",'Races, Positions & Points'!CC31) ->  | AB28: =IF('Races, Positions & Points'!CJ31="","",'Races, Positions & Points'!CJ31) ->  | AC28: =IF('Races, Positions & Points'!CM31="","",'Races, Positions & Points'!CM31) ->  | AD28: =IF('Races, Positions & Points'!CW31="","",'Races, Positions & Points'!CW31) -> 88.03 | AE28: =IF('Races, Positions & Points'!CP31="","",'Races, Positions & Points'!CP31) ->  | AF28: =IF('Races, Positions & Points'!CZ31="","",'Races, Positions & Points'!CZ31) ->  | AG28: =IF('Races, Positions & Points'!#REF!="","",'Races, Positions & Points'!#REF!) ->  | AH28: =IF('Races, Positions & Points'!DC31="","",'Races, Positions & Points'!DC31) ->  | AI28: =IF('Races, Positions & Points'!DF31="","",'Races, Positions & Points'!DF31) -> 108.62 | AJ28: =IF('Races, Positions & Points'!DI31="","",'Races, Positions & Points'!DI31) -> 113.11 | AK28: =IF('Races, Positions & Points'!DL31="","",'Races, Positions & Points'!DL31) ->  | AL28: =IF('Races, Positions & Points'!DO31="","",'Races, Positions & Points'!DO31) ->  | AM28: =IF('Races, Positions & Points'!DX31="","",'Races, Positions & Points'!DX31) -> ?? | AN28: =IF('Races, Positions & Points'!DS31="","",'Races, Positions & Points'!DS31) ->  | AO28: =IF('Races, Positions & Points'!DU31="","",'Races, Positions & Points'!DU31) ->  | AP28: =IF('Races, Positions & Points'!#REF!="","",'Races, Positions & Points'!#REF!) ->  | AQ28: =IF('Races, Positions & Points'!EA31="","",'Races, Positions & Points'!EA31) ->  | AR28: =IF('Races, Positions & Points'!ED31="","",'Races, Positions & Points'!ED31) ->  | AS28: =IF('Races, Positions & Points'!EG31="","",'Races, Positions & Points'!EG31) ->  | AT28: =IF('Races, Positions & Points'!#REF!="","",'Races, Positions & Points'!#REF!) ->  | AU28: =IF('Races, Positions & Points'!#REF!="","",'Races, Positions & Points'!#REF!) ->  | AV28: =IF('Races, Positions & Points'!#REF!="","",'Races, Positions & Points'!#REF!) ->  | AW28: =IF('Races, Positions & Points'!#REF!="","",'Races, Positions & Points'!#REF!) ->  | AX28: =IF('Races, Positions & Points'!#REF!="","",'Races, Positions & Points'!#REF!) ->  | AY28: =IF('Races, Positions & Points'!#REF!="","",'Races, Positions & Points'!#REF!) ->  | BH28: ='Races, Positions & Points'!E31 -> 18617 | BI28: ='Races, Positions & Points'!#REF! ->  | CB28: 76.35 | CL28: 119.92 | CO28: 88.03 | CP28: 113.11 | DC28: 76.35
A29: ='Races, Positions & Points'!A32 -> Ellie Jackson | B29: =IF('Races, Positions & Points'!S32="","",'Races, Positions & Points'!S32) ->  | C29: =IF('Races, Positions & Points'!V32="","",'Races, Positions & Points'!V32) ->  | D29: =IF('Races, Positions & Points'!#REF!="","",'Races, Positions & Points'!#REF!) ->  | E29: =IF('Races, Positions & Points'!Y32="","",'Races, Positions & Points'!Y32) -> 160 | F29: =IF('Races, Positions & Points'!Z32="","",'Races, Positions & Points'!Z32) -> 136.36 | G29: =IF('Races, Positions & Points'!AC32="","",'Races, Positions & Points'!AC32) ->  | H29: =IF('Races, Positions & Points'!AD32="","",'Races, Positions & Points'!AD32) ->  | I29: =IF('Races, Positions & Points'!AG32="","",'Races, Positions & Points'!AG32) ->  | J29: =IF('Races, Positions & Points'!AJ32="","",'Races, Positions & Points'!AJ32) -> 173.66 | K29: =IF('Races, Positions & Points'!AM32="","",'Races, Positions & Points'!AM32) -> 150.42 | L29: =IF('Races, Positions & Points'!AP32="","",'Races, Positions & Points'!AP32) -> 690.25 | M29: =IF('Races, Positions & Points'!AS32="","",'Races, Positions & Points'!AS32) -> 116.53 | N29: =IF('Races, Positions & Points'!AV32="","",'Races, Positions & Points'!AV32) ->  | O29: =IF('Races, Positions & Points'!AY32="","",'Races, Positions & Points'!AY32) ->  | P29: =IF('Races, Positions & Points'!BB32="","",'Races, Positions & Points'!BB32) ->  | Q29: =IF('Races, Positions & Points'!BE32="","",'Races, Positions & Points'!BE32) ->  | R29: =IF('Races, Positions & Points'!BH32="","",'Races, Positions & Points'!BH32) ->  | S29: =IF('Races, Positions & Points'!BK32="","",'Races, Positions & Points'!BK32) ->  | T29: =IF('Races, Positions & Points'!BN32="","",'Races, Positions & Points'!BN32) ->  | U29: =IF('Races, Positions & Points'!BQ32="","",'Races, Positions & Points'!BQ32) -> 143.58 | V29: =IF('Races, Positions & Points'!BT32="","",'Races, Positions & Points'!BT32) -> 139.63 | W29: =IF('Races, Positions & Points'!#REF!="","",'Races, Positions & Points'!#REF!) ->  | X29: =IF('Races, Positions & Points'!BW32="","",'Races, Positions & Points'!BW32) -> 144.39 | Y29: =IF('Races, Positions & Points'!BZ32="","",'Races, Positions & Points'!BZ32) ->  | Z29: =IF('Races, Positions & Points'!CG32="","",'Races, Positions & Points'!CG32) ->  | AA29: =IF('Races, Positions & Points'!CC32="","",'Races, Positions & Points'!CC32) -> 132.85 | AB29: =IF('Races, Positions & Points'!CJ32="","",'Races, Positions & Points'!CJ32) -> 90.62 | AC29: =IF('Races, Positions & Points'!CM32="","",'Races, Positions & Points'!CM32) -> dnf | AD29: =IF('Races, Positions & Points'!CW32="","",'Races, Positions & Points'!CW32) ->  | AE29: =IF('Races, Positions & Points'!CP32="","",'Races, Positions & Points'!CP32) -> 115.83 | AF29: =IF('Races, Positions & Points'!CZ32="","",'Races, Positions & Points'!CZ32) -> 122.4 | AG29: =IF('Races, Positions & Points'!#REF!="","",'Races, Positions & Points'!#REF!) ->  | AH29: =IF('Races, Positions & Points'!DC32="","",'Races, Positions & Points'!DC32) ->  | AI29: =IF('Races, Positions & Points'!DF32="","",'Races, Positions & Points'!DF32) -> 120.58 | AJ29: =IF('Races, Positions & Points'!DI32="","",'Races, Positions & Points'!DI32) -> 95.26 | AK29: =IF('Races, Positions & Points'!DL32="","",'Races, Positions & Points'!DL32) -> 136.46 | AL29: =IF('Races, Positions & Points'!DO32="","",'Races, Positions & Points'!DO32) -> 104.51 | AM29: =IF('Races, Positions & Points'!DR32="","",'Races, Positions & Points'!DR32) ->  | AN29: =IF('Races, Positions & Points'!DS32="","",'Races, Positions & Points'!DS32) ->  | AO29: =IF('Races, Positions & Points'!DU32="","",'Races, Positions & Points'!DU32) ->  | AP29: =IF('Races, Positions & Points'!DX32="","",'Races, Positions & Points'!DX32) ->  | AQ29: =IF('Races, Positions & Points'!EA32="","",'Races, Positions & Points'!EA32) ->  | AR29: =IF('Races, Positions & Points'!ED32="","",'Races, Positions & Points'!ED32) ->  | AS29: =IF('Races, Positions & Points'!EG32="","",'Races, Positions & Points'!EG32) ->  | AT29: =IF('Races, Positions & Points'!#REF!="","",'Races, Positions & Points'!#REF!) ->  | AU29: =IF('Races, Positions & Points'!#REF!="","",'Races, Positions & Points'!#REF!) ->  | AV29: =IF('Races, Positions & Points'!#REF!="","",'Races, Positions & Points'!#REF!) ->  | AW29: =IF('Races, Positions & Points'!#REF!="","",'Races, Positions & Points'!#REF!) ->  | AX29: =IF('Races, Positions & Points'!#REF!="","",'Races, Positions & Points'!#REF!) ->  | AY29: =IF('Races, Positions & Points'!#REF!="","",'Races, Positions & Points'!#REF!) ->  | BD29: =SUMPRODUCT(--(B$4:AY$4="Out"),--(B$3:AY$3=5),--(B$5:AY$5="Y"),--(B29:AY29<>"")) ->  | BH29: ='Races, Positions & Points'!E32 -> 21024 | BI29: ='Races, Positions & Points'!#REF! ->  | CB29: 104.51 | CD29: 139.63 | CF29: 116.53 | CH29: 173.66 | CL29: 143.58 | CN29: 132.85 | CP29: 95.26 | DC29: 104.51 | DE29: 139.63 | DF29: 116.53 | DG29: 115.83 | DH29: 173.66
A30: ='Races, Positions & Points'!A33 -> Hannah Shakeshaft | B30: =IF('Races, Positions & Points'!S33="","",'Races, Positions & Points'!S33) ->  | C30: =IF('Races, Positions & Points'!V33="","",'Races, Positions & Points'!V33) ->  | D30: =IF('Races, Positions & Points'!#REF!="","",'Races, Positions & Points'!#REF!) ->  | E30: =IF('Races, Positions & Points'!Y33="","",'Races, Positions & Points'!Y33) ->  | F30: =IF('Races, Positions & Points'!Z33="","",'Races, Positions & Points'!Z33) ->  | G30: =IF('Races, Positions & Points'!AC33="","",'Races, Positions & Points'!AC33) ->  | H30: =IF('Races, Positions & Points'!AD33="","",'Races, Positions & Points'!AD33) ->  | I30: =IF('Races, Positions & Points'!AG33="","",'Races, Positions & Points'!AG33) ->  | J30: =IF('Races, Positions & Points'!AJ33="","",'Races, Positions & Points'!AJ33) ->  | K30: =IF('Races, Positions & Points'!AM33="","",'Races, Positions & Points'!AM33) ->  | L30: =IF('Races, Positions & Points'!AP33="","",'Races, Positions & Points'!AP33) ->  | M30: =IF('Races, Positions & Points'!AS33="","",'Races, Positions & Points'!AS33) ->  | N30: =IF('Races, Positions & Points'!AV33="","",'Races, Positions & Points'!AV33) ->  | O30: =IF('Races, Positions & Points'!AY33="","",'Races, Positions & Points'!AY33) ->  | P30: =IF('Races, Positions & Points'!BB33="","",'Races, Positions & Points'!BB33) ->  | Q30: =IF('Races, Positions & Points'!BE33="","",'Races, Positions & Points'!BE33) ->  | R30: =IF('Races, Positions & Points'!BH33="","",'Races, Positions & Points'!BH33) ->  | S30: =IF('Races, Positions & Points'!BK33="","",'Races, Positions & Points'!BK33) ->  | T30: =IF('Races, Positions & Points'!BN33="","",'Races, Positions & Points'!BN33) ->  | U30: =IF('Races, Positions & Points'!BQ33="","",'Races, Positions & Points'!BQ33) ->  | V30: =IF('Races, Positions & Points'!BT33="","",'Races, Positions & Points'!BT33) ->  | W30: =IF('Races, Positions & Points'!#REF!="","",'Races, Positions & Points'!#REF!) ->  | X30: =IF('Races, Positions & Points'!BW33="","",'Races, Positions & Points'!BW33) ->  | Y30: =IF('Races, Positions & Points'!BZ33="","",'Races, Positions & Points'!BZ33) ->  | Z30: =IF('Races, Positions & Points'!CG33="","",'Races, Positions & Points'!CG33) ->  | AA30: =IF('Races, Positions & Points'!CC33="","",'Races, Positions & Points'!CC33) ->  | AB30: =IF('Races, Positions & Points'!CJ33="","",'Races, Positions & Points'!CJ33) ->  | AC30: =IF('Races, Positions & Points'!CM33="","",'Races, Positions & Points'!CM33) ->  | AD30: =IF('Races, Positions & Points'!CW33="","",'Races, Positions & Points'!CW33) ->  | AE30: =IF('Races, Positions & Points'!CP33="","",'Races, Positions & Points'!CP33) ->  | AF30: =IF('Races, Positions & Points'!CZ33="","",'Races, Positions & Points'!CZ33) ->  | AG30: =IF('Races, Positions & Points'!#REF!="","",'Races, Positions & Points'!#REF!) ->  | AH30: =IF('Races, Positions & Points'!DC33="","",'Races, Positions & Points'!DC33) ->  | AI30: =IF('Races, Positions & Points'!DF33="","",'Races, Positions & Points'!DF33) ->  | AJ30: =IF('Races, Positions & Points'!DI33="","",'Races, Positions & Points'!DI33) ->  | AK30: =IF('Races, Positions & Points'!DL33="","",'Races, Positions & Points'!DL33) ->  | AL30: =IF('Races, Positions & Points'!DO33="","",'Races, Positions & Points'!DO33) ->  | AM30: =IF('Races, Positions & Points'!DR33="","",'Races, Positions & Points'!DR33) ->  | AN30: =IF('Races, Positions & Points'!DS33="","",'Races, Positions & Points'!DS33) ->  | AO30: =IF('Races, Positions & Points'!DU33="","",'Races, Positions & Points'!DU33) ->  | AP30: =IF('Races, Positions & Points'!DX33="","",'Races, Positions & Points'!DX33) ->  | AQ30: =IF('Races, Positions & Points'!EA33="","",'Races, Positions & Points'!EA33) ->  | AR30: =IF('Races, Positions & Points'!ED33="","",'Races, Positions & Points'!ED33) ->  | AS30: =IF('Races, Positions & Points'!EG33="","",'Races, Positions & Points'!EG33) ->  | AT30: =IF('Races, Positions & Points'!#REF!="","",'Races, Positions & Points'!#REF!) ->  | AU30: =IF('Races, Positions & Points'!#REF!="","",'Races, Positions & Points'!#REF!) ->  | AV30: =IF('Races, Positions & Points'!#REF!="","",'Races, Positions & Points'!#REF!) ->  | AW30: =IF('Races, Positions & Points'!#REF!="","",'Races, Positions & Points'!#REF!) ->  | AX30: =IF('Races, Positions & Points'!#REF!="","",'Races, Positions & Points'!#REF!) ->  | AY30: =IF('Races, Positions & Points'!#REF!="","",'Races, Positions & Points'!#REF!) ->  | BD30: =SUMPRODUCT(--(B$4:AY$4="Out"),--(B$3:AY$3=5),--(B$5:AY$5="Y"),--(B30:AY30<>"")) ->  | BH30: ='Races, Positions & Points'!E33 -> 19833 | BI30: ='Races, Positions & Points'!#REF! -> 
A31: ='Races, Positions & Points'!A34 -> Chloe Care | B31: =IF('Races, Positions & Points'!S34="","",'Races, Positions & Points'!S34) ->  | C31: =IF('Races, Positions & Points'!V34="","",'Races, Positions & Points'!V34) ->  | D31: =IF('Races, Positions & Points'!#REF!="","",'Races, Positions & Points'!#REF!) ->  | E31: =IF('Races, Positions & Points'!Y34="","",'Races, Positions & Points'!Y34) ->  | F31: =IF('Races, Positions & Points'!Z34="","",'Races, Positions & Points'!Z34) ->  | G31: =IF('Races, Positions & Points'!AC34="","",'Races, Positions & Points'!AC34) ->  | H31: =IF('Races, Positions & Points'!AD34="","",'Races, Positions & Points'!AD34) ->  | I31: =IF('Races, Positions & Points'!AG34="","",'Races, Positions & Points'!AG34) ->  | J31: =IF('Races, Positions & Points'!AJ34="","",'Races, Positions & Points'!AJ34) ->  | K31: =IF('Races, Positions & Points'!AM34="","",'Races, Positions & Points'!AM34) ->  | L31: =IF('Races, Positions & Points'!AP34="","",'Races, Positions & Points'!AP34) ->  | M31: =IF('Races, Positions & Points'!AS34="","",'Races, Positions & Points'!AS34) ->  | N31: =IF('Races, Positions & Points'!AV34="","",'Races, Positions & Points'!AV34) ->  | O31: =IF('Races, Positions & Points'!AY34="","",'Races, Positions & Points'!AY34) ->  | P31: =IF('Races, Positions & Points'!BB34="","",'Races, Positions & Points'!BB34) ->  | Q31: =IF('Races, Positions & Points'!BE34="","",'Races, Positions & Points'!BE34) ->  | R31: =IF('Races, Positions & Points'!BH34="","",'Races, Positions & Points'!BH34) ->  | S31: =IF('Races, Positions & Points'!BK34="","",'Races, Positions & Points'!BK34) ->  | T31: =IF('Races, Positions & Points'!BN34="","",'Races, Positions & Points'!BN34) ->  | U31: =IF('Races, Positions & Points'!BQ34="","",'Races, Positions & Points'!BQ34) ->  | V31: =IF('Races, Positions & Points'!BT34="","",'Races, Positions & Points'!BT34) ->  | W31: =IF('Races, Positions & Points'!#REF!="","",'Races, Positions & Points'!#REF!) ->  | X31: =IF('Races, Positions & Points'!BW34="","",'Races, Positions & Points'!BW34) ->  | Y31: =IF('Races, Positions & Points'!BZ34="","",'Races, Positions & Points'!BZ34) ->  | Z31: =IF('Races, Positions & Points'!CG34="","",'Races, Positions & Points'!CG34) ->  | AA31: =IF('Races, Positions & Points'!CC34="","",'Races, Positions & Points'!CC34) ->  | AB31: =IF('Races, Positions & Points'!CJ34="","",'Races, Positions & Points'!CJ34) ->  | AC31: =IF('Races, Positions & Points'!CM34="","",'Races, Positions & Points'!CM34) ->  | AD31: =IF('Races, Positions & Points'!CW34="","",'Races, Positions & Points'!CW34) ->  | AE31: =IF('Races, Positions & Points'!CP34="","",'Races, Positions & Points'!CP34) ->  | AF31: =IF('Races, Positions & Points'!CZ34="","",'Races, Positions & Points'!CZ34) ->  | AG31: =IF('Races, Positions & Points'!#REF!="","",'Races, Positions & Points'!#REF!) ->  | AH31: =IF('Races, Positions & Points'!DC34="","",'Races, Positions & Points'!DC34) ->  | AI31: =IF('Races, Positions & Points'!DF34="","",'Races, Positions & Points'!DF34) ->  | AJ31: =IF('Races, Positions & Points'!DI34="","",'Races, Positions & Points'!DI34) ->  | AK31: =IF('Races, Positions & Points'!DL34="","",'Races, Positions & Points'!DL34) ->  | AL31: =IF('Races, Positions & Points'!DO34="","",'Races, Positions & Points'!DO34) ->  | AM31: =IF('Races, Positions & Points'!DR34="","",'Races, Positions & Points'!DR34) ->  | AN31: =IF('Races, Positions & Points'!DS34="","",'Races, Positions & Points'!DS34) ->  | AO31: =IF('Races, Positions & Points'!DU34="","",'Races, Positions & Points'!DU34) ->  | AP31: =IF('Races, Positions & Points'!DX34="","",'Races, Positions & Points'!DX34) ->  | AQ31: =IF('Races, Positions & Points'!EA34="","",'Races, Positions & Points'!EA34) ->  | AR31: =IF('Races, Positions & Points'!ED34="","",'Races, Positions & Points'!ED34) ->  | AS31: =IF('Races, Positions & Points'!EG34="","",'Races, Positions & Points'!EG34) ->  | AT31: =IF('Races, Positions & Points'!#REF!="","",'Races, Positions & Points'!#REF!) ->  | AU31: =IF('Races, Positions & Points'!#REF!="","",'Races, Positions & Points'!#REF!) ->  | AV31: =IF('Races, Positions & Points'!#REF!="","",'Races, Positions & Points'!#REF!) ->  | AW31: =IF('Races, Positions & Points'!#REF!="","",'Races, Positions & Points'!#REF!) ->  | AX31: =IF('Races, Positions & Points'!#REF!="","",'Races, Positions & Points'!#REF!) ->  | AY31: =IF('Races, Positions & Points'!#REF!="","",'Races, Positions & Points'!#REF!) ->  | BH31: ='Races, Positions & Points'!E34 -> 19983 | BI31: ='Races, Positions & Points'!#REF! -> 
A32: ='Races, Positions & Points'!A35 -> Geraldine Elgy | B32: =IF('Races, Positions & Points'!S35="","",'Races, Positions & Points'!S35) ->  | C32: =IF('Races, Positions & Points'!V35="","",'Races, Positions & Points'!V35) ->  | D32: =IF('Races, Positions & Points'!#REF!="","",'Races, Positions & Points'!#REF!) ->  | E32: =IF('Races, Positions & Points'!Y35="","",'Races, Positions & Points'!Y35) ->  | F32: =IF('Races, Positions & Points'!Z35="","",'Races, Positions & Points'!Z35) ->  | G32: =IF('Races, Positions & Points'!AC35="","",'Races, Positions & Points'!AC35) ->  | H32: =IF('Races, Positions & Points'!AD35="","",'Races, Positions & Points'!AD35) ->  | I32: =IF('Races, Positions & Points'!AG35="","",'Races, Positions & Points'!AG35) ->  | J32: =IF('Races, Positions & Points'!AJ35="","",'Races, Positions & Points'!AJ35) ->  | K32: =IF('Races, Positions & Points'!AM35="","",'Races, Positions & Points'!AM35) ->  | L32: =IF('Races, Positions & Points'!AP35="","",'Races, Positions & Points'!AP35) ->  | M32: =IF('Races, Positions & Points'!AS35="","",'Races, Positions & Points'!AS35) ->  | N32: =IF('Races, Positions & Points'!AV35="","",'Races, Positions & Points'!AV35) ->  | O32: =IF('Races, Positions & Points'!AY35="","",'Races, Positions & Points'!AY35) ->  | P32: =IF('Races, Positions & Points'!BB35="","",'Races, Positions & Points'!BB35) ->  | Q32: =IF('Races, Positions & Points'!BE35="","",'Races, Positions & Points'!BE35) ->  | R32: =IF('Races, Positions & Points'!BH35="","",'Races, Positions & Points'!BH35) ->  | S32: =IF('Races, Positions & Points'!BK35="","",'Races, Positions & Points'!BK35) ->  | T32: =IF('Races, Positions & Points'!BN35="","",'Races, Positions & Points'!BN35) ->  | U32: =IF('Races, Positions & Points'!BQ35="","",'Races, Positions & Points'!BQ35) ->  | V32: =IF('Races, Positions & Points'!BT35="","",'Races, Positions & Points'!BT35) ->  | W32: =IF('Races, Positions & Points'!#REF!="","",'Races, Positions & Points'!#REF!) ->  | X32: =IF('Races, Positions & Points'!BW35="","",'Races, Positions & Points'!BW35) ->  | Y32: =IF('Races, Positions & Points'!BZ35="","",'Races, Positions & Points'!BZ35) ->  | Z32: =IF('Races, Positions & Points'!CG35="","",'Races, Positions & Points'!CG35) ->  | AA32: =IF('Races, Positions & Points'!CC35="","",'Races, Positions & Points'!CC35) ->  | AB32: =IF('Races, Positions & Points'!CJ35="","",'Races, Positions & Points'!CJ35) ->  | AC32: =IF('Races, Positions & Points'!CM35="","",'Races, Positions & Points'!CM35) ->  | AD32: =IF('Races, Positions & Points'!CW35="","",'Races, Positions & Points'!CW35) ->  | AE32: =IF('Races, Positions & Points'!CP35="","",'Races, Positions & Points'!CP35) ->  | AF32: =IF('Races, Positions & Points'!CZ35="","",'Races, Positions & Points'!CZ35) ->  | AG32: =IF('Races, Positions & Points'!#REF!="","",'Races, Positions & Points'!#REF!) ->  | AH32: =IF('Races, Positions & Points'!DC35="","",'Races, Positions & Points'!DC35) ->  | AI32: =IF('Races, Positions & Points'!DF35="","",'Races, Positions & Points'!DF35) ->  | AJ32: =IF('Races, Positions & Points'!DI35="","",'Races, Positions & Points'!DI35) ->  | AK32: =IF('Races, Positions & Points'!DL35="","",'Races, Positions & Points'!DL35) ->  | AL32: =IF('Races, Positions & Points'!DO35="","",'Races, Positions & Points'!DO35) ->  | AM32: =IF('Races, Positions & Points'!DR35="","",'Races, Positions & Points'!DR35) ->  | AN32: =IF('Races, Positions & Points'!DS35="","",'Races, Positions & Points'!DS35) ->  | AO32: =IF('Races, Positions & Points'!DU35="","",'Races, Positions & Points'!DU35) ->  | AP32: =IF('Races, Positions & Points'!DX35="","",'Races, Positions & Points'!DX35) ->  | AQ32: =IF('Races, Positions & Points'!EA35="","",'Races, Positions & Points'!EA35) ->  | AR32: =IF('Races, Positions & Points'!ED35="","",'Races, Positions & Points'!ED35) ->  | AS32: =IF('Races, Positions & Points'!EG35="","",'Races, Positions & Points'!EG35) ->  | AT32: =IF('Races, Positions & Points'!#REF!="","",'Races, Positions & Points'!#REF!) ->  | AU32: =IF('Races, Positions & Points'!#REF!="","",'Races, Positions & Points'!#REF!) ->  | AV32: =IF('Races, Positions & Points'!#REF!="","",'Races, Positions & Points'!#REF!) ->  | AW32: =IF('Races, Positions & Points'!#REF!="","",'Races, Positions & Points'!#REF!) ->  | AX32: =IF('Races, Positions & Points'!#REF!="","",'Races, Positions & Points'!#REF!) ->  | AY32: =IF('Races, Positions & Points'!#REF!="","",'Races, Positions & Points'!#REF!) ->  | BH32: ='Races, Positions & Points'!E35 -> 19165 | BI32: ='Races, Positions & Points'!#REF! -> 
A33: ='Races, Positions & Points'!A36 -> Laura Newboult | B33: =IF('Races, Positions & Points'!S36="","",'Races, Positions & Points'!S36) ->  | C33: =IF('Races, Positions & Points'!V36="","",'Races, Positions & Points'!V36) ->  | D33: =IF('Races, Positions & Points'!#REF!="","",'Races, Positions & Points'!#REF!) ->  | E33: =IF('Races, Positions & Points'!Y36="","",'Races, Positions & Points'!Y36) ->  | F33: =IF('Races, Positions & Points'!Z36="","",'Races, Positions & Points'!Z36) ->  | G33: =IF('Races, Positions & Points'!AC36="","",'Races, Positions & Points'!AC36) ->  | H33: =IF('Races, Positions & Points'!AD36="","",'Races, Positions & Points'!AD36) ->  | I33: =IF('Races, Positions & Points'!AG36="","",'Races, Positions & Points'!AG36) ->  | J33: =IF('Races, Positions & Points'!AJ36="","",'Races, Positions & Points'!AJ36) ->  | K33: =IF('Races, Positions & Points'!AM36="","",'Races, Positions & Points'!AM36) ->  | L33: =IF('Races, Positions & Points'!AP36="","",'Races, Positions & Points'!AP36) ->  | M33: =IF('Races, Positions & Points'!AS36="","",'Races, Positions & Points'!AS36) ->  | N33: =IF('Races, Positions & Points'!AV36="","",'Races, Positions & Points'!AV36) ->  | O33: =IF('Races, Positions & Points'!AY36="","",'Races, Positions & Points'!AY36) ->  | P33: =IF('Races, Positions & Points'!BB36="","",'Races, Positions & Points'!BB36) ->  | Q33: =IF('Races, Positions & Points'!BE36="","",'Races, Positions & Points'!BE36) ->  | R33: =IF('Races, Positions & Points'!BH36="","",'Races, Positions & Points'!BH36) ->  | S33: =IF('Races, Positions & Points'!BK36="","",'Races, Positions & Points'!BK36) ->  | T33: =IF('Races, Positions & Points'!BN36="","",'Races, Positions & Points'!BN36) ->  | U33: =IF('Races, Positions & Points'!BQ36="","",'Races, Positions & Points'!BQ36) ->  | V33: =IF('Races, Positions & Points'!BT36="","",'Races, Positions & Points'!BT36) ->  | W33: =IF('Races, Positions & Points'!#REF!="","",'Races, Positions & Points'!#REF!) ->  | X33: =IF('Races, Positions & Points'!BW36="","",'Races, Positions & Points'!BW36) ->  | Y33: =IF('Races, Positions & Points'!BZ36="","",'Races, Positions & Points'!BZ36) ->  | Z33: =IF('Races, Positions & Points'!CG36="","",'Races, Positions & Points'!CG36) ->  | AA33: =IF('Races, Positions & Points'!CC36="","",'Races, Positions & Points'!CC36) ->  | AB33: =IF('Races, Positions & Points'!CJ36="","",'Races, Positions & Points'!CJ36) ->  | AC33: =IF('Races, Positions & Points'!CM36="","",'Races, Positions & Points'!CM36) ->  | AD33: =IF('Races, Positions & Points'!CW36="","",'Races, Positions & Points'!CW36) ->  | AE33: =IF('Races, Positions & Points'!CP36="","",'Races, Positions & Points'!CP36) ->  | AF33: =IF('Races, Positions & Points'!CZ36="","",'Races, Positions & Points'!CZ36) ->  | AG33: =IF('Races, Positions & Points'!#REF!="","",'Races, Positions & Points'!#REF!) ->  | AH33: =IF('Races, Positions & Points'!DC36="","",'Races, Positions & Points'!DC36) ->  | AI33: =IF('Races, Positions & Points'!DF36="","",'Races, Positions & Points'!DF36) ->  | AJ33: =IF('Races, Positions & Points'!DI36="","",'Races, Positions & Points'!DI36) ->  | AK33: =IF('Races, Positions & Points'!DL36="","",'Races, Positions & Points'!DL36) ->  | AL33: =IF('Races, Positions & Points'!DO36="","",'Races, Positions & Points'!DO36) ->  | AM33: =IF('Races, Positions & Points'!DR36="","",'Races, Positions & Points'!DR36) ->  | AN33: =IF('Races, Positions & Points'!DS36="","",'Races, Positions & Points'!DS36) ->  | AO33: =IF('Races, Positions & Points'!DU36="","",'Races, Positions & Points'!DU36) ->  | AP33: =IF('Races, Positions & Points'!DX36="","",'Races, Positions & Points'!DX36) ->  | AQ33: =IF('Races, Positions & Points'!EA36="","",'Races, Positions & Points'!EA36) ->  | AR33: =IF('Races, Positions & Points'!ED36="","",'Races, Positions & Points'!ED36) ->  | AS33: =IF('Races, Positions & Points'!EG36="","",'Races, Positions & Points'!EG36) ->  | AT33: =IF('Races, Positions & Points'!#REF!="","",'Races, Positions & Points'!#REF!) ->  | AU33: =IF('Races, Positions & Points'!#REF!="","",'Races, Positions & Points'!#REF!) ->  | AV33: =IF('Races, Positions & Points'!#REF!="","",'Races, Positions & Points'!#REF!) ->  | AW33: =IF('Races, Positions & Points'!#REF!="","",'Races, Positions & Points'!#REF!) ->  | AX33: =IF('Races, Positions & Points'!#REF!="","",'Races, Positions & Points'!#REF!) ->  | AY33: =IF('Races, Positions & Points'!#REF!="","",'Races, Positions & Points'!#REF!) ->  | BH33: ='Races, Positions & Points'!E36 -> 20781 | BI33: ='Races, Positions & Points'!#REF! -> 
A34: ='Races, Positions & Points'!A37 -> Robyn Doherty | B34: =IF('Races, Positions & Points'!S37="","",'Races, Positions & Points'!S37) ->  | C34: =IF('Races, Positions & Points'!V37="","",'Races, Positions & Points'!V37) ->  | D34: =IF('Races, Positions & Points'!#REF!="","",'Races, Positions & Points'!#REF!) ->  | E34: =IF('Races, Positions & Points'!Y37="","",'Races, Positions & Points'!Y37) ->  | F34: =IF('Races, Positions & Points'!Z37="","",'Races, Positions & Points'!Z37) ->  | G34: =IF('Races, Positions & Points'!AC37="","",'Races, Positions & Points'!AC37) ->  | H34: =IF('Races, Positions & Points'!AD37="","",'Races, Positions & Points'!AD37) ->  | I34: =IF('Races, Positions & Points'!AG37="","",'Races, Positions & Points'!AG37) ->  | J34: =IF('Races, Positions & Points'!AJ37="","",'Races, Positions & Points'!AJ37) ->  | K34: =IF('Races, Positions & Points'!AM37="","",'Races, Positions & Points'!AM37) ->  | L34: =IF('Races, Positions & Points'!AP37="","",'Races, Positions & Points'!AP37) ->  | M34: =IF('Races, Positions & Points'!AS37="","",'Races, Positions & Points'!AS37) ->  | N34: =IF('Races, Positions & Points'!AV37="","",'Races, Positions & Points'!AV37) ->  | O34: =IF('Races, Positions & Points'!AY37="","",'Races, Positions & Points'!AY37) ->  | P34: =IF('Races, Positions & Points'!BB37="","",'Races, Positions & Points'!BB37) ->  | Q34: =IF('Races, Positions & Points'!BE37="","",'Races, Positions & Points'!BE37) ->  | R34: =IF('Races, Positions & Points'!BH37="","",'Races, Positions & Points'!BH37) ->  | S34: =IF('Races, Positions & Points'!BK37="","",'Races, Positions & Points'!BK37) ->  | T34: =IF('Races, Positions & Points'!BN37="","",'Races, Positions & Points'!BN37) ->  | U34: =IF('Races, Positions & Points'!BQ37="","",'Races, Positions & Points'!BQ37) ->  | V34: =IF('Races, Positions & Points'!BT37="","",'Races, Positions & Points'!BT37) ->  | W34: =IF('Races, Positions & Points'!#REF!="","",'Races, Positions & Points'!#REF!) ->  | X34: =IF('Races, Positions & Points'!BW37="","",'Races, Positions & Points'!BW37) ->  | Y34: =IF('Races, Positions & Points'!BZ37="","",'Races, Positions & Points'!BZ37) ->  | Z34: =IF('Races, Positions & Points'!CG37="","",'Races, Positions & Points'!CG37) ->  | AA34: =IF('Races, Positions & Points'!CC37="","",'Races, Positions & Points'!CC37) ->  | AB34: =IF('Races, Positions & Points'!CJ37="","",'Races, Positions & Points'!CJ37) ->  | AC34: =IF('Races, Positions & Points'!CM37="","",'Races, Positions & Points'!CM37) ->  | AD34: =IF('Races, Positions & Points'!CW37="","",'Races, Positions & Points'!CW37) ->  | AE34: =IF('Races, Positions & Points'!CP37="","",'Races, Positions & Points'!CP37) ->  | AF34: =IF('Races, Positions & Points'!CZ37="","",'Races, Positions & Points'!CZ37) ->  | AG34: =IF('Races, Positions & Points'!#REF!="","",'Races, Positions & Points'!#REF!) ->  | AH34: =IF('Races, Positions & Points'!DC37="","",'Races, Positions & Points'!DC37) ->  | AI34: =IF('Races, Positions & Points'!DF37="","",'Races, Positions & Points'!DF37) ->  | AJ34: =IF('Races, Positions & Points'!DI37="","",'Races, Positions & Points'!DI37) ->  | AK34: =IF('Races, Positions & Points'!DL37="","",'Races, Positions & Points'!DL37) ->  | AL34: =IF('Races, Positions & Points'!DO37="","",'Races, Positions & Points'!DO37) ->  | AM34: =IF('Races, Positions & Points'!DR37="","",'Races, Positions & Points'!DR37) ->  | AN34: =IF('Races, Positions & Points'!DS37="","",'Races, Positions & Points'!DS37) ->  | AO34: =IF('Races, Positions & Points'!DU37="","",'Races, Positions & Points'!DU37) ->  | AP34: =IF('Races, Positions & Points'!DX37="","",'Races, Positions & Points'!DX37) ->  | AQ34: =IF('Races, Positions & Points'!EA37="","",'Races, Positions & Points'!EA37) ->  | AR34: =IF('Races, Positions & Points'!ED37="","",'Races, Positions & Points'!ED37) ->  | AS34: =IF('Races, Positions & Points'!EG37="","",'Races, Positions & Points'!EG37) ->  | AT34: =IF('Races, Positions & Points'!#REF!="","",'Races, Positions & Points'!#REF!) ->  | AU34: =IF('Races, Positions & Points'!#REF!="","",'Races, Positions & Points'!#REF!) ->  | AV34: =IF('Races, Positions & Points'!#REF!="","",'Races, Positions & Points'!#REF!) ->  | AW34: =IF('Races, Positions & Points'!#REF!="","",'Races, Positions & Points'!#REF!) ->  | AX34: =IF('Races, Positions & Points'!#REF!="","",'Races, Positions & Points'!#REF!) ->  | AY34: =IF('Races, Positions & Points'!#REF!="","",'Races, Positions & Points'!#REF!) ->  | BH34: ='Races, Positions & Points'!E37 -> 19573 | BI34: ='Races, Positions & Points'!#REF! -> 
A35: ='Races, Positions & Points'!A38 -> Jane Lee | B35: =IF('Races, Positions & Points'!S38="","",'Races, Positions & Points'!S38) ->  | C35: =IF('Races, Positions & Points'!V38="","",'Races, Positions & Points'!V38) ->  | D35: =IF('Races, Positions & Points'!#REF!="","",'Races, Positions & Points'!#REF!) ->  | E35: =IF('Races, Positions & Points'!Y38="","",'Races, Positions & Points'!Y38) ->  | F35: =IF('Races, Positions & Points'!Z38="","",'Races, Positions & Points'!Z38) ->  | G35: =IF('Races, Positions & Points'!AC38="","",'Races, Positions & Points'!AC38) ->  | H35: =IF('Races, Positions & Points'!AD38="","",'Races, Positions & Points'!AD38) ->  | I35: =IF('Races, Positions & Points'!AG38="","",'Races, Positions & Points'!AG38) ->  | J35: =IF('Races, Positions & Points'!AJ38="","",'Races, Positions & Points'!AJ38) ->  | K35: =IF('Races, Positions & Points'!AM38="","",'Races, Positions & Points'!AM38) ->  | L35: =IF('Races, Positions & Points'!AP38="","",'Races, Positions & Points'!AP38) ->  | M35: =IF('Races, Positions & Points'!AS38="","",'Races, Positions & Points'!AS38) ->  | N35: =IF('Races, Positions & Points'!AV38="","",'Races, Positions & Points'!AV38) ->  | O35: =IF('Races, Positions & Points'!AY38="","",'Races, Positions & Points'!AY38) ->  | P35: =IF('Races, Positions & Points'!BB38="","",'Races, Positions & Points'!BB38) ->  | Q35: =IF('Races, Positions & Points'!BE38="","",'Races, Positions & Points'!BE38) ->  | R35: =IF('Races, Positions & Points'!BH38="","",'Races, Positions & Points'!BH38) ->  | S35: =IF('Races, Positions & Points'!BK38="","",'Races, Positions & Points'!BK38) ->  | T35: =IF('Races, Positions & Points'!BN38="","",'Races, Positions & Points'!BN38) ->  | U35: =IF('Races, Positions & Points'!BQ38="","",'Races, Positions & Points'!BQ38) ->  | V35: =IF('Races, Positions & Points'!BT38="","",'Races, Positions & Points'!BT38) ->  | W35: =IF('Races, Positions & Points'!#REF!="","",'Races, Positions & Points'!#REF!) ->  | X35: =IF('Races, Positions & Points'!BW38="","",'Races, Positions & Points'!BW38) ->  | Y35: =IF('Races, Positions & Points'!BZ38="","",'Races, Positions & Points'!BZ38) ->  | Z35: =IF('Races, Positions & Points'!CG38="","",'Races, Positions & Points'!CG38) ->  | AA35: =IF('Races, Positions & Points'!CC38="","",'Races, Positions & Points'!CC38) ->  | AB35: =IF('Races, Positions & Points'!CJ38="","",'Races, Positions & Points'!CJ38) ->  | AC35: =IF('Races, Positions & Points'!CM38="","",'Races, Positions & Points'!CM38) ->  | AD35: =IF('Races, Positions & Points'!CW38="","",'Races, Positions & Points'!CW38) ->  | AE35: =IF('Races, Positions & Points'!CP38="","",'Races, Positions & Points'!CP38) ->  | AF35: =IF('Races, Positions & Points'!CZ38="","",'Races, Positions & Points'!CZ38) ->  | AG35: =IF('Races, Positions & Points'!#REF!="","",'Races, Positions & Points'!#REF!) ->  | AH35: =IF('Races, Positions & Points'!DC38="","",'Races, Positions & Points'!DC38) ->  | AI35: =IF('Races, Positions & Points'!DF38="","",'Races, Positions & Points'!DF38) ->  | AJ35: =IF('Races, Positions & Points'!DI38="","",'Races, Positions & Points'!DI38) ->  | AK35: =IF('Races, Positions & Points'!DL38="","",'Races, Positions & Points'!DL38) ->  | AL35: =IF('Races, Positions & Points'!DO38="","",'Races, Positions & Points'!DO38) ->  | AM35: =IF('Races, Positions & Points'!DR38="","",'Races, Positions & Points'!DR38) ->  | AN35: =IF('Races, Positions & Points'!DS38="","",'Races, Positions & Points'!DS38) ->  | AO35: =IF('Races, Positions & Points'!DU38="","",'Races, Positions & Points'!DU38) ->  | AP35: =IF('Races, Positions & Points'!DX38="","",'Races, Positions & Points'!DX38) ->  | AQ35: =IF('Races, Positions & Points'!EA38="","",'Races, Positions & Points'!EA38) ->  | AR35: =IF('Races, Positions & Points'!ED38="","",'Races, Positions & Points'!ED38) ->  | AS35: =IF('Races, Positions & Points'!EG38="","",'Races, Positions & Points'!EG38) ->  | AT35: =IF('Races, Positions & Points'!#REF!="","",'Races, Positions & Points'!#REF!) ->  | AU35: =IF('Races, Positions & Points'!#REF!="","",'Races, Positions & Points'!#REF!) ->  | AV35: =IF('Races, Positions & Points'!#REF!="","",'Races, Positions & Points'!#REF!) ->  | AW35: =IF('Races, Positions & Points'!#REF!="","",'Races, Positions & Points'!#REF!) ->  | AX35: =IF('Races, Positions & Points'!#REF!="","",'Races, Positions & Points'!#REF!) ->  | AY35: =IF('Races, Positions & Points'!#REF!="","",'Races, Positions & Points'!#REF!) ->  | BH35: ='Races, Positions & Points'!E38 -> 41577 | BI35: ='Races, Positions & Points'!#REF! -> 
A36: ='Races, Positions & Points'!A39 -> Emily Dawes | B36: =IF('Races, Positions & Points'!S39="","",'Races, Positions & Points'!S39) ->  | C36: =IF('Races, Positions & Points'!V39="","",'Races, Positions & Points'!V39) ->  | D36: =IF('Races, Positions & Points'!#REF!="","",'Races, Positions & Points'!#REF!) ->  | E36: =IF('Races, Positions & Points'!Y39="","",'Races, Positions & Points'!Y39) ->  | F36: =IF('Races, Positions & Points'!Z39="","",'Races, Positions & Points'!Z39) ->  | G36: =IF('Races, Positions & Points'!AC39="","",'Races, Positions & Points'!AC39) ->  | H36: =IF('Races, Positions & Points'!AD39="","",'Races, Positions & Points'!AD39) ->  | I36: =IF('Races, Positions & Points'!AG39="","",'Races, Positions & Points'!AG39) ->  | J36: =IF('Races, Positions & Points'!AJ39="","",'Races, Positions & Points'!AJ39) ->  | K36: =IF('Races, Positions & Points'!AM39="","",'Races, Positions & Points'!AM39) ->  | L36: =IF('Races, Positions & Points'!AP39="","",'Races, Positions & Points'!AP39) ->  | M36: =IF('Races, Positions & Points'!AS39="","",'Races, Positions & Points'!AS39) ->  | N36: =IF('Races, Positions & Points'!AV39="","",'Races, Positions & Points'!AV39) ->  | O36: =IF('Races, Positions & Points'!AY39="","",'Races, Positions & Points'!AY39) ->  | P36: =IF('Races, Positions & Points'!BB39="","",'Races, Positions & Points'!BB39) ->  | Q36: =IF('Races, Positions & Points'!BE39="","",'Races, Positions & Points'!BE39) ->  | R36: =IF('Races, Positions & Points'!BH39="","",'Races, Positions & Points'!BH39) ->  | S36: =IF('Races, Positions & Points'!BK39="","",'Races, Positions & Points'!BK39) ->  | T36: =IF('Races, Positions & Points'!BN39="","",'Races, Positions & Points'!BN39) ->  | U36: =IF('Races, Positions & Points'!BQ39="","",'Races, Positions & Points'!BQ39) ->  | V36: =IF('Races, Positions & Points'!BT39="","",'Races, Positions & Points'!BT39) ->  | W36: =IF('Races, Positions & Points'!#REF!="","",'Races, Positions & Points'!#REF!) ->  | X36: =IF('Races, Positions & Points'!BW39="","",'Races, Positions & Points'!BW39) ->  | Y36: =IF('Races, Positions & Points'!BZ39="","",'Races, Positions & Points'!BZ39) ->  | Z36: =IF('Races, Positions & Points'!CG39="","",'Races, Positions & Points'!CG39) ->  | AA36: =IF('Races, Positions & Points'!CC39="","",'Races, Positions & Points'!CC39) ->  | AB36: =IF('Races, Positions & Points'!CJ39="","",'Races, Positions & Points'!CJ39) ->  | AC36: =IF('Races, Positions & Points'!CM39="","",'Races, Positions & Points'!CM39) ->  | AD36: =IF('Races, Positions & Points'!CW39="","",'Races, Positions & Points'!CW39) ->  | AE36: =IF('Races, Positions & Points'!CP39="","",'Races, Positions & Points'!CP39) ->  | AF36: =IF('Races, Positions & Points'!CZ39="","",'Races, Positions & Points'!CZ39) ->  | AG36: =IF('Races, Positions & Points'!#REF!="","",'Races, Positions & Points'!#REF!) ->  | AH36: =IF('Races, Positions & Points'!DC39="","",'Races, Positions & Points'!DC39) ->  | AI36: =IF('Races, Positions & Points'!DF39="","",'Races, Positions & Points'!DF39) ->  | AJ36: =IF('Races, Positions & Points'!DI39="","",'Races, Positions & Points'!DI39) ->  | AK36: =IF('Races, Positions & Points'!DL39="","",'Races, Positions & Points'!DL39) ->  | AL36: =IF('Races, Positions & Points'!DO39="","",'Races, Positions & Points'!DO39) ->  | AM36: =IF('Races, Positions & Points'!DR39="","",'Races, Positions & Points'!DR39) ->  | AN36: =IF('Races, Positions & Points'!DS39="","",'Races, Positions & Points'!DS39) ->  | AO36: =IF('Races, Positions & Points'!DU39="","",'Races, Positions & Points'!DU39) ->  | AP36: =IF('Races, Positions & Points'!DX39="","",'Races, Positions & Points'!DX39) ->  | AQ36: =IF('Races, Positions & Points'!EA39="","",'Races, Positions & Points'!EA39) ->  | AR36: =IF('Races, Positions & Points'!ED39="","",'Races, Positions & Points'!ED39) ->  | AS36: =IF('Races, Positions & Points'!EG39="","",'Races, Positions & Points'!EG39) ->  | AT36: =IF('Races, Positions & Points'!#REF!="","",'Races, Positions & Points'!#REF!) ->  | AU36: =IF('Races, Positions & Points'!#REF!="","",'Races, Positions & Points'!#REF!) ->  | AV36: =IF('Races, Positions & Points'!#REF!="","",'Races, Positions & Points'!#REF!) ->  | AW36: =IF('Races, Positions & Points'!#REF!="","",'Races, Positions & Points'!#REF!) ->  | AX36: =IF('Races, Positions & Points'!#REF!="","",'Races, Positions & Points'!#REF!) ->  | AY36: =IF('Races, Positions & Points'!#REF!="","",'Races, Positions & Points'!#REF!) ->  | BH36: ='Races, Positions & Points'!E39 -> 14263 | BI36: ='Races, Positions & Points'!#REF! -> 
A37: ='Races, Positions & Points'!A40 -> Sophia Phelps | B37: =IF('Races, Positions & Points'!S40="","",'Races, Positions & Points'!S40) ->  | C37: =IF('Races, Positions & Points'!V40="","",'Races, Positions & Points'!V40) ->  | D37: =IF('Races, Positions & Points'!#REF!="","",'Races, Positions & Points'!#REF!) ->  | E37: =IF('Races, Positions & Points'!Y40="","",'Races, Positions & Points'!Y40) ->  | F37: =IF('Races, Positions & Points'!Z40="","",'Races, Positions & Points'!Z40) ->  | G37: =IF('Races, Positions & Points'!AC40="","",'Races, Positions & Points'!AC40) ->  | H37: =IF('Races, Positions & Points'!AD40="","",'Races, Positions & Points'!AD40) ->  | I37: =IF('Races, Positions & Points'!AG40="","",'Races, Positions & Points'!AG40) ->  | J37: =IF('Races, Positions & Points'!AJ40="","",'Races, Positions & Points'!AJ40) ->  | K37: =IF('Races, Positions & Points'!AM40="","",'Races, Positions & Points'!AM40) ->  | L37: =IF('Races, Positions & Points'!AP40="","",'Races, Positions & Points'!AP40) ->  | M37: =IF('Races, Positions & Points'!AS40="","",'Races, Positions & Points'!AS40) ->  | N37: =IF('Races, Positions & Points'!AV40="","",'Races, Positions & Points'!AV40) ->  | O37: =IF('Races, Positions & Points'!AY40="","",'Races, Positions & Points'!AY40) ->  | P37: =IF('Races, Positions & Points'!BB40="","",'Races, Positions & Points'!BB40) ->  | Q37: =IF('Races, Positions & Points'!BE40="","",'Races, Positions & Points'!BE40) ->  | R37: =IF('Races, Positions & Points'!BH40="","",'Races, Positions & Points'!BH40) ->  | S37: =IF('Races, Positions & Points'!BK40="","",'Races, Positions & Points'!BK40) ->  | T37: =IF('Races, Positions & Points'!BN40="","",'Races, Positions & Points'!BN40) ->  | U37: =IF('Races, Positions & Points'!BQ40="","",'Races, Positions & Points'!BQ40) ->  | V37: =IF('Races, Positions & Points'!BT40="","",'Races, Positions & Points'!BT40) ->  | W37: =IF('Races, Positions & Points'!#REF!="","",'Races, Positions & Points'!#REF!) ->  | X37: =IF('Races, Positions & Points'!BW40="","",'Races, Positions & Points'!BW40) ->  | Y37: =IF('Races, Positions & Points'!BZ40="","",'Races, Positions & Points'!BZ40) ->  | Z37: =IF('Races, Positions & Points'!CG40="","",'Races, Positions & Points'!CG40) ->  | AA37: =IF('Races, Positions & Points'!CC40="","",'Races, Positions & Points'!CC40) ->  | AB37: =IF('Races, Positions & Points'!CJ40="","",'Races, Positions & Points'!CJ40) ->  | AC37: =IF('Races, Positions & Points'!CM40="","",'Races, Positions & Points'!CM40) ->  | AD37: =IF('Races, Positions & Points'!CW40="","",'Races, Positions & Points'!CW40) ->  | AE37: =IF('Races, Positions & Points'!CP40="","",'Races, Positions & Points'!CP40) ->  | AF37: =IF('Races, Positions & Points'!CZ40="","",'Races, Positions & Points'!CZ40) ->  | AG37: =IF('Races, Positions & Points'!#REF!="","",'Races, Positions & Points'!#REF!) ->  | AH37: =IF('Races, Positions & Points'!DC40="","",'Races, Positions & Points'!DC40) ->  | AI37: =IF('Races, Positions & Points'!DF40="","",'Races, Positions & Points'!DF40) ->  | AJ37: =IF('Races, Positions & Points'!DI40="","",'Races, Positions & Points'!DI40) ->  | AK37: =IF('Races, Positions & Points'!DL40="","",'Races, Positions & Points'!DL40) ->  | AL37: =IF('Races, Positions & Points'!DO40="","",'Races, Positions & Points'!DO40) ->  | AM37: =IF('Races, Positions & Points'!DR40="","",'Races, Positions & Points'!DR40) ->  | AN37: =IF('Races, Positions & Points'!DS40="","",'Races, Positions & Points'!DS40) ->  | AO37: =IF('Races, Positions & Points'!DU40="","",'Races, Positions & Points'!DU40) ->  | AP37: =IF('Races, Positions & Points'!DX40="","",'Races, Positions & Points'!DX40) ->  | AQ37: =IF('Races, Positions & Points'!EA40="","",'Races, Positions & Points'!EA40) ->  | AR37: =IF('Races, Positions & Points'!ED40="","",'Races, Positions & Points'!ED40) ->  | AS37: =IF('Races, Positions & Points'!EG40="","",'Races, Positions & Points'!EG40) ->  | AT37: =IF('Races, Positions & Points'!#REF!="","",'Races, Positions & Points'!#REF!) ->  | AU37: =IF('Races, Positions & Points'!#REF!="","",'Races, Positions & Points'!#REF!) ->  | AV37: =IF('Races, Positions & Points'!#REF!="","",'Races, Positions & Points'!#REF!) ->  | AW37: =IF('Races, Positions & Points'!#REF!="","",'Races, Positions & Points'!#REF!) ->  | AX37: =IF('Races, Positions & Points'!#REF!="","",'Races, Positions & Points'!#REF!) ->  | AY37: =IF('Races, Positions & Points'!#REF!="","",'Races, Positions & Points'!#REF!) ->  | BH37: ='Races, Positions & Points'!E40 -> 17839 | BI37: ='Races, Positions & Points'!#REF! -> 
A38: ='Races, Positions & Points'!A41 -> Olivia Waller | B38: =IF('Races, Positions & Points'!S41="","",'Races, Positions & Points'!S41) ->  | C38: =IF('Races, Positions & Points'!V41="","",'Races, Positions & Points'!V41) ->  | D38: =IF('Races, Positions & Points'!#REF!="","",'Races, Positions & Points'!#REF!) ->  | E38: =IF('Races, Positions & Points'!Y41="","",'Races, Positions & Points'!Y41) ->  | F38: =IF('Races, Positions & Points'!Z41="","",'Races, Positions & Points'!Z41) ->  | G38: =IF('Races, Positions & Points'!AC41="","",'Races, Positions & Points'!AC41) ->  | H38: =IF('Races, Positions & Points'!AD41="","",'Races, Positions & Points'!AD41) ->  | I38: =IF('Races, Positions & Points'!AG41="","",'Races, Positions & Points'!AG41) ->  | J38: =IF('Races, Positions & Points'!AJ41="","",'Races, Positions & Points'!AJ41) ->  | K38: =IF('Races, Positions & Points'!AM41="","",'Races, Positions & Points'!AM41) ->  | L38: =IF('Races, Positions & Points'!AP41="","",'Races, Positions & Points'!AP41) ->  | M38: =IF('Races, Positions & Points'!AS41="","",'Races, Positions & Points'!AS41) ->  | N38: =IF('Races, Positions & Points'!AV41="","",'Races, Positions & Points'!AV41) ->  | O38: =IF('Races, Positions & Points'!AY41="","",'Races, Positions & Points'!AY41) ->  | P38: =IF('Races, Positions & Points'!BB41="","",'Races, Positions & Points'!BB41) ->  | Q38: =IF('Races, Positions & Points'!BE41="","",'Races, Positions & Points'!BE41) ->  | R38: =IF('Races, Positions & Points'!BH41="","",'Races, Positions & Points'!BH41) ->  | S38: =IF('Races, Positions & Points'!BK41="","",'Races, Positions & Points'!BK41) ->  | T38: =IF('Races, Positions & Points'!BN41="","",'Races, Positions & Points'!BN41) ->  | U38: =IF('Races, Positions & Points'!BQ41="","",'Races, Positions & Points'!BQ41) ->  | V38: =IF('Races, Positions & Points'!BT41="","",'Races, Positions & Points'!BT41) ->  | W38: =IF('Races, Positions & Points'!#REF!="","",'Races, Positions & Points'!#REF!) ->  | X38: =IF('Races, Positions & Points'!BW41="","",'Races, Positions & Points'!BW41) ->  | Y38: =IF('Races, Positions & Points'!BZ41="","",'Races, Positions & Points'!BZ41) ->  | Z38: =IF('Races, Positions & Points'!CG41="","",'Races, Positions & Points'!CG41) ->  | AA38: =IF('Races, Positions & Points'!CC41="","",'Races, Positions & Points'!CC41) ->  | AB38: =IF('Races, Positions & Points'!CJ41="","",'Races, Positions & Points'!CJ41) ->  | AC38: =IF('Races, Positions & Points'!CM41="","",'Races, Positions & Points'!CM41) ->  | AD38: =IF('Races, Positions & Points'!CW41="","",'Races, Positions & Points'!CW41) ->  | AE38: =IF('Races, Positions & Points'!CP41="","",'Races, Positions & Points'!CP41) ->  | AF38: =IF('Races, Positions & Points'!CZ41="","",'Races, Positions & Points'!CZ41) ->  | AG38: =IF('Races, Positions & Points'!#REF!="","",'Races, Positions & Points'!#REF!) ->  | AH38: =IF('Races, Positions & Points'!DC41="","",'Races, Positions & Points'!DC41) ->  | AI38: =IF('Races, Positions & Points'!DF41="","",'Races, Positions & Points'!DF41) ->  | AJ38: =IF('Races, Positions & Points'!DI41="","",'Races, Positions & Points'!DI41) ->  | AK38: =IF('Races, Positions & Points'!DL41="","",'Races, Positions & Points'!DL41) ->  | AL38: =IF('Races, Positions & Points'!DO41="","",'Races, Positions & Points'!DO41) ->  | AM38: =IF('Races, Positions & Points'!DR41="","",'Races, Positions & Points'!DR41) ->  | AN38: =IF('Races, Positions & Points'!DS41="","",'Races, Positions & Points'!DS41) ->  | AO38: =IF('Races, Positions & Points'!DU41="","",'Races, Positions & Points'!DU41) ->  | AP38: =IF('Races, Positions & Points'!DX41="","",'Races, Positions & Points'!DX41) ->  | AQ38: =IF('Races, Positions & Points'!EA41="","",'Races, Positions & Points'!EA41) ->  | AR38: =IF('Races, Positions & Points'!ED41="","",'Races, Positions & Points'!ED41) ->  | AS38: =IF('Races, Positions & Points'!EG41="","",'Races, Positions & Points'!EG41) ->  | AT38: =IF('Races, Positions & Points'!#REF!="","",'Races, Positions & Points'!#REF!) ->  | AU38: =IF('Races, Positions & Points'!#REF!="","",'Races, Positions & Points'!#REF!) ->  | AV38: =IF('Races, Positions & Points'!#REF!="","",'Races, Positions & Points'!#REF!) ->  | AW38: =IF('Races, Positions & Points'!#REF!="","",'Races, Positions & Points'!#REF!) ->  | AX38: =IF('Races, Positions & Points'!#REF!="","",'Races, Positions & Points'!#REF!) ->  | AY38: =IF('Races, Positions & Points'!#REF!="","",'Races, Positions & Points'!#REF!) ->  | BH38: ='Races, Positions & Points'!E41 -> 17516 | BI38: ='Races, Positions & Points'!#REF! -> 
A39: ='Races, Positions & Points'!A44 -> Agathe Vallat | B39: =IF('Races, Positions & Points'!S44="","",'Races, Positions & Points'!S44) ->  | C39: =IF('Races, Positions & Points'!V44="","",'Races, Positions & Points'!V44) ->  | D39: =IF('Races, Positions & Points'!#REF!="","",'Races, Positions & Points'!#REF!) ->  | E39: =IF('Races, Positions & Points'!Y44="","",'Races, Positions & Points'!Y44) ->  | F39: =IF('Races, Positions & Points'!Z44="","",'Races, Positions & Points'!Z44) ->  | G39: =IF('Races, Positions & Points'!AC44="","",'Races, Positions & Points'!AC44) ->  | H39: =IF('Races, Positions & Points'!AD44="","",'Races, Positions & Points'!AD44) ->  | I39: =IF('Races, Positions & Points'!AG44="","",'Races, Positions & Points'!AG44) ->  | J39: =IF('Races, Positions & Points'!AJ44="","",'Races, Positions & Points'!AJ44) ->  | K39: =IF('Races, Positions & Points'!AM44="","",'Races, Positions & Points'!AM44) ->  | L39: =IF('Races, Positions & Points'!AP44="","",'Races, Positions & Points'!AP44) ->  | M39: =IF('Races, Positions & Points'!AS44="","",'Races, Positions & Points'!AS44) ->  | N39: =IF('Races, Positions & Points'!AV44="","",'Races, Positions & Points'!AV44) ->  | O39: =IF('Races, Positions & Points'!AY44="","",'Races, Positions & Points'!AY44) ->  | P39: =IF('Races, Positions & Points'!BB44="","",'Races, Positions & Points'!BB44) ->  | Q39: =IF('Races, Positions & Points'!BE44="","",'Races, Positions & Points'!BE44) ->  | R39: =IF('Races, Positions & Points'!BH44="","",'Races, Positions & Points'!BH44) ->  | S39: =IF('Races, Positions & Points'!BK44="","",'Races, Positions & Points'!BK44) ->  | T39: =IF('Races, Positions & Points'!BN44="","",'Races, Positions & Points'!BN44) ->  | U39: =IF('Races, Positions & Points'!BQ44="","",'Races, Positions & Points'!BQ44) ->  | V39: =IF('Races, Positions & Points'!BT44="","",'Races, Positions & Points'!BT44) ->  | W39: =IF('Races, Positions & Points'!#REF!="","",'Races, Positions & Points'!#REF!) ->  | X39: =IF('Races, Positions & Points'!BW44="","",'Races, Positions & Points'!BW44) ->  | Y39: =IF('Races, Positions & Points'!BZ44="","",'Races, Positions & Points'!BZ44) ->  | Z39: =IF('Races, Positions & Points'!CG44="","",'Races, Positions & Points'!CG44) ->  | AA39: =IF('Races, Positions & Points'!CC44="","",'Races, Positions & Points'!CC44) ->  | AB39: =IF('Races, Positions & Points'!CJ44="","",'Races, Positions & Points'!CJ44) ->  | AC39: =IF('Races, Positions & Points'!CM44="","",'Races, Positions & Points'!CM44) ->  | AD39: =IF('Races, Positions & Points'!CW44="","",'Races, Positions & Points'!CW44) ->  | AE39: =IF('Races, Positions & Points'!CP44="","",'Races, Positions & Points'!CP44) ->  | AF39: =IF('Races, Positions & Points'!CZ44="","",'Races, Positions & Points'!CZ44) ->  | AG39: =IF('Races, Positions & Points'!#REF!="","",'Races, Positions & Points'!#REF!) ->  | AH39: =IF('Races, Positions & Points'!DC44="","",'Races, Positions & Points'!DC44) ->  | AI39: =IF('Races, Positions & Points'!DF44="","",'Races, Positions & Points'!DF44) ->  | AJ39: =IF('Races, Positions & Points'!DI44="","",'Races, Positions & Points'!DI44) ->  | AK39: =IF('Races, Positions & Points'!DL44="","",'Races, Positions & Points'!DL44) ->  | AL39: =IF('Races, Positions & Points'!DO44="","",'Races, Positions & Points'!DO44) ->  | AM39: =IF('Races, Positions & Points'!DR44="","",'Races, Positions & Points'!DR44) ->  | AN39: =IF('Races, Positions & Points'!DS44="","",'Races, Positions & Points'!DS44) ->  | AO39: =IF('Races, Positions & Points'!DU44="","",'Races, Positions & Points'!DU44) ->  | AP39: =IF('Races, Positions & Points'!DX44="","",'Races, Positions & Points'!DX44) ->  | AQ39: =IF('Races, Positions & Points'!EA44="","",'Races, Positions & Points'!EA44) ->  | AR39: =IF('Races, Positions & Points'!ED44="","",'Races, Positions & Points'!ED44) ->  | AS39: =IF('Races, Positions & Points'!EG44="","",'Races, Positions & Points'!EG44) ->  | AT39: =IF('Races, Positions & Points'!#REF!="","",'Races, Positions & Points'!#REF!) ->  | AU39: =IF('Races, Positions & Points'!#REF!="","",'Races, Positions & Points'!#REF!) ->  | AV39: =IF('Races, Positions & Points'!#REF!="","",'Races, Positions & Points'!#REF!) ->  | AW39: =IF('Races, Positions & Points'!#REF!="","",'Races, Positions & Points'!#REF!) ->  | AX39: =IF('Races, Positions & Points'!#REF!="","",'Races, Positions & Points'!#REF!) ->  | AY39: =IF('Races, Positions & Points'!#REF!="","",'Races, Positions & Points'!#REF!) ->  | BH39: ='Races, Positions & Points'!E44 -> 21606 | BI39: ='Races, Positions & Points'!#REF! -> 
A40: ='Races, Positions & Points'!A47 -> Carys Phillips | B40: =IF('Races, Positions & Points'!S47="","",'Races, Positions & Points'!S47) ->  | C40: =IF('Races, Positions & Points'!V47="","",'Races, Positions & Points'!V47) ->  | D40: =IF('Races, Positions & Points'!#REF!="","",'Races, Positions & Points'!#REF!) ->  | E40: =IF('Races, Positions & Points'!Y47="","",'Races, Positions & Points'!Y47) ->  | F40: =IF('Races, Positions & Points'!Z47="","",'Races, Positions & Points'!Z47) ->  | G40: =IF('Races, Positions & Points'!AC47="","",'Races, Positions & Points'!AC47) ->  | H40: =IF('Races, Positions & Points'!AD47="","",'Races, Positions & Points'!AD47) ->  | I40: =IF('Races, Positions & Points'!AG47="","",'Races, Positions & Points'!AG47) ->  | J40: =IF('Races, Positions & Points'!AJ47="","",'Races, Positions & Points'!AJ47) ->  | K40: =IF('Races, Positions & Points'!AM47="","",'Races, Positions & Points'!AM47) ->  | L40: =IF('Races, Positions & Points'!AP47="","",'Races, Positions & Points'!AP47) ->  | M40: =IF('Races, Positions & Points'!AS47="","",'Races, Positions & Points'!AS47) ->  | N40: =IF('Races, Positions & Points'!AV47="","",'Races, Positions & Points'!AV47) ->  | O40: =IF('Races, Positions & Points'!AY47="","",'Races, Positions & Points'!AY47) ->  | P40: =IF('Races, Positions & Points'!BB47="","",'Races, Positions & Points'!BB47) ->  | Q40: =IF('Races, Positions & Points'!BE47="","",'Races, Positions & Points'!BE47) ->  | R40: =IF('Races, Positions & Points'!BH47="","",'Races, Positions & Points'!BH47) ->  | S40: =IF('Races, Positions & Points'!BK47="","",'Races, Positions & Points'!BK47) ->  | T40: =IF('Races, Positions & Points'!BN47="","",'Races, Positions & Points'!BN47) ->  | U40: =IF('Races, Positions & Points'!BQ47="","",'Races, Positions & Points'!BQ47) ->  | V40: =IF('Races, Positions & Points'!BT47="","",'Races, Positions & Points'!BT47) ->  | W40: =IF('Races, Positions & Points'!#REF!="","",'Races, Positions & Points'!#REF!) ->  | X40: =IF('Races, Positions & Points'!BW47="","",'Races, Positions & Points'!BW47) ->  | Y40: =IF('Races, Positions & Points'!BZ47="","",'Races, Positions & Points'!BZ47) ->  | Z40: =IF('Races, Positions & Points'!CG47="","",'Races, Positions & Points'!CG47) ->  | AA40: =IF('Races, Positions & Points'!CC47="","",'Races, Positions & Points'!CC47) ->  | AB40: =IF('Races, Positions & Points'!CJ47="","",'Races, Positions & Points'!CJ47) ->  | AC40: =IF('Races, Positions & Points'!CM47="","",'Races, Positions & Points'!CM47) ->  | AD40: =IF('Races, Positions & Points'!CW47="","",'Races, Positions & Points'!CW47) ->  | AE40: =IF('Races, Positions & Points'!CP47="","",'Races, Positions & Points'!CP47) ->  | AF40: =IF('Races, Positions & Points'!CZ47="","",'Races, Positions & Points'!CZ47) ->  | AG40: =IF('Races, Positions & Points'!#REF!="","",'Races, Positions & Points'!#REF!) ->  | AH40: =IF('Races, Positions & Points'!DC47="","",'Races, Positions & Points'!DC47) ->  | AI40: =IF('Races, Positions & Points'!DF47="","",'Races, Positions & Points'!DF47) ->  | AJ40: =IF('Races, Positions & Points'!DI47="","",'Races, Positions & Points'!DI47) ->  | AK40: =IF('Races, Positions & Points'!DL47="","",'Races, Positions & Points'!DL47) ->  | AL40: =IF('Races, Positions & Points'!DO47="","",'Races, Positions & Points'!DO47) ->  | AM40: =IF('Races, Positions & Points'!DR47="","",'Races, Positions & Points'!DR47) ->  | AN40: =IF('Races, Positions & Points'!DS47="","",'Races, Positions & Points'!DS47) ->  | AO40: =IF('Races, Positions & Points'!DU47="","",'Races, Positions & Points'!DU47) ->  | AP40: =IF('Races, Positions & Points'!DX47="","",'Races, Positions & Points'!DX47) ->  | AQ40: =IF('Races, Positions & Points'!EA47="","",'Races, Positions & Points'!EA47) ->  | AR40: =IF('Races, Positions & Points'!ED47="","",'Races, Positions & Points'!ED47) ->  | AS40: =IF('Races, Positions & Points'!EG47="","",'Races, Positions & Points'!EG47) ->  | AT40: =IF('Races, Positions & Points'!#REF!="","",'Races, Positions & Points'!#REF!) ->  | AU40: =IF('Races, Positions & Points'!#REF!="","",'Races, Positions & Points'!#REF!) ->  | AV40: =IF('Races, Positions & Points'!#REF!="","",'Races, Positions & Points'!#REF!) ->  | AW40: =IF('Races, Positions & Points'!#REF!="","",'Races, Positions & Points'!#REF!) ->  | AX40: =IF('Races, Positions & Points'!#REF!="","",'Races, Positions & Points'!#REF!) ->  | AY40: =IF('Races, Positions & Points'!#REF!="","",'Races, Positions & Points'!#REF!) ->  | BH40: ='Races, Positions & Points'!E47 -> Day | BI40: ='Races, Positions & Points'!#REF! -> 
A42: ='Races, Positions & Points'!A49 -> Harry Hornsby | B42: =IF('Races, Positions & Points'!S49="","",'Races, Positions & Points'!S49) ->  | C42: =IF('Races, Positions & Points'!V49="","",'Races, Positions & Points'!V49) ->  | D42: =IF('Races, Positions & Points'!#REF!="","",'Races, Positions & Points'!#REF!) ->  | E42: =IF('Races, Positions & Points'!Y49="","",'Races, Positions & Points'!Y49) ->  | F42: =IF('Races, Positions & Points'!Z49="","",'Races, Positions & Points'!Z49) ->  | G42: =IF('Races, Positions & Points'!AC49="","",'Races, Positions & Points'!AC49) ->  | H42: =IF('Races, Positions & Points'!AD49="","",'Races, Positions & Points'!AD49) ->  | I42: =IF('Races, Positions & Points'!AG49="","",'Races, Positions & Points'!AG49) ->  | J42: =IF('Races, Positions & Points'!AJ49="","",'Races, Positions & Points'!AJ49) -> 14.09 | K42: =IF('Races, Positions & Points'!AM49="","",'Races, Positions & Points'!AM49) ->  | L42: =IF('Races, Positions & Points'!AP49="","",'Races, Positions & Points'!AP49) ->  | M42: =IF('Races, Positions & Points'!AS49="","",'Races, Positions & Points'!AS49) ->  | N42: =IF('Races, Positions & Points'!AV49="","",'Races, Positions & Points'!AV49) -> 28.26 | O42: =IF('Races, Positions & Points'!AY49="","",'Races, Positions & Points'!AY49) -> 14.45 | P42: =IF('Races, Positions & Points'!BB49="","",'Races, Positions & Points'!BB49) ->  | Q42: =IF('Races, Positions & Points'!BE49="","",'Races, Positions & Points'!BE49) ->  | R42: =IF('Races, Positions & Points'!BH49="","",'Races, Positions & Points'!BH49) -> 46.49 | S42: =IF('Races, Positions & Points'!BK49="","",'Races, Positions & Points'!BK49) ->  | T42: =IF('Races, Positions & Points'!BN49="","",'Races, Positions & Points'!BN49) ->  | U42: =IF('Races, Positions & Points'!BQ49="","",'Races, Positions & Points'!BQ49) ->  | V42: =IF('Races, Positions & Points'!BT49="","",'Races, Positions & Points'!BT49) ->  | W42: =IF('Races, Positions & Points'!#REF!="","",'Races, Positions & Points'!#REF!) ->  | X42: =IF('Races, Positions & Points'!BW49="","",'Races, Positions & Points'!BW49) -> dnf | Y42: =IF('Races, Positions & Points'!BZ49="","",'Races, Positions & Points'!BZ49) ->  | Z42: =IF('Races, Positions & Points'!CG49="","",'Races, Positions & Points'!CG49) ->  | AA42: =IF('Races, Positions & Points'!CC49="","",'Races, Positions & Points'!CC49) -> 10 | AB42: =IF('Races, Positions & Points'!CJ49="","",'Races, Positions & Points'!CJ49) ->  | AC42: =IF('Races, Positions & Points'!CM49="","",'Races, Positions & Points'!CM49) ->  | AD42: =IF('Races, Positions & Points'!CW49="","",'Races, Positions & Points'!CW49) ->  | AE42: =IF('Races, Positions & Points'!CP49="","",'Races, Positions & Points'!CP49) ->  | AF42: =IF('Races, Positions & Points'!CZ49="","",'Races, Positions & Points'!CZ49) ->  | AG42: =IF('Races, Positions & Points'!#REF!="","",'Races, Positions & Points'!#REF!) ->  | AH42: =IF('Races, Positions & Points'!DC49="","",'Races, Positions & Points'!DC49) -> 18.67 | AI42: =IF('Races, Positions & Points'!DF49="","",'Races, Positions & Points'!DF49) ->  | AJ42: =IF('Races, Positions & Points'!DI49="","",'Races, Positions & Points'!DI49) ->  | AK42: =IF('Races, Positions & Points'!DL49="","",'Races, Positions & Points'!DL49) ->  | AL42: =IF('Races, Positions & Points'!DO49="","",'Races, Positions & Points'!DO49) ->  | AM42: =IF('Races, Positions & Points'!DR49="","",'Races, Positions & Points'!DR49) ->  | AN42: =IF('Races, Positions & Points'!DS49="","",'Races, Positions & Points'!DS49) ->  | AO42: =IF('Races, Positions & Points'!DU49="","",'Races, Positions & Points'!DU49) ->  | AP42: =IF('Races, Positions & Points'!DX49="","",'Races, Positions & Points'!DX49) ->  | AQ42: =IF('Races, Positions & Points'!EA49="","",'Races, Positions & Points'!EA49) ->  | AR42: =IF('Races, Positions & Points'!ED49="","",'Races, Positions & Points'!ED49) ->  | AS42: =IF('Races, Positions & Points'!EG49="","",'Races, Positions & Points'!EG49) ->  | AT42: =IF('Races, Positions & Points'!#REF!="","",'Races, Positions & Points'!#REF!) ->  | AU42: =IF('Races, Positions & Points'!#REF!="","",'Races, Positions & Points'!#REF!) ->  | AV42: =IF('Races, Positions & Points'!#REF!="","",'Races, Positions & Points'!#REF!) ->  | AW42: =IF('Races, Positions & Points'!#REF!="","",'Races, Positions & Points'!#REF!) ->  | AX42: =IF('Races, Positions & Points'!#REF!="","",'Races, Positions & Points'!#REF!) ->  | AY42: =IF('Races, Positions & Points'!#REF!="","",'Races, Positions & Points'!#REF!) ->  | BA42: =SUMPRODUCT(--(B$4:AY$4="In"),--(B$3:AY$3>5),--(B$5:AY$5="Y"),--(B42:AY42<>"")) ->  | BB42: =SUMPRODUCT(--(B$4:AY$4="Out"),--(B$3:AY$3>5),--(B$5:AY$5="Y"),--(B42:AY42<>"")) ->  | BC42: =SUMPRODUCT(--(B$4:AY$4="In"),--(B$3:AY$3=5),--(B$5:AY$5="Y"),--(B42:AY42<>"")) ->  | BD42: =SUMPRODUCT(--(B$4:AY$4="Out"),--(B$3:AY$3=5),--(B$5:AY$5="Y"),--(B42:AY42<>"")) ->  | BE42: =SUMPRODUCT(--(B$4:AY$4="In"),--(B$3:AY$3=0),--(B$5:AY$5="Y"),--(B42:AY42<>"")) ->  | BF42: =SUMPRODUCT(--(B$4:AY$4="Out"),--(B$3:AY$3=0),--(B$5:AY$5="Y"),--(B42:AY42<>"")) ->  | BH42: ='Races, Positions & Points'!E49 -> 17356 | BI42: ='Races, Positions & Points'!#REF! ->  | CB42: =IF(MIN(C42,K42,L42,AH42,AI42,AK42,AL42)>0,MIN(C42,K42,L42,AH42,AI42,AK42,AL42),"") -> 18.67 | CC42: =IF(MIN(E42,F42,G42,H42,Z42,AF42,AG42,AP42,AQ42,AU42)>0,MIN(E42,F42,G42,H42,Z42,AF42,AG42,AP42,AQ42,AU42),"") ->  | CD42: =IF(MIN(T42,V42)>0,MIN(T42,V42),"") ->  | CE42: =IF(MIN(W42,X42)>0,MIN(W42,X42),"") ->  | CF42: =IF(MIN(B42,M42,N42,AR42,AS42)>0,MIN(B42,M42,N42,AR42,AS42),"") -> 28.26 | CG42: =IF(MIN(D42,O42,AB42,AC42,AE42)>0,MIN(D42,O42,AB42,AC42,AE42),"") ->  | CH42: =IF(MIN(I42,J42)>0,MIN(I42,J42),"") -> 14.09 | CI42: =IF(Q42>0,Q42,"") ->  | CJ42: =IF(MIN(S42,AM42,AT42,AY42)>0,MIN(S42,AM42,AT42,AY42),"") ->  | CK42: =IF(MIN(P42,R42)>0,MIN(P42,R42),"") -> 46.49 | CL42: =IF(U42>0,U42,"") ->  | CM42: =IF(MIN(Y42,AO42)>0,MIN(Y42,AO42),"") ->  | CN42: =IF(AA42>0,AA42,"") -> 10 | CO42: =IF(AD42>0,AD42,"") ->  | CP42: =IF(AJ42>0,AJ42,"") ->  | CQ42: =IF(MIN(AV42,AW42)>0,MIN(AV42,AW42),"") ->  | CV42: =IF(ISERROR(CS42*1.2),"",IF(CS42<50,CS42+10,IF(CS42<999.99,CS42*1.2,""))) ->  | DC42: =IF(MIN(C42,K42,L42,AH42,AI42,AK42,AL42)>0,MIN(C42,K42,L42,AH42,AI42,AK42,AL42),"") -> 18.67 | DD42: =IF(MIN(Z42,AF42,AG42,AP42,AQ42,AU42)>0,MIN(Z42,AF42,AG42,AP42,AQ42,AU42),"") ->  | DE42: =IF(MIN(T42,V42)>0,MIN(T42,V42),"") ->  | DF42: =IF(MIN(M42,N42,AR42,AS42)>0,MIN(M42,N42,AR42,AS42),"") -> 28.26 | DG42: =IF(MIN(O42,AE42),MIN(O42,AE42),"") -> 14.45 | DH42: =IF(J42>0,J42,"") -> 14.09 | DI42: =IF(MIN(AM42,AY42)>0,MIN(AM42,AY42),"") ->  | DJ42: =IF(R42>0,R42,"") -> 46.49 | DL42: =IF(MIN(AV42,AW42),MIN(AV42,AW42),"") -> 
A43: ='Races, Positions & Points'!A50 -> Jonny Powell | B43: =IF('Races, Positions & Points'!S50="","",'Races, Positions & Points'!S50) ->  | C43: =IF('Races, Positions & Points'!V50="","",'Races, Positions & Points'!V50) ->  | D43: =IF('Races, Positions & Points'!#REF!="","",'Races, Positions & Points'!#REF!) ->  | E43: =IF('Races, Positions & Points'!Y50="","",'Races, Positions & Points'!Y50) ->  | F43: =IF('Races, Positions & Points'!Z50="","",'Races, Positions & Points'!Z50) ->  | G43: =IF('Races, Positions & Points'!AC50="","",'Races, Positions & Points'!AC50) ->  | H43: =IF('Races, Positions & Points'!AD50="","",'Races, Positions & Points'!AD50) ->  | I43: =IF('Races, Positions & Points'!AG50="","",'Races, Positions & Points'!AG50) ->  | J43: =IF('Races, Positions & Points'!AJ50="","",'Races, Positions & Points'!AJ50) -> 56.05 | K43: =IF('Races, Positions & Points'!AM50="","",'Races, Positions & Points'!AM50) -> 56.27 | L43: =IF('Races, Positions & Points'!AP50="","",'Races, Positions & Points'!AP50) ->  | M43: =IF('Races, Positions & Points'!AS50="","",'Races, Positions & Points'!AS50) ->  | N43: =IF('Races, Positions & Points'!AV50="","",'Races, Positions & Points'!AV50) ->  | O43: =IF('Races, Positions & Points'!AY50="","",'Races, Positions & Points'!AY50) ->  | P43: =IF('Races, Positions & Points'!BB50="","",'Races, Positions & Points'!BB50) ->  | Q43: =IF('Races, Positions & Points'!BE50="","",'Races, Positions & Points'!BE50) ->  | R43: =IF('Races, Positions & Points'!BH50="","",'Races, Positions & Points'!BH50) -> 51.9 | S43: =IF('Races, Positions & Points'!BK50="","",'Races, Positions & Points'!BK50) ->  | T43: =IF('Races, Positions & Points'!BN50="","",'Races, Positions & Points'!BN50) ->  | U43: =IF('Races, Positions & Points'!BQ50="","",'Races, Positions & Points'!BQ50) ->  | V43: =IF('Races, Positions & Points'!BT50="","",'Races, Positions & Points'!BT50) ->  | W43: =IF('Races, Positions & Points'!#REF!="","",'Races, Positions & Points'!#REF!) ->  | X43: =IF('Races, Positions & Points'!BW50="","",'Races, Positions & Points'!BW50) ->  | Y43: =IF('Races, Positions & Points'!BZ50="","",'Races, Positions & Points'!BZ50) ->  | Z43: =IF('Races, Positions & Points'!CG50="","",'Races, Positions & Points'!CG50) ->  | AA43: =IF('Races, Positions & Points'!CC50="","",'Races, Positions & Points'!CC50) ->  | AB43: =IF('Races, Positions & Points'!CJ50="","",'Races, Positions & Points'!CJ50) ->  | AC43: =IF('Races, Positions & Points'!CM50="","",'Races, Positions & Points'!CM50) ->  | AD43: =IF('Races, Positions & Points'!CW50="","",'Races, Positions & Points'!CW50) ->  | AE43: =IF('Races, Positions & Points'!CP50="","",'Races, Positions & Points'!CP50) ->  | AF43: =IF('Races, Positions & Points'!CZ50="","",'Races, Positions & Points'!CZ50) ->  | AG43: =IF('Races, Positions & Points'!#REF!="","",'Races, Positions & Points'!#REF!) ->  | AH43: =IF('Races, Positions & Points'!DC50="","",'Races, Positions & Points'!DC50) ->  | AI43: =IF('Races, Positions & Points'!DF50="","",'Races, Positions & Points'!DF50) ->  | AJ43: =IF('Races, Positions & Points'!DI50="","",'Races, Positions & Points'!DI50) ->  | AK43: =IF('Races, Positions & Points'!DL50="","",'Races, Positions & Points'!DL50) ->  | AL43: =IF('Races, Positions & Points'!DO50="","",'Races, Positions & Points'!DO50) ->  | AM43: =IF('Races, Positions & Points'!DR50="","",'Races, Positions & Points'!DR50) ->  | AN43: =IF('Races, Positions & Points'!DS50="","",'Races, Positions & Points'!DS50) ->  | AO43: =IF('Races, Positions & Points'!DU50="","",'Races, Positions & Points'!DU50) ->  | AP43: =IF('Races, Positions & Points'!DX50="","",'Races, Positions & Points'!DX50) ->  | AQ43: =IF('Races, Positions & Points'!EA50="","",'Races, Positions & Points'!EA50) ->  | AR43: =IF('Races, Positions & Points'!ED50="","",'Races, Positions & Points'!ED50) ->  | AS43: =IF('Races, Positions & Points'!EG50="","",'Races, Positions & Points'!EG50) ->  | AT43: =IF('Races, Positions & Points'!#REF!="","",'Races, Positions & Points'!#REF!) ->  | AU43: =IF('Races, Positions & Points'!#REF!="","",'Races, Positions & Points'!#REF!) ->  | AV43: =IF('Races, Positions & Points'!#REF!="","",'Races, Positions & Points'!#REF!) ->  | AW43: =IF('Races, Positions & Points'!#REF!="","",'Races, Positions & Points'!#REF!) ->  | AX43: =IF('Races, Positions & Points'!#REF!="","",'Races, Positions & Points'!#REF!) ->  | AY43: =IF('Races, Positions & Points'!#REF!="","",'Races, Positions & Points'!#REF!) ->  | BA43: =SUMPRODUCT(--(B$4:AY$4="In"),--(B$3:AY$3>5),--(B$5:AY$5="Y"),--(B43:AY43<>"")) ->  | BB43: =SUMPRODUCT(--(B$4:AY$4="Out"),--(B$3:AY$3>5),--(B$5:AY$5="Y"),--(B43:AY43<>"")) ->  | BC43: =SUMPRODUCT(--(B$4:AY$4="In"),--(B$3:AY$3=5),--(B$5:AY$5="Y"),--(B43:AY43<>"")) ->  | BD43: =SUMPRODUCT(--(B$4:AY$4="Out"),--(B$3:AY$3=5),--(B$5:AY$5="Y"),--(B43:AY43<>"")) ->  | BE43: =SUMPRODUCT(--(B$4:AY$4="In"),--(B$3:AY$3=0),--(B$5:AY$5="Y"),--(B43:AY43<>"")) ->  | BF43: =SUMPRODUCT(--(B$4:AY$4="Out"),--(B$3:AY$3=0),--(B$5:AY$5="Y"),--(B43:AY43<>"")) ->  | BH43: ='Races, Positions & Points'!E50 -> 17479 | BI43: ='Races, Positions & Points'!#REF! ->  | CB43: =IF(MIN(C43,K43,L43,AH43,AI43,AK43,AL43)>0,MIN(C43,K43,L43,AH43,AI43,AK43,AL43),"") -> 56.27 | CH43: 56.05 | CK43: 51.9 | DC43: 56.27 | DH43: 56.05 | DJ43: 51.9
A44: ='Races, Positions & Points'!A51 -> Andrew Du Plessis | B44: =IF('Races, Positions & Points'!S51="","",'Races, Positions & Points'!S51) ->  | C44: =IF('Races, Positions & Points'!V51="","",'Races, Positions & Points'!V51) ->  | D44: =IF('Races, Positions & Points'!#REF!="","",'Races, Positions & Points'!#REF!) ->  | E44: =IF('Races, Positions & Points'!Y51="","",'Races, Positions & Points'!Y51) ->  | F44: =IF('Races, Positions & Points'!Z51="","",'Races, Positions & Points'!Z51) ->  | G44: =IF('Races, Positions & Points'!AC51="","",'Races, Positions & Points'!AC51) ->  | H44: =IF('Races, Positions & Points'!AD51="","",'Races, Positions & Points'!AD51) ->  | I44: =IF('Races, Positions & Points'!AG51="","",'Races, Positions & Points'!AG51) ->  | J44: =IF('Races, Positions & Points'!AJ51="","",'Races, Positions & Points'!AJ51) ->  | K44: =IF('Races, Positions & Points'!AM51="","",'Races, Positions & Points'!AM51) ->  | L44: =IF('Races, Positions & Points'!AP51="","",'Races, Positions & Points'!AP51) ->  | M44: =IF('Races, Positions & Points'!AS51="","",'Races, Positions & Points'!AS51) ->  | N44: =IF('Races, Positions & Points'!AV51="","",'Races, Positions & Points'!AV51) ->  | O44: =IF('Races, Positions & Points'!AY51="","",'Races, Positions & Points'!AY51) ->  | P44: =IF('Races, Positions & Points'!BB51="","",'Races, Positions & Points'!BB51) ->  | Q44: =IF('Races, Positions & Points'!BE51="","",'Races, Positions & Points'!BE51) ->  | R44: =IF('Races, Positions & Points'!BH51="","",'Races, Positions & Points'!BH51) ->  | S44: =IF('Races, Positions & Points'!BK51="","",'Races, Positions & Points'!BK51) ->  | T44: =IF('Races, Positions & Points'!BN51="","",'Races, Positions & Points'!BN51) ->  | U44: =IF('Races, Positions & Points'!BQ51="","",'Races, Positions & Points'!BQ51) ->  | V44: =IF('Races, Positions & Points'!BT51="","",'Races, Positions & Points'!BT51) ->  | W44: =IF('Races, Positions & Points'!#REF!="","",'Races, Positions & Points'!#REF!) ->  | X44: =IF('Races, Positions & Points'!BW51="","",'Races, Positions & Points'!BW51) ->  | Y44: =IF('Races, Positions & Points'!BZ51="","",'Races, Positions & Points'!BZ51) ->  | Z44: =IF('Races, Positions & Points'!CG51="","",'Races, Positions & Points'!CG51) ->  | AA44: =IF('Races, Positions & Points'!CC51="","",'Races, Positions & Points'!CC51) ->  | AB44: =IF('Races, Positions & Points'!CJ51="","",'Races, Positions & Points'!CJ51) ->  | AC44: =IF('Races, Positions & Points'!CM51="","",'Races, Positions & Points'!CM51) ->  | AD44: =IF('Races, Positions & Points'!CW51="","",'Races, Positions & Points'!CW51) ->  | AE44: =IF('Races, Positions & Points'!CP51="","",'Races, Positions & Points'!CP51) ->  | AF44: =IF('Races, Positions & Points'!CZ51="","",'Races, Positions & Points'!CZ51) ->  | AG44: =IF('Races, Positions & Points'!#REF!="","",'Races, Positions & Points'!#REF!) ->  | AH44: =IF('Races, Positions & Points'!DC51="","",'Races, Positions & Points'!DC51) ->  | AI44: =IF('Races, Positions & Points'!DF51="","",'Races, Positions & Points'!DF51) ->  | AJ44: =IF('Races, Positions & Points'!DI51="","",'Races, Positions & Points'!DI51) ->  | AK44: =IF('Races, Positions & Points'!DL51="","",'Races, Positions & Points'!DL51) ->  | AL44: =IF('Races, Positions & Points'!DO51="","",'Races, Positions & Points'!DO51) ->  | AM44: =IF('Races, Positions & Points'!DR51="","",'Races, Positions & Points'!DR51) ->  | AN44: =IF('Races, Positions & Points'!DS51="","",'Races, Positions & Points'!DS51) ->  | AO44: =IF('Races, Positions & Points'!DU51="","",'Races, Positions & Points'!DU51) ->  | AP44: =IF('Races, Positions & Points'!DX51="","",'Races, Positions & Points'!DX51) ->  | AQ44: =IF('Races, Positions & Points'!EA51="","",'Races, Positions & Points'!EA51) ->  | AR44: =IF('Races, Positions & Points'!ED51="","",'Races, Positions & Points'!ED51) ->  | AS44: =IF('Races, Positions & Points'!EG51="","",'Races, Positions & Points'!EG51) ->  | AT44: =IF('Races, Positions & Points'!#REF!="","",'Races, Positions & Points'!#REF!) ->  | AU44: =IF('Races, Positions & Points'!#REF!="","",'Races, Positions & Points'!#REF!) ->  | AV44: =IF('Races, Positions & Points'!#REF!="","",'Races, Positions & Points'!#REF!) ->  | AW44: =IF('Races, Positions & Points'!#REF!="","",'Races, Positions & Points'!#REF!) ->  | AX44: =IF('Races, Positions & Points'!#REF!="","",'Races, Positions & Points'!#REF!) ->  | AY44: =IF('Races, Positions & Points'!#REF!="","",'Races, Positions & Points'!#REF!) ->  | BH44: ='Races, Positions & Points'!E51 -> 12318 | BI44: ='Races, Positions & Points'!#REF! -> 
A45: ='Races, Positions & Points'!A52 -> Adam Beardmore | B45: =IF('Races, Positions & Points'!S52="","",'Races, Positions & Points'!S52) ->  | C45: =IF('Races, Positions & Points'!V52="","",'Races, Positions & Points'!V52) ->  | D45: =IF('Races, Positions & Points'!#REF!="","",'Races, Positions & Points'!#REF!) ->  | E45: =IF('Races, Positions & Points'!Y52="","",'Races, Positions & Points'!Y52) ->  | F45: =IF('Races, Positions & Points'!Z52="","",'Races, Positions & Points'!Z52) ->  | G45: =IF('Races, Positions & Points'!AC52="","",'Races, Positions & Points'!AC52) ->  | H45: =IF('Races, Positions & Points'!AD52="","",'Races, Positions & Points'!AD52) ->  | I45: =IF('Races, Positions & Points'!AG52="","",'Races, Positions & Points'!AG52) ->  | J45: =IF('Races, Positions & Points'!AJ52="","",'Races, Positions & Points'!AJ52) ->  | K45: =IF('Races, Positions & Points'!AM52="","",'Races, Positions & Points'!AM52) ->  | L45: =IF('Races, Positions & Points'!AP52="","",'Races, Positions & Points'!AP52) ->  | M45: =IF('Races, Positions & Points'!AS52="","",'Races, Positions & Points'!AS52) ->  | N45: =IF('Races, Positions & Points'!AV52="","",'Races, Positions & Points'!AV52) ->  | O45: =IF('Races, Positions & Points'!AY52="","",'Races, Positions & Points'!AY52) ->  | P45: =IF('Races, Positions & Points'!BB52="","",'Races, Positions & Points'!BB52) ->  | Q45: =IF('Races, Positions & Points'!BE52="","",'Races, Positions & Points'!BE52) ->  | R45: =IF('Races, Positions & Points'!BH52="","",'Races, Positions & Points'!BH52) ->  | S45: =IF('Races, Positions & Points'!BK52="","",'Races, Positions & Points'!BK52) ->  | T45: =IF('Races, Positions & Points'!BN52="","",'Races, Positions & Points'!BN52) ->  | U45: =IF('Races, Positions & Points'!BQ52="","",'Races, Positions & Points'!BQ52) ->  | V45: =IF('Races, Positions & Points'!BT52="","",'Races, Positions & Points'!BT52) ->  | W45: =IF('Races, Positions & Points'!#REF!="","",'Races, Positions & Points'!#REF!) ->  | X45: =IF('Races, Positions & Points'!BW52="","",'Races, Positions & Points'!BW52) ->  | Y45: =IF('Races, Positions & Points'!BZ52="","",'Races, Positions & Points'!BZ52) ->  | Z45: =IF('Races, Positions & Points'!CG52="","",'Races, Positions & Points'!CG52) ->  | AA45: =IF('Races, Positions & Points'!CC52="","",'Races, Positions & Points'!CC52) ->  | AB45: =IF('Races, Positions & Points'!CJ52="","",'Races, Positions & Points'!CJ52) ->  | AC45: =IF('Races, Positions & Points'!CM52="","",'Races, Positions & Points'!CM52) ->  | AD45: =IF('Races, Positions & Points'!CW52="","",'Races, Positions & Points'!CW52) ->  | AE45: =IF('Races, Positions & Points'!CP52="","",'Races, Positions & Points'!CP52) ->  | AF45: =IF('Races, Positions & Points'!CZ52="","",'Races, Positions & Points'!CZ52) ->  | AG45: =IF('Races, Positions & Points'!#REF!="","",'Races, Positions & Points'!#REF!) ->  | AH45: =IF('Races, Positions & Points'!DC52="","",'Races, Positions & Points'!DC52) ->  | AI45: =IF('Races, Positions & Points'!DF52="","",'Races, Positions & Points'!DF52) ->  | AJ45: =IF('Races, Positions & Points'!DI52="","",'Races, Positions & Points'!DI52) ->  | AK45: =IF('Races, Positions & Points'!DL52="","",'Races, Positions & Points'!DL52) ->  | AL45: =IF('Races, Positions & Points'!DO52="","",'Races, Positions & Points'!DO52) ->  | AM45: =IF('Races, Positions & Points'!DR52="","",'Races, Positions & Points'!DR52) ->  | AN45: =IF('Races, Positions & Points'!DS52="","",'Races, Positions & Points'!DS52) ->  | AO45: =IF('Races, Positions & Points'!DU52="","",'Races, Positions & Points'!DU52) ->  | AP45: =IF('Races, Positions & Points'!DX52="","",'Races, Positions & Points'!DX52) ->  | AQ45: =IF('Races, Positions & Points'!EA52="","",'Races, Positions & Points'!EA52) ->  | AR45: =IF('Races, Positions & Points'!ED52="","",'Races, Positions & Points'!ED52) ->  | AS45: =IF('Races, Positions & Points'!EG52="","",'Races, Positions & Points'!EG52) ->  | AT45: =IF('Races, Positions & Points'!#REF!="","",'Races, Positions & Points'!#REF!) ->  | AU45: =IF('Races, Positions & Points'!#REF!="","",'Races, Positions & Points'!#REF!) ->  | AV45: =IF('Races, Positions & Points'!#REF!="","",'Races, Positions & Points'!#REF!) ->  | AW45: =IF('Races, Positions & Points'!#REF!="","",'Races, Positions & Points'!#REF!) ->  | AX45: =IF('Races, Positions & Points'!#REF!="","",'Races, Positions & Points'!#REF!) ->  | AY45: =IF('Races, Positions & Points'!#REF!="","",'Races, Positions & Points'!#REF!) ->  | BH45: ='Races, Positions & Points'!E52 -> 19704 | BI45: ='Races, Positions & Points'!#REF! -> 
A46: ='Races, Positions & Points'!A53 -> Adam. Lee | B46: =IF('Races, Positions & Points'!S53="","",'Races, Positions & Points'!S53) ->  | C46: =IF('Races, Positions & Points'!V53="","",'Races, Positions & Points'!V53) ->  | D46: =IF('Races, Positions & Points'!#REF!="","",'Races, Positions & Points'!#REF!) ->  | E46: =IF('Races, Positions & Points'!Y53="","",'Races, Positions & Points'!Y53) ->  | F46: =IF('Races, Positions & Points'!Z53="","",'Races, Positions & Points'!Z53) ->  | G46: =IF('Races, Positions & Points'!AC53="","",'Races, Positions & Points'!AC53) ->  | H46: =IF('Races, Positions & Points'!AD53="","",'Races, Positions & Points'!AD53) ->  | I46: =IF('Races, Positions & Points'!AG53="","",'Races, Positions & Points'!AG53) ->  | J46: =IF('Races, Positions & Points'!AJ53="","",'Races, Positions & Points'!AJ53) ->  | K46: =IF('Races, Positions & Points'!AM53="","",'Races, Positions & Points'!AM53) -> DNF | L46: =IF('Races, Positions & Points'!AP53="","",'Races, Positions & Points'!AP53) ->  | M46: =IF('Races, Positions & Points'!AS53="","",'Races, Positions & Points'!AS53) ->  | N46: =IF('Races, Positions & Points'!AV53="","",'Races, Positions & Points'!AV53) ->  | O46: =IF('Races, Positions & Points'!AY53="","",'Races, Positions & Points'!AY53) ->  | P46: =IF('Races, Positions & Points'!BB53="","",'Races, Positions & Points'!BB53) ->  | Q46: =IF('Races, Positions & Points'!BE53="","",'Races, Positions & Points'!BE53) ->  | R46: =IF('Races, Positions & Points'!BH53="","",'Races, Positions & Points'!BH53) ->  | S46: =IF('Races, Positions & Points'!BK53="","",'Races, Positions & Points'!BK53) ->  | T46: =IF('Races, Positions & Points'!BN53="","",'Races, Positions & Points'!BN53) ->  | U46: =IF('Races, Positions & Points'!BQ53="","",'Races, Positions & Points'!BQ53) ->  | V46: =IF('Races, Positions & Points'!BT53="","",'Races, Positions & Points'!BT53) ->  | W46: =IF('Races, Positions & Points'!#REF!="","",'Races, Positions & Points'!#REF!) ->  | X46: =IF('Races, Positions & Points'!BW53="","",'Races, Positions & Points'!BW53) ->  | Y46: =IF('Races, Positions & Points'!BZ53="","",'Races, Positions & Points'!BZ53) ->  | Z46: =IF('Races, Positions & Points'!CG53="","",'Races, Positions & Points'!CG53) ->  | AA46: =IF('Races, Positions & Points'!CC53="","",'Races, Positions & Points'!CC53) -> dnf | AB46: =IF('Races, Positions & Points'!CJ53="","",'Races, Positions & Points'!CJ53) -> 49.02 | AC46: =IF('Races, Positions & Points'!CM53="","",'Races, Positions & Points'!CM53) ->  | AD46: =IF('Races, Positions & Points'!CW53="","",'Races, Positions & Points'!CW53) ->  | AE46: =IF('Races, Positions & Points'!CP53="","",'Races, Positions & Points'!CP53) -> 206.4 | AF46: =IF('Races, Positions & Points'!CZ53="","",'Races, Positions & Points'!CZ53) -> 97.79 | AG46: =IF('Races, Positions & Points'!#REF!="","",'Races, Positions & Points'!#REF!) ->  | AH46: =IF('Races, Positions & Points'!DC53="","",'Races, Positions & Points'!DC53) -> 61.42 | AI46: =IF('Races, Positions & Points'!DF53="","",'Races, Positions & Points'!DF53) ->  | AJ46: =IF('Races, Positions & Points'!DI53="","",'Races, Positions & Points'!DI53) ->  | AK46: =IF('Races, Positions & Points'!DL53="","",'Races, Positions & Points'!DL53) -> 70.95 | AL46: =IF('Races, Positions & Points'!DO53="","",'Races, Positions & Points'!DO53) -> 39.49 | AM46: =IF('Races, Positions & Points'!DR53="","",'Races, Positions & Points'!DR53) ->  | AN46: =IF('Races, Positions & Points'!DS53="","",'Races, Positions & Points'!DS53) -> 7 | AO46: =IF('Races, Positions & Points'!DU53="","",'Races, Positions & Points'!DU53) -> 117.7 | AP46: =IF('Races, Positions & Points'!DX53="","",'Races, Positions & Points'!DX53) ->  | AQ46: =IF('Races, Positions & Points'!EA53="","",'Races, Positions & Points'!EA53) ->  | AR46: =IF('Races, Positions & Points'!ED53="","",'Races, Positions & Points'!ED53) ->  | AS46: =IF('Races, Positions & Points'!EG53="","",'Races, Positions & Points'!EG53) ->  | AT46: =IF('Races, Positions & Points'!#REF!="","",'Races, Positions & Points'!#REF!) ->  | AU46: =IF('Races, Positions & Points'!#REF!="","",'Races, Positions & Points'!#REF!) ->  | AV46: =IF('Races, Positions & Points'!#REF!="","",'Races, Positions & Points'!#REF!) ->  | AW46: =IF('Races, Positions & Points'!#REF!="","",'Races, Positions & Points'!#REF!) ->  | AX46: =IF('Races, Positions & Points'!#REF!="","",'Races, Positions & Points'!#REF!) ->  | AY46: =IF('Races, Positions & Points'!#REF!="","",'Races, Positions & Points'!#REF!) ->  | BH46: ='Races, Positions & Points'!E53 -> 41578 | BI46: ='Races, Positions & Points'!#REF! ->  | CB46: 39.49 | CM46: 117.7 | CN46: dnf | DC46: 39.49 | DF46: =IF(MIN(M46,N46,AR46,AS46)>0,MIN(M46,N46,AR46,AS46),"") ->  | DG46: =IF(MIN(O46,AE46),MIN(O46,AE46),"") -> 206.4 | DH46: =IF(J46>0,J46,"") ->  | DI46: =IF(MIN(AM46,AY46)>0,MIN(AM46,AY46),"") ->  | DJ46: =IF(R46>0,R46,"") ->  | DK46: 117.7 | DL46: =IF(MIN(AV46,AW46),MIN(AV46,AW46),"") -> 
A47: ='Races, Positions & Points'!A54 -> Oliver Weeks | B47: =IF('Races, Positions & Points'!S54="","",'Races, Positions & Points'!S54) ->  | C47: =IF('Races, Positions & Points'!V54="","",'Races, Positions & Points'!V54) ->  | D47: =IF('Races, Positions & Points'!#REF!="","",'Races, Positions & Points'!#REF!) ->  | E47: =IF('Races, Positions & Points'!Y54="","",'Races, Positions & Points'!Y54) -> 79.82 | F47: =IF('Races, Positions & Points'!Z54="","",'Races, Positions & Points'!Z54) -> 75.11 | G47: =IF('Races, Positions & Points'!AC54="","",'Races, Positions & Points'!AC54) -> 68.23 | H47: =IF('Races, Positions & Points'!AD54="","",'Races, Positions & Points'!AD54) -> 79 | I47: =IF('Races, Positions & Points'!AG54="","",'Races, Positions & Points'!AG54) -> 57.37 | J47: =IF('Races, Positions & Points'!AJ54="","",'Races, Positions & Points'!AJ54) ->  | K47: =IF('Races, Positions & Points'!AM54="","",'Races, Positions & Points'!AM54) -> 55.05 | L47: =IF('Races, Positions & Points'!AP54="","",'Races, Positions & Points'!AP54) -> 81.17 | M47: =IF('Races, Positions & Points'!AS54="","",'Races, Positions & Points'!AS54) -> 65.55 | N47: =IF('Races, Positions & Points'!AV54="","",'Races, Positions & Points'!AV54) ->  | O47: =IF('Races, Positions & Points'!AY54="","",'Races, Positions & Points'!AY54) ->  | P47: =IF('Races, Positions & Points'!BB54="","",'Races, Positions & Points'!BB54) ->  | Q47: =IF('Races, Positions & Points'!BE54="","",'Races, Positions & Points'!BE54) ->  | R47: =IF('Races, Positions & Points'!BH54="","",'Races, Positions & Points'!BH54) -> 62.03 | S47: =IF('Races, Positions & Points'!BK54="","",'Races, Positions & Points'!BK54) ->  | T47: =IF('Races, Positions & Points'!BN54="","",'Races, Positions & Points'!BN54) ->  | U47: =IF('Races, Positions & Points'!BQ54="","",'Races, Positions & Points'!BQ54) -> 50.37 | V47: =IF('Races, Positions & Points'!BT54="","",'Races, Positions & Points'!BT54) -> 55.83 | W47: =IF('Races, Positions & Points'!#REF!="","",'Races, Positions & Points'!#REF!) ->  | X47: =IF('Races, Positions & Points'!BW54="","",'Races, Positions & Points'!BW54) -> 47.21 | Y47: =IF('Races, Positions & Points'!BZ54="","",'Races, Positions & Points'!BZ54) ->  | Z47: =IF('Races, Positions & Points'!CG54="","",'Races, Positions & Points'!CG54) ->  | AA47: =IF('Races, Positions & Points'!CC54="","",'Races, Positions & Points'!CC54) -> 55.93 | AB47: =IF('Races, Positions & Points'!CJ54="","",'Races, Positions & Points'!CJ54) -> 83.37 | AC47: =IF('Races, Positions & Points'!CM54="","",'Races, Positions & Points'!CM54) -> 48.46 | AD47: =IF('Races, Positions & Points'!CW54="","",'Races, Positions & Points'!CW54) ->  | AE47: =IF('Races, Positions & Points'!CP54="","",'Races, Positions & Points'!CP54) -> 41.96 | AF47: =IF('Races, Positions & Points'!CZ54="","",'Races, Positions & Points'!CZ54) -> 79.61 | AG47: =IF('Races, Positions & Points'!#REF!="","",'Races, Positions & Points'!#REF!) ->  | AH47: =IF('Races, Positions & Points'!DC54="","",'Races, Positions & Points'!DC54) -> 55.47 | AI47: =IF('Races, Positions & Points'!DF54="","",'Races, Positions & Points'!DF54) -> 52.45 | AJ47: =IF('Races, Positions & Points'!DI54="","",'Races, Positions & Points'!DI54) -> 71 | AK47: =IF('Races, Positions & Points'!DL54="","",'Races, Positions & Points'!DL54) -> 61.45 | AL47: =IF('Races, Positions & Points'!DO54="","",'Races, Positions & Points'!DO54) -> 50.92 | AM47: =IF('Races, Positions & Points'!DR54="","",'Races, Positions & Points'!DR54) ->  | AN47: =IF('Races, Positions & Points'!DS54="","",'Races, Positions & Points'!DS54) -> - | AO47: =IF('Races, Positions & Points'!DU54="","",'Races, Positions & Points'!DU54) -> dnf | AP47: =IF('Races, Positions & Points'!DX54="","",'Races, Positions & Points'!DX54) ->  | AQ47: =IF('Races, Positions & Points'!EA54="","",'Races, Positions & Points'!EA54) -> GS | AR47: =IF('Races, Positions & Points'!ED54="","",'Races, Positions & Points'!ED54) -> 31.66 | AS47: =IF('Races, Positions & Points'!EG54="","",'Races, Positions & Points'!EG54) -> 60.63 | AT47: =IF('Races, Positions & Points'!#REF!="","",'Races, Positions & Points'!#REF!) ->  | AU47: =IF('Races, Positions & Points'!#REF!="","",'Races, Positions & Points'!#REF!) ->  | AV47: =IF('Races, Positions & Points'!#REF!="","",'Races, Positions & Points'!#REF!) ->  | AW47: =IF('Races, Positions & Points'!#REF!="","",'Races, Positions & Points'!#REF!) ->  | AX47: =IF('Races, Positions & Points'!#REF!="","",'Races, Positions & Points'!#REF!) ->  | AY47: =IF('Races, Positions & Points'!#REF!="","",'Races, Positions & Points'!#REF!) ->  | BH47: ='Races, Positions & Points'!E54 -> 19051 | BI47: ='Races, Positions & Points'!#REF! ->  | CB47: 50.92 | CD47: 55.83 | CF47: 31.66 | CH47: 57.37 | CK47: 62.03 | CL47: 50.37 | CN47: 55.93 | CP47: 71 | DC47: 50.92 | DE47: 55.83 | DF47: 31.66 | DG47: 41.96 | DJ47: 62.03 | DK47: dnf
A48: ='Races, Positions & Points'!A55 -> Phil Emmerson | B48: =IF('Races, Positions & Points'!S55="","",'Races, Positions & Points'!S55) ->  | C48: =IF('Races, Positions & Points'!V55="","",'Races, Positions & Points'!V55) ->  | D48: =IF('Races, Positions & Points'!#REF!="","",'Races, Positions & Points'!#REF!) ->  | E48: =IF('Races, Positions & Points'!Y55="","",'Races, Positions & Points'!Y55) ->  | F48: =IF('Races, Positions & Points'!Z55="","",'Races, Positions & Points'!Z55) ->  | G48: =IF('Races, Positions & Points'!AC55="","",'Races, Positions & Points'!AC55) ->  | H48: =IF('Races, Positions & Points'!AD55="","",'Races, Positions & Points'!AD55) ->  | I48: =IF('Races, Positions & Points'!AG55="","",'Races, Positions & Points'!AG55) ->  | J48: =IF('Races, Positions & Points'!AJ55="","",'Races, Positions & Points'!AJ55) ->  | K48: =IF('Races, Positions & Points'!AM55="","",'Races, Positions & Points'!AM55) ->  | L48: =IF('Races, Positions & Points'!AP55="","",'Races, Positions & Points'!AP55) ->  | M48: =IF('Races, Positions & Points'!AS55="","",'Races, Positions & Points'!AS55) ->  | N48: =IF('Races, Positions & Points'!AV55="","",'Races, Positions & Points'!AV55) ->  | O48: =IF('Races, Positions & Points'!AY55="","",'Races, Positions & Points'!AY55) ->  | P48: =IF('Races, Positions & Points'!BB55="","",'Races, Positions & Points'!BB55) ->  | Q48: =IF('Races, Positions & Points'!BE55="","",'Races, Positions & Points'!BE55) ->  | R48: =IF('Races, Positions & Points'!BH55="","",'Races, Positions & Points'!BH55) ->  | S48: =IF('Races, Positions & Points'!BK55="","",'Races, Positions & Points'!BK55) ->  | T48: =IF('Races, Positions & Points'!BN55="","",'Races, Positions & Points'!BN55) ->  | U48: =IF('Races, Positions & Points'!BQ55="","",'Races, Positions & Points'!BQ55) ->  | V48: =IF('Races, Positions & Points'!BT55="","",'Races, Positions & Points'!BT55) ->  | W48: =IF('Races, Positions & Points'!#REF!="","",'Races, Positions & Points'!#REF!) ->  | X48: =IF('Races, Positions & Points'!BW55="","",'Races, Positions & Points'!BW55) ->  | Y48: =IF('Races, Positions & Points'!BZ55="","",'Races, Positions & Points'!BZ55) ->  | Z48: =IF('Races, Positions & Points'!CG55="","",'Races, Positions & Points'!CG55) ->  | AA48: =IF('Races, Positions & Points'!CC55="","",'Races, Positions & Points'!CC55) ->  | AB48: =IF('Races, Positions & Points'!CJ55="","",'Races, Positions & Points'!CJ55) ->  | AC48: =IF('Races, Positions & Points'!CM55="","",'Races, Positions & Points'!CM55) ->  | AD48: =IF('Races, Positions & Points'!CW55="","",'Races, Positions & Points'!CW55) ->  | AE48: =IF('Races, Positions & Points'!CP55="","",'Races, Positions & Points'!CP55) ->  | AF48: =IF('Races, Positions & Points'!CZ55="","",'Races, Positions & Points'!CZ55) ->  | AG48: =IF('Races, Positions & Points'!#REF!="","",'Races, Positions & Points'!#REF!) ->  | AH48: =IF('Races, Positions & Points'!DC55="","",'Races, Positions & Points'!DC55) ->  | AI48: =IF('Races, Positions & Points'!DF55="","",'Races, Positions & Points'!DF55) ->  | AJ48: =IF('Races, Positions & Points'!DI55="","",'Races, Positions & Points'!DI55) ->  | AK48: =IF('Races, Positions & Points'!DL55="","",'Races, Positions & Points'!DL55) ->  | AL48: =IF('Races, Positions & Points'!DO55="","",'Races, Positions & Points'!DO55) ->  | AM48: =IF('Races, Positions & Points'!DR55="","",'Races, Positions & Points'!DR55) ->  | AN48: =IF('Races, Positions & Points'!DS55="","",'Races, Positions & Points'!DS55) ->  | AO48: =IF('Races, Positions & Points'!DU55="","",'Races, Positions & Points'!DU55) ->  | AP48: =IF('Races, Positions & Points'!DX55="","",'Races, Positions & Points'!DX55) ->  | AQ48: =IF('Races, Positions & Points'!EA55="","",'Races, Positions & Points'!EA55) ->  | AR48: =IF('Races, Positions & Points'!ED55="","",'Races, Positions & Points'!ED55) ->  | AS48: =IF('Races, Positions & Points'!EG55="","",'Races, Positions & Points'!EG55) ->  | AT48: =IF('Races, Positions & Points'!#REF!="","",'Races, Positions & Points'!#REF!) ->  | AU48: =IF('Races, Positions & Points'!#REF!="","",'Races, Positions & Points'!#REF!) ->  | AV48: =IF('Races, Positions & Points'!#REF!="","",'Races, Positions & Points'!#REF!) ->  | AW48: =IF('Races, Positions & Points'!#REF!="","",'Races, Positions & Points'!#REF!) ->  | AX48: =IF('Races, Positions & Points'!#REF!="","",'Races, Positions & Points'!#REF!) ->  | AY48: =IF('Races, Positions & Points'!#REF!="","",'Races, Positions & Points'!#REF!) ->  | BH48: ='Races, Positions & Points'!E55 -> 21084 | BI48: ='Races, Positions & Points'!#REF! -> 
A49: ='Races, Positions & Points'!A56 -> Jack Rigby | B49: =IF('Races, Positions & Points'!S56="","",'Races, Positions & Points'!S56) ->  | C49: =IF('Races, Positions & Points'!V56="","",'Races, Positions & Points'!V56) ->  | D49: =IF('Races, Positions & Points'!#REF!="","",'Races, Positions & Points'!#REF!) ->  | E49: =IF('Races, Positions & Points'!Y56="","",'Races, Positions & Points'!Y56) ->  | F49: =IF('Races, Positions & Points'!Z56="","",'Races, Positions & Points'!Z56) ->  | G49: =IF('Races, Positions & Points'!AC56="","",'Races, Positions & Points'!AC56) ->  | H49: =IF('Races, Positions & Points'!AD56="","",'Races, Positions & Points'!AD56) ->  | I49: =IF('Races, Positions & Points'!AG56="","",'Races, Positions & Points'!AG56) ->  | J49: =IF('Races, Positions & Points'!AJ56="","",'Races, Positions & Points'!AJ56) ->  | K49: =IF('Races, Positions & Points'!AM56="","",'Races, Positions & Points'!AM56) ->  | L49: =IF('Races, Positions & Points'!AP56="","",'Races, Positions & Points'!AP56) ->  | M49: =IF('Races, Positions & Points'!AS56="","",'Races, Positions & Points'!AS56) ->  | N49: =IF('Races, Positions & Points'!AV56="","",'Races, Positions & Points'!AV56) ->  | O49: =IF('Races, Positions & Points'!AY56="","",'Races, Positions & Points'!AY56) ->  | P49: =IF('Races, Positions & Points'!BB56="","",'Races, Positions & Points'!BB56) ->  | Q49: =IF('Races, Positions & Points'!BE56="","",'Races, Positions & Points'!BE56) ->  | R49: =IF('Races, Positions & Points'!BH56="","",'Races, Positions & Points'!BH56) ->  | S49: =IF('Races, Positions & Points'!BK56="","",'Races, Positions & Points'!BK56) ->  | T49: =IF('Races, Positions & Points'!BN56="","",'Races, Positions & Points'!BN56) ->  | U49: =IF('Races, Positions & Points'!BQ56="","",'Races, Positions & Points'!BQ56) ->  | V49: =IF('Races, Positions & Points'!BT56="","",'Races, Positions & Points'!BT56) ->  | W49: =IF('Races, Positions & Points'!#REF!="","",'Races, Positions & Points'!#REF!) ->  | X49: =IF('Races, Positions & Points'!BW56="","",'Races, Positions & Points'!BW56) ->  | Y49: =IF('Races, Positions & Points'!BZ56="","",'Races, Positions & Points'!BZ56) ->  | Z49: =IF('Races, Positions & Points'!CG56="","",'Races, Positions & Points'!CG56) ->  | AA49: =IF('Races, Positions & Points'!CC56="","",'Races, Positions & Points'!CC56) ->  | AB49: =IF('Races, Positions & Points'!CJ56="","",'Races, Positions & Points'!CJ56) ->  | AC49: =IF('Races, Positions & Points'!CM56="","",'Races, Positions & Points'!CM56) ->  | AD49: =IF('Races, Positions & Points'!CW56="","",'Races, Positions & Points'!CW56) -> 76.38 | AE49: =IF('Races, Positions & Points'!CP56="","",'Races, Positions & Points'!CP56) ->  | AF49: =IF('Races, Positions & Points'!CZ56="","",'Races, Positions & Points'!CZ56) ->  | AG49: =IF('Races, Positions & Points'!#REF!="","",'Races, Positions & Points'!#REF!) ->  | AH49: =IF('Races, Positions & Points'!DC56="","",'Races, Positions & Points'!DC56) ->  | AI49: =IF('Races, Positions & Points'!DF56="","",'Races, Positions & Points'!DF56) ->  | AJ49: =IF('Races, Positions & Points'!DI56="","",'Races, Positions & Points'!DI56) ->  | AK49: =IF('Races, Positions & Points'!DL56="","",'Races, Positions & Points'!DL56) ->  | AL49: =IF('Races, Positions & Points'!DO56="","",'Races, Positions & Points'!DO56) ->  | AM49: =IF('Races, Positions & Points'!DR56="","",'Races, Positions & Points'!DR56) ->  | AN49: =IF('Races, Positions & Points'!DS56="","",'Races, Positions & Points'!DS56) ->  | AO49: =IF('Races, Positions & Points'!DU56="","",'Races, Positions & Points'!DU56) ->  | AP49: =IF('Races, Positions & Points'!DX56="","",'Races, Positions & Points'!DX56) ->  | AQ49: =IF('Races, Positions & Points'!EA56="","",'Races, Positions & Points'!EA56) ->  | AR49: =IF('Races, Positions & Points'!ED56="","",'Races, Positions & Points'!ED56) ->  | AS49: =IF('Races, Positions & Points'!EG56="","",'Races, Positions & Points'!EG56) ->  | AT49: =IF('Races, Positions & Points'!#REF!="","",'Races, Positions & Points'!#REF!) ->  | AU49: =IF('Races, Positions & Points'!#REF!="","",'Races, Positions & Points'!#REF!) ->  | AV49: =IF('Races, Positions & Points'!#REF!="","",'Races, Positions & Points'!#REF!) ->  | AW49: =IF('Races, Positions & Points'!#REF!="","",'Races, Positions & Points'!#REF!) ->  | AX49: =IF('Races, Positions & Points'!#REF!="","",'Races, Positions & Points'!#REF!) ->  | AY49: =IF('Races, Positions & Points'!#REF!="","",'Races, Positions & Points'!#REF!) ->  | BH49: ='Races, Positions & Points'!E56 -> 41722 | BI49: ='Races, Positions & Points'!#REF! ->  | CO49: 76.38
A50: ='Races, Positions & Points'!A57 -> Nick Miller | B50: =IF('Races, Positions & Points'!S57="","",'Races, Positions & Points'!S57) ->  | C50: =IF('Races, Positions & Points'!V57="","",'Races, Positions & Points'!V57) ->  | D50: =IF('Races, Positions & Points'!#REF!="","",'Races, Positions & Points'!#REF!) ->  | E50: =IF('Races, Positions & Points'!Y57="","",'Races, Positions & Points'!Y57) ->  | F50: =IF('Races, Positions & Points'!Z57="","",'Races, Positions & Points'!Z57) ->  | G50: =IF('Races, Positions & Points'!AC57="","",'Races, Positions & Points'!AC57) ->  | H50: =IF('Races, Positions & Points'!AD57="","",'Races, Positions & Points'!AD57) ->  | I50: =IF('Races, Positions & Points'!AG57="","",'Races, Positions & Points'!AG57) ->  | J50: =IF('Races, Positions & Points'!AJ57="","",'Races, Positions & Points'!AJ57) ->  | K50: =IF('Races, Positions & Points'!AM57="","",'Races, Positions & Points'!AM57) ->  | L50: =IF('Races, Positions & Points'!AP57="","",'Races, Positions & Points'!AP57) ->  | M50: =IF('Races, Positions & Points'!AS57="","",'Races, Positions & Points'!AS57) ->  | N50: =IF('Races, Positions & Points'!AV57="","",'Races, Positions & Points'!AV57) ->  | O50: =IF('Races, Positions & Points'!AY57="","",'Races, Positions & Points'!AY57) ->  | P50: =IF('Races, Positions & Points'!BB57="","",'Races, Positions & Points'!BB57) ->  | Q50: =IF('Races, Positions & Points'!BE57="","",'Races, Positions & Points'!BE57) ->  | R50: =IF('Races, Positions & Points'!BH57="","",'Races, Positions & Points'!BH57) ->  | S50: =IF('Races, Positions & Points'!BK57="","",'Races, Positions & Points'!BK57) ->  | T50: =IF('Races, Positions & Points'!BN57="","",'Races, Positions & Points'!BN57) ->  | U50: =IF('Races, Positions & Points'!BQ57="","",'Races, Positions & Points'!BQ57) ->  | V50: =IF('Races, Positions & Points'!BT57="","",'Races, Positions & Points'!BT57) ->  | W50: =IF('Races, Positions & Points'!#REF!="","",'Races, Positions & Points'!#REF!) ->  | X50: =IF('Races, Positions & Points'!BW57="","",'Races, Positions & Points'!BW57) ->  | Y50: =IF('Races, Positions & Points'!BZ57="","",'Races, Positions & Points'!BZ57) ->  | Z50: =IF('Races, Positions & Points'!CG57="","",'Races, Positions & Points'!CG57) ->  | AA50: =IF('Races, Positions & Points'!CC57="","",'Races, Positions & Points'!CC57) ->  | AB50: =IF('Races, Positions & Points'!CJ57="","",'Races, Positions & Points'!CJ57) ->  | AC50: =IF('Races, Positions & Points'!CM57="","",'Races, Positions & Points'!CM57) ->  | AD50: =IF('Races, Positions & Points'!CW57="","",'Races, Positions & Points'!CW57) ->  | AE50: =IF('Races, Positions & Points'!CP57="","",'Races, Positions & Points'!CP57) ->  | AF50: =IF('Races, Positions & Points'!CZ57="","",'Races, Positions & Points'!CZ57) ->  | AG50: =IF('Races, Positions & Points'!#REF!="","",'Races, Positions & Points'!#REF!) ->  | AH50: =IF('Races, Positions & Points'!DC57="","",'Races, Positions & Points'!DC57) ->  | AI50: =IF('Races, Positions & Points'!DF57="","",'Races, Positions & Points'!DF57) ->  | AJ50: =IF('Races, Positions & Points'!DI57="","",'Races, Positions & Points'!DI57) ->  | AK50: =IF('Races, Positions & Points'!DL57="","",'Races, Positions & Points'!DL57) ->  | AL50: =IF('Races, Positions & Points'!DO57="","",'Races, Positions & Points'!DO57) ->  | AM50: =IF('Races, Positions & Points'!DR57="","",'Races, Positions & Points'!DR57) ->  | AN50: =IF('Races, Positions & Points'!DS57="","",'Races, Positions & Points'!DS57) ->  | AO50: =IF('Races, Positions & Points'!DU57="","",'Races, Positions & Points'!DU57) ->  | AP50: =IF('Races, Positions & Points'!DX57="","",'Races, Positions & Points'!DX57) ->  | AQ50: =IF('Races, Positions & Points'!EA57="","",'Races, Positions & Points'!EA57) ->  | AR50: =IF('Races, Positions & Points'!ED57="","",'Races, Positions & Points'!ED57) ->  | AS50: =IF('Races, Positions & Points'!EG57="","",'Races, Positions & Points'!EG57) ->  | AT50: =IF('Races, Positions & Points'!#REF!="","",'Races, Positions & Points'!#REF!) ->  | AU50: =IF('Races, Positions & Points'!#REF!="","",'Races, Positions & Points'!#REF!) ->  | AV50: =IF('Races, Positions & Points'!#REF!="","",'Races, Positions & Points'!#REF!) ->  | AW50: =IF('Races, Positions & Points'!#REF!="","",'Races, Positions & Points'!#REF!) ->  | AX50: =IF('Races, Positions & Points'!#REF!="","",'Races, Positions & Points'!#REF!) ->  | AY50: =IF('Races, Positions & Points'!#REF!="","",'Races, Positions & Points'!#REF!) ->  | BH50: ='Races, Positions & Points'!E57 -> 18607 | BI50: ='Races, Positions & Points'!#REF! -> 
A51: ='Races, Positions & Points'!A58 -> Alasdair Thorley | B51: =IF('Races, Positions & Points'!S58="","",'Races, Positions & Points'!S58) ->  | C51: =IF('Races, Positions & Points'!V58="","",'Races, Positions & Points'!V58) ->  | D51: =IF('Races, Positions & Points'!#REF!="","",'Races, Positions & Points'!#REF!) ->  | E51: =IF('Races, Positions & Points'!Y58="","",'Races, Positions & Points'!Y58) ->  | F51: =IF('Races, Positions & Points'!Z58="","",'Races, Positions & Points'!Z58) ->  | G51: =IF('Races, Positions & Points'!AC58="","",'Races, Positions & Points'!AC58) ->  | H51: =IF('Races, Positions & Points'!AD58="","",'Races, Positions & Points'!AD58) ->  | I51: =IF('Races, Positions & Points'!AG58="","",'Races, Positions & Points'!AG58) ->  | J51: =IF('Races, Positions & Points'!AJ58="","",'Races, Positions & Points'!AJ58) ->  | K51: =IF('Races, Positions & Points'!AM58="","",'Races, Positions & Points'!AM58) ->  | L51: =IF('Races, Positions & Points'!AP58="","",'Races, Positions & Points'!AP58) ->  | M51: =IF('Races, Positions & Points'!AS58="","",'Races, Positions & Points'!AS58) ->  | N51: =IF('Races, Positions & Points'!AV58="","",'Races, Positions & Points'!AV58) ->  | O51: =IF('Races, Positions & Points'!AY58="","",'Races, Positions & Points'!AY58) ->  | P51: =IF('Races, Positions & Points'!BB58="","",'Races, Positions & Points'!BB58) ->  | Q51: =IF('Races, Positions & Points'!BE58="","",'Races, Positions & Points'!BE58) ->  | R51: =IF('Races, Positions & Points'!BH58="","",'Races, Positions & Points'!BH58) ->  | S51: =IF('Races, Positions & Points'!BK58="","",'Races, Positions & Points'!BK58) ->  | T51: =IF('Races, Positions & Points'!BN58="","",'Races, Positions & Points'!BN58) ->  | U51: =IF('Races, Positions & Points'!BQ58="","",'Races, Positions & Points'!BQ58) ->  | V51: =IF('Races, Positions & Points'!BT58="","",'Races, Positions & Points'!BT58) ->  | W51: =IF('Races, Positions & Points'!#REF!="","",'Races, Positions & Points'!#REF!) ->  | X51: =IF('Races, Positions & Points'!BW58="","",'Races, Positions & Points'!BW58) ->  | Y51: =IF('Races, Positions & Points'!BZ58="","",'Races, Positions & Points'!BZ58) ->  | Z51: =IF('Races, Positions & Points'!CG58="","",'Races, Positions & Points'!CG58) ->  | AA51: =IF('Races, Positions & Points'!CC58="","",'Races, Positions & Points'!CC58) ->  | AB51: =IF('Races, Positions & Points'!CJ58="","",'Races, Positions & Points'!CJ58) ->  | AC51: =IF('Races, Positions & Points'!CM58="","",'Races, Positions & Points'!CM58) ->  | AD51: =IF('Races, Positions & Points'!CW58="","",'Races, Positions & Points'!CW58) ->  | AE51: =IF('Races, Positions & Points'!CP58="","",'Races, Positions & Points'!CP58) ->  | AF51: =IF('Races, Positions & Points'!CZ58="","",'Races, Positions & Points'!CZ58) ->  | AG51: =IF('Races, Positions & Points'!#REF!="","",'Races, Positions & Points'!#REF!) ->  | AH51: =IF('Races, Positions & Points'!DC58="","",'Races, Positions & Points'!DC58) ->  | AI51: =IF('Races, Positions & Points'!DF58="","",'Races, Positions & Points'!DF58) ->  | AJ51: =IF('Races, Positions & Points'!DI58="","",'Races, Positions & Points'!DI58) ->  | AK51: =IF('Races, Positions & Points'!DL58="","",'Races, Positions & Points'!DL58) ->  | AL51: =IF('Races, Positions & Points'!DO58="","",'Races, Positions & Points'!DO58) ->  | AM51: =IF('Races, Positions & Points'!DR58="","",'Races, Positions & Points'!DR58) ->  | AN51: =IF('Races, Positions & Points'!DS58="","",'Races, Positions & Points'!DS58) ->  | AO51: =IF('Races, Positions & Points'!DU58="","",'Races, Positions & Points'!DU58) ->  | AP51: =IF('Races, Positions & Points'!DX58="","",'Races, Positions & Points'!DX58) ->  | AQ51: =IF('Races, Positions & Points'!EA58="","",'Races, Positions & Points'!EA58) ->  | AR51: =IF('Races, Positions & Points'!ED58="","",'Races, Positions & Points'!ED58) ->  | AS51: =IF('Races, Positions & Points'!EG58="","",'Races, Positions & Points'!EG58) ->  | AT51: =IF('Races, Positions & Points'!#REF!="","",'Races, Positions & Points'!#REF!) ->  | AU51: =IF('Races, Positions & Points'!#REF!="","",'Races, Positions & Points'!#REF!) ->  | AV51: =IF('Races, Positions & Points'!#REF!="","",'Races, Positions & Points'!#REF!) ->  | AW51: =IF('Races, Positions & Points'!#REF!="","",'Races, Positions & Points'!#REF!) ->  | AX51: =IF('Races, Positions & Points'!#REF!="","",'Races, Positions & Points'!#REF!) ->  | AY51: =IF('Races, Positions & Points'!#REF!="","",'Races, Positions & Points'!#REF!) ->  | BH51: ='Races, Positions & Points'!E58 -> 18586 | BI51: ='Races, Positions & Points'!#REF! -> 
A52: ='Races, Positions & Points'!A59 -> Edmund Walker | B52: =IF('Races, Positions & Points'!S59="","",'Races, Positions & Points'!S59) ->  | C52: =IF('Races, Positions & Points'!V59="","",'Races, Positions & Points'!V59) ->  | D52: =IF('Races, Positions & Points'!#REF!="","",'Races, Positions & Points'!#REF!) ->  | E52: =IF('Races, Positions & Points'!Y59="","",'Races, Positions & Points'!Y59) ->  | F52: =IF('Races, Positions & Points'!Z59="","",'Races, Positions & Points'!Z59) ->  | G52: =IF('Races, Positions & Points'!AC59="","",'Races, Positions & Points'!AC59) ->  | H52: =IF('Races, Positions & Points'!AD59="","",'Races, Positions & Points'!AD59) ->  | I52: =IF('Races, Positions & Points'!AG59="","",'Races, Positions & Points'!AG59) ->  | J52: =IF('Races, Positions & Points'!AJ59="","",'Races, Positions & Points'!AJ59) ->  | K52: =IF('Races, Positions & Points'!AM59="","",'Races, Positions & Points'!AM59) ->  | L52: =IF('Races, Positions & Points'!AP59="","",'Races, Positions & Points'!AP59) ->  | M52: =IF('Races, Positions & Points'!AS59="","",'Races, Positions & Points'!AS59) ->  | N52: =IF('Races, Positions & Points'!AV59="","",'Races, Positions & Points'!AV59) -> 71.59 | O52: =IF('Races, Positions & Points'!AY59="","",'Races, Positions & Points'!AY59) -> DNF | P52: =IF('Races, Positions & Points'!BB59="","",'Races, Positions & Points'!BB59) ->  | Q52: =IF('Races, Positions & Points'!BE59="","",'Races, Positions & Points'!BE59) ->  | R52: =IF('Races, Positions & Points'!BH59="","",'Races, Positions & Points'!BH59) ->  | S52: =IF('Races, Positions & Points'!BK59="","",'Races, Positions & Points'!BK59) ->  | T52: =IF('Races, Positions & Points'!BN59="","",'Races, Positions & Points'!BN59) ->  | U52: =IF('Races, Positions & Points'!BQ59="","",'Races, Positions & Points'!BQ59) ->  | V52: =IF('Races, Positions & Points'!BT59="","",'Races, Positions & Points'!BT59) ->  | W52: =IF('Races, Positions & Points'!#REF!="","",'Races, Positions & Points'!#REF!) ->  | X52: =IF('Races, Positions & Points'!BW59="","",'Races, Positions & Points'!BW59) ->  | Y52: =IF('Races, Positions & Points'!BZ59="","",'Races, Positions & Points'!BZ59) ->  | Z52: =IF('Races, Positions & Points'!CG59="","",'Races, Positions & Points'!CG59) ->  | AA52: =IF('Races, Positions & Points'!CC59="","",'Races, Positions & Points'!CC59) ->  | AB52: =IF('Races, Positions & Points'!CJ59="","",'Races, Positions & Points'!CJ59) ->  | AC52: =IF('Races, Positions & Points'!CM59="","",'Races, Positions & Points'!CM59) ->  | AD52: =IF('Races, Positions & Points'!CW59="","",'Races, Positions & Points'!CW59) ->  | AE52: =IF('Races, Positions & Points'!CP59="","",'Races, Positions & Points'!CP59) ->  | AF52: =IF('Races, Positions & Points'!CZ59="","",'Races, Positions & Points'!CZ59) ->  | AG52: =IF('Races, Positions & Points'!#REF!="","",'Races, Positions & Points'!#REF!) ->  | AH52: =IF('Races, Positions & Points'!DC59="","",'Races, Positions & Points'!DC59) ->  | AI52: =IF('Races, Positions & Points'!DF59="","",'Races, Positions & Points'!DF59) ->  | AJ52: =IF('Races, Positions & Points'!DI59="","",'Races, Positions & Points'!DI59) ->  | AK52: =IF('Races, Positions & Points'!DL59="","",'Races, Positions & Points'!DL59) ->  | AL52: =IF('Races, Positions & Points'!DO59="","",'Races, Positions & Points'!DO59) ->  | AM52: =IF('Races, Positions & Points'!DR59="","",'Races, Positions & Points'!DR59) ->  | AN52: =IF('Races, Positions & Points'!DS59="","",'Races, Positions & Points'!DS59) ->  | AO52: =IF('Races, Positions & Points'!DU59="","",'Races, Positions & Points'!DU59) ->  | AP52: =IF('Races, Positions & Points'!DX59="","",'Races, Positions & Points'!DX59) ->  | AQ52: =IF('Races, Positions & Points'!EA59="","",'Races, Positions & Points'!EA59) ->  | AR52: =IF('Races, Positions & Points'!ED59="","",'Races, Positions & Points'!ED59) ->  | AS52: =IF('Races, Positions & Points'!EG59="","",'Races, Positions & Points'!EG59) ->  | AT52: =IF('Races, Positions & Points'!#REF!="","",'Races, Positions & Points'!#REF!) ->  | AU52: =IF('Races, Positions & Points'!#REF!="","",'Races, Positions & Points'!#REF!) ->  | AV52: =IF('Races, Positions & Points'!#REF!="","",'Races, Positions & Points'!#REF!) ->  | AW52: =IF('Races, Positions & Points'!#REF!="","",'Races, Positions & Points'!#REF!) ->  | AX52: =IF('Races, Positions & Points'!#REF!="","",'Races, Positions & Points'!#REF!) ->  | AY52: =IF('Races, Positions & Points'!#REF!="","",'Races, Positions & Points'!#REF!) ->  | BH52: ='Races, Positions & Points'!E59 -> 14213 | BI52: ='Races, Positions & Points'!#REF! ->  | CF52: 71.59 | DF52: 71.59
A53: ='Races, Positions & Points'!A60 -> Mark Hawkins | B53: =IF('Races, Positions & Points'!S60="","",'Races, Positions & Points'!S60) ->  | C53: =IF('Races, Positions & Points'!V60="","",'Races, Positions & Points'!V60) ->  | D53: =IF('Races, Positions & Points'!#REF!="","",'Races, Positions & Points'!#REF!) ->  | E53: =IF('Races, Positions & Points'!Y60="","",'Races, Positions & Points'!Y60) ->  | F53: =IF('Races, Positions & Points'!Z60="","",'Races, Positions & Points'!Z60) ->  | G53: =IF('Races, Positions & Points'!AC60="","",'Races, Positions & Points'!AC60) ->  | H53: =IF('Races, Positions & Points'!AD60="","",'Races, Positions & Points'!AD60) ->  | I53: =IF('Races, Positions & Points'!AG60="","",'Races, Positions & Points'!AG60) ->  | J53: =IF('Races, Positions & Points'!AJ60="","",'Races, Positions & Points'!AJ60) -> 46.63 | K53: =IF('Races, Positions & Points'!AM60="","",'Races, Positions & Points'!AM60) -> DNF | L53: =IF('Races, Positions & Points'!AP60="","",'Races, Positions & Points'!AP60) ->  | M53: =IF('Races, Positions & Points'!AS60="","",'Races, Positions & Points'!AS60) ->  | N53: =IF('Races, Positions & Points'!AV60="","",'Races, Positions & Points'!AV60) ->  | O53: =IF('Races, Positions & Points'!AY60="","",'Races, Positions & Points'!AY60) ->  | P53: =IF('Races, Positions & Points'!BB60="","",'Races, Positions & Points'!BB60) ->  | Q53: =IF('Races, Positions & Points'!BE60="","",'Races, Positions & Points'!BE60) ->  | R53: =IF('Races, Positions & Points'!BH60="","",'Races, Positions & Points'!BH60) ->  | S53: =IF('Races, Positions & Points'!BK60="","",'Races, Positions & Points'!BK60) ->  | T53: =IF('Races, Positions & Points'!BN60="","",'Races, Positions & Points'!BN60) ->  | U53: =IF('Races, Positions & Points'!BQ60="","",'Races, Positions & Points'!BQ60) ->  | V53: =IF('Races, Positions & Points'!BT60="","",'Races, Positions & Points'!BT60) ->  | W53: =IF('Races, Positions & Points'!#REF!="","",'Races, Positions & Points'!#REF!) ->  | X53: =IF('Races, Positions & Points'!BW60="","",'Races, Positions & Points'!BW60) ->  | Y53: =IF('Races, Positions & Points'!BZ60="","",'Races, Positions & Points'!BZ60) ->  | Z53: =IF('Races, Positions & Points'!CG60="","",'Races, Positions & Points'!CG60) ->  | AA53: =IF('Races, Positions & Points'!CC60="","",'Races, Positions & Points'!CC60) -> dnf | AB53: =IF('Races, Positions & Points'!CJ60="","",'Races, Positions & Points'!CJ60) ->  | AC53: =IF('Races, Positions & Points'!CM60="","",'Races, Positions & Points'!CM60) ->  | AD53: =IF('Races, Positions & Points'!CW60="","",'Races, Positions & Points'!CW60) ->  | AE53: =IF('Races, Positions & Points'!CP60="","",'Races, Positions & Points'!CP60) -> dnf | AF53: =IF('Races, Positions & Points'!CZ60="","",'Races, Positions & Points'!CZ60) -> dnf | AG53: =IF('Races, Positions & Points'!#REF!="","",'Races, Positions & Points'!#REF!) ->  | AH53: =IF('Races, Positions & Points'!DC60="","",'Races, Positions & Points'!DC60) ->  | AI53: =IF('Races, Positions & Points'!DF60="","",'Races, Positions & Points'!DF60) ->  | AJ53: =IF('Races, Positions & Points'!DI60="","",'Races, Positions & Points'!DI60) ->  | AK53: =IF('Races, Positions & Points'!DL60="","",'Races, Positions & Points'!DL60) ->  | AL53: =IF('Races, Positions & Points'!DO60="","",'Races, Positions & Points'!DO60) ->  | AM53: =IF('Races, Positions & Points'!DR60="","",'Races, Positions & Points'!DR60) ->  | AN53: =IF('Races, Positions & Points'!DS60="","",'Races, Positions & Points'!DS60) ->  | AO53: =IF('Races, Positions & Points'!DU60="","",'Races, Positions & Points'!DU60) ->  | AP53: =IF('Races, Positions & Points'!DX60="","",'Races, Positions & Points'!DX60) ->  | AQ53: =IF('Races, Positions & Points'!EA60="","",'Races, Positions & Points'!EA60) ->  | AR53: =IF('Races, Positions & Points'!ED60="","",'Races, Positions & Points'!ED60) ->  | AS53: =IF('Races, Positions & Points'!EG60="","",'Races, Positions & Points'!EG60) ->  | AT53: =IF('Races, Positions & Points'!#REF!="","",'Races, Positions & Points'!#REF!) ->  | AU53: =IF('Races, Positions & Points'!#REF!="","",'Races, Positions & Points'!#REF!) ->  | AV53: =IF('Races, Positions & Points'!#REF!="","",'Races, Positions & Points'!#REF!) ->  | AW53: =IF('Races, Positions & Points'!#REF!="","",'Races, Positions & Points'!#REF!) ->  | AX53: =IF('Races, Positions & Points'!#REF!="","",'Races, Positions & Points'!#REF!) ->  | AY53: =IF('Races, Positions & Points'!#REF!="","",'Races, Positions & Points'!#REF!) ->  | BH53: ='Races, Positions & Points'!E60 -> 19163 | BI53: ='Races, Positions & Points'!#REF! ->  | CH53: 46.63 | CN53: dnf | DH53: 46.63
A54: ='Races, Positions & Points'!A61 -> James Smith | B54: =IF('Races, Positions & Points'!S61="","",'Races, Positions & Points'!S61) ->  | C54: =IF('Races, Positions & Points'!V61="","",'Races, Positions & Points'!V61) ->  | D54: =IF('Races, Positions & Points'!#REF!="","",'Races, Positions & Points'!#REF!) ->  | E54: =IF('Races, Positions & Points'!Y61="","",'Races, Positions & Points'!Y61) ->  | F54: =IF('Races, Positions & Points'!Z61="","",'Races, Positions & Points'!Z61) ->  | G54: =IF('Races, Positions & Points'!AC61="","",'Races, Positions & Points'!AC61) ->  | H54: =IF('Races, Positions & Points'!AD61="","",'Races, Positions & Points'!AD61) ->  | I54: =IF('Races, Positions & Points'!AG61="","",'Races, Positions & Points'!AG61) ->  | J54: =IF('Races, Positions & Points'!AJ61="","",'Races, Positions & Points'!AJ61) ->  | K54: =IF('Races, Positions & Points'!AM61="","",'Races, Positions & Points'!AM61) ->  | L54: =IF('Races, Positions & Points'!AP61="","",'Races, Positions & Points'!AP61) ->  | M54: =IF('Races, Positions & Points'!AS61="","",'Races, Positions & Points'!AS61) ->  | N54: =IF('Races, Positions & Points'!AV61="","",'Races, Positions & Points'!AV61) ->  | O54: =IF('Races, Positions & Points'!AY61="","",'Races, Positions & Points'!AY61) ->  | P54: =IF('Races, Positions & Points'!BB61="","",'Races, Positions & Points'!BB61) ->  | Q54: =IF('Races, Positions & Points'!BE61="","",'Races, Positions & Points'!BE61) ->  | R54: =IF('Races, Positions & Points'!BH61="","",'Races, Positions & Points'!BH61) ->  | S54: =IF('Races, Positions & Points'!BK61="","",'Races, Positions & Points'!BK61) ->  | T54: =IF('Races, Positions & Points'!BN61="","",'Races, Positions & Points'!BN61) ->  | U54: =IF('Races, Positions & Points'!BQ61="","",'Races, Positions & Points'!BQ61) ->  | V54: =IF('Races, Positions & Points'!BT61="","",'Races, Positions & Points'!BT61) ->  | W54: =IF('Races, Positions & Points'!#REF!="","",'Races, Positions & Points'!#REF!) ->  | X54: =IF('Races, Positions & Points'!BW61="","",'Races, Positions & Points'!BW61) ->  | Y54: =IF('Races, Positions & Points'!BZ61="","",'Races, Positions & Points'!BZ61) ->  | Z54: =IF('Races, Positions & Points'!CG61="","",'Races, Positions & Points'!CG61) ->  | AA54: =IF('Races, Positions & Points'!CC61="","",'Races, Positions & Points'!CC61) ->  | AB54: =IF('Races, Positions & Points'!CJ61="","",'Races, Positions & Points'!CJ61) ->  | AC54: =IF('Races, Positions & Points'!CM61="","",'Races, Positions & Points'!CM61) ->  | AD54: =IF('Races, Positions & Points'!CW61="","",'Races, Positions & Points'!CW61) ->  | AE54: =IF('Races, Positions & Points'!CP61="","",'Races, Positions & Points'!CP61) ->  | AF54: =IF('Races, Positions & Points'!CZ61="","",'Races, Positions & Points'!CZ61) ->  | AG54: =IF('Races, Positions & Points'!#REF!="","",'Races, Positions & Points'!#REF!) ->  | AH54: =IF('Races, Positions & Points'!DC61="","",'Races, Positions & Points'!DC61) ->  | AI54: =IF('Races, Positions & Points'!DF61="","",'Races, Positions & Points'!DF61) ->  | AJ54: =IF('Races, Positions & Points'!DI61="","",'Races, Positions & Points'!DI61) ->  | AK54: =IF('Races, Positions & Points'!DL61="","",'Races, Positions & Points'!DL61) ->  | AL54: =IF('Races, Positions & Points'!DO61="","",'Races, Positions & Points'!DO61) ->  | AM54: =IF('Races, Positions & Points'!DR61="","",'Races, Positions & Points'!DR61) ->  | AN54: =IF('Races, Positions & Points'!DS61="","",'Races, Positions & Points'!DS61) ->  | AO54: =IF('Races, Positions & Points'!DU61="","",'Races, Positions & Points'!DU61) ->  | AP54: =IF('Races, Positions & Points'!DX61="","",'Races, Positions & Points'!DX61) ->  | AQ54: =IF('Races, Positions & Points'!EA61="","",'Races, Positions & Points'!EA61) ->  | AR54: =IF('Races, Positions & Points'!ED61="","",'Races, Positions & Points'!ED61) ->  | AS54: =IF('Races, Positions & Points'!EG61="","",'Races, Positions & Points'!EG61) ->  | AT54: =IF('Races, Positions & Points'!#REF!="","",'Races, Positions & Points'!#REF!) ->  | AU54: =IF('Races, Positions & Points'!#REF!="","",'Races, Positions & Points'!#REF!) ->  | AV54: =IF('Races, Positions & Points'!#REF!="","",'Races, Positions & Points'!#REF!) ->  | AW54: =IF('Races, Positions & Points'!#REF!="","",'Races, Positions & Points'!#REF!) ->  | AX54: =IF('Races, Positions & Points'!#REF!="","",'Races, Positions & Points'!#REF!) ->  | AY54: =IF('Races, Positions & Points'!#REF!="","",'Races, Positions & Points'!#REF!) ->  | BH54: ='Races, Positions & Points'!E61 -> 21595 | BI54: ='Races, Positions & Points'!#REF! ->  | CV54: =IF(ISERROR(CS54*1.2),"",IF(CS54<50,CS54+10,IF(CS54<999.99,CS54*1.2,""))) -> 
A55: ='Races, Positions & Points'!A62 -> Gareth Miller | B55: =IF('Races, Positions & Points'!S62="","",'Races, Positions & Points'!S62) ->  | C55: =IF('Races, Positions & Points'!V62="","",'Races, Positions & Points'!V62) ->  | D55: =IF('Races, Positions & Points'!#REF!="","",'Races, Positions & Points'!#REF!) ->  | E55: =IF('Races, Positions & Points'!Y62="","",'Races, Positions & Points'!Y62) ->  | F55: =IF('Races, Positions & Points'!Z62="","",'Races, Positions & Points'!Z62) ->  | G55: =IF('Races, Positions & Points'!AC62="","",'Races, Positions & Points'!AC62) ->  | H55: =IF('Races, Positions & Points'!AD62="","",'Races, Positions & Points'!AD62) ->  | I55: =IF('Races, Positions & Points'!AG62="","",'Races, Positions & Points'!AG62) ->  | J55: =IF('Races, Positions & Points'!AJ62="","",'Races, Positions & Points'!AJ62) ->  | K55: =IF('Races, Positions & Points'!AM62="","",'Races, Positions & Points'!AM62) ->  | L55: =IF('Races, Positions & Points'!AP62="","",'Races, Positions & Points'!AP62) ->  | M55: =IF('Races, Positions & Points'!AS62="","",'Races, Positions & Points'!AS62) ->  | N55: =IF('Races, Positions & Points'!AV62="","",'Races, Positions & Points'!AV62) ->  | O55: =IF('Races, Positions & Points'!AY62="","",'Races, Positions & Points'!AY62) ->  | P55: =IF('Races, Positions & Points'!BB62="","",'Races, Positions & Points'!BB62) ->  | Q55: =IF('Races, Positions & Points'!BE62="","",'Races, Positions & Points'!BE62) ->  | R55: =IF('Races, Positions & Points'!BH62="","",'Races, Positions & Points'!BH62) ->  | S55: =IF('Races, Positions & Points'!BK62="","",'Races, Positions & Points'!BK62) ->  | T55: =IF('Races, Positions & Points'!BN62="","",'Races, Positions & Points'!BN62) ->  | U55: =IF('Races, Positions & Points'!BQ62="","",'Races, Positions & Points'!BQ62) ->  | V55: =IF('Races, Positions & Points'!BT62="","",'Races, Positions & Points'!BT62) ->  | W55: =IF('Races, Positions & Points'!#REF!="","",'Races, Positions & Points'!#REF!) ->  | X55: =IF('Races, Positions & Points'!BW62="","",'Races, Positions & Points'!BW62) ->  | Y55: =IF('Races, Positions & Points'!BZ62="","",'Races, Positions & Points'!BZ62) ->  | Z55: =IF('Races, Positions & Points'!CG62="","",'Races, Positions & Points'!CG62) ->  | AA55: =IF('Races, Positions & Points'!CC62="","",'Races, Positions & Points'!CC62) ->  | AB55: =IF('Races, Positions & Points'!CJ62="","",'Races, Positions & Points'!CJ62) ->  | AC55: =IF('Races, Positions & Points'!CM62="","",'Races, Positions & Points'!CM62) ->  | AD55: =IF('Races, Positions & Points'!CW62="","",'Races, Positions & Points'!CW62) ->  | AE55: =IF('Races, Positions & Points'!CP62="","",'Races, Positions & Points'!CP62) ->  | AF55: =IF('Races, Positions & Points'!CZ62="","",'Races, Positions & Points'!CZ62) ->  | AG55: =IF('Races, Positions & Points'!#REF!="","",'Races, Positions & Points'!#REF!) ->  | AH55: =IF('Races, Positions & Points'!DC62="","",'Races, Positions & Points'!DC62) ->  | AI55: =IF('Races, Positions & Points'!DF62="","",'Races, Positions & Points'!DF62) ->  | AJ55: =IF('Races, Positions & Points'!DI62="","",'Races, Positions & Points'!DI62) ->  | AK55: =IF('Races, Positions & Points'!DL62="","",'Races, Positions & Points'!DL62) ->  | AL55: =IF('Races, Positions & Points'!DO62="","",'Races, Positions & Points'!DO62) ->  | AM55: =IF('Races, Positions & Points'!DR62="","",'Races, Positions & Points'!DR62) ->  | AN55: =IF('Races, Positions & Points'!DS62="","",'Races, Positions & Points'!DS62) ->  | AO55: =IF('Races, Positions & Points'!DU62="","",'Races, Positions & Points'!DU62) ->  | AP55: =IF('Races, Positions & Points'!DX62="","",'Races, Positions & Points'!DX62) ->  | AQ55: =IF('Races, Positions & Points'!EA62="","",'Races, Positions & Points'!EA62) ->  | AR55: =IF('Races, Positions & Points'!ED62="","",'Races, Positions & Points'!ED62) ->  | AS55: =IF('Races, Positions & Points'!EG62="","",'Races, Positions & Points'!EG62) ->  | AT55: =IF('Races, Positions & Points'!#REF!="","",'Races, Positions & Points'!#REF!) ->  | AU55: =IF('Races, Positions & Points'!#REF!="","",'Races, Positions & Points'!#REF!) ->  | AV55: =IF('Races, Positions & Points'!#REF!="","",'Races, Positions & Points'!#REF!) ->  | AW55: =IF('Races, Positions & Points'!#REF!="","",'Races, Positions & Points'!#REF!) ->  | AX55: =IF('Races, Positions & Points'!#REF!="","",'Races, Positions & Points'!#REF!) ->  | AY55: =IF('Races, Positions & Points'!#REF!="","",'Races, Positions & Points'!#REF!) ->  | BH55: ='Races, Positions & Points'!E62 -> 18509 | BI55: ='Races, Positions & Points'!#REF! ->  | CV55: =IF(ISERROR(CS55*1.2),"",IF(CS55<50,CS55+10,IF(CS55<999.99,CS55*1.2,""))) -> 
A56: ='Races, Positions & Points'!A63 -> Thomas Upton | B56: =IF('Races, Positions & Points'!S63="","",'Races, Positions & Points'!S63) -> 1184.4 | C56: =IF('Races, Positions & Points'!V63="","",'Races, Positions & Points'!V63) ->  | D56: =IF('Races, Positions & Points'!#REF!="","",'Races, Positions & Points'!#REF!) ->  | E56: =IF('Races, Positions & Points'!Y63="","",'Races, Positions & Points'!Y63) -> 165.34 | F56: =IF('Races, Positions & Points'!Z63="","",'Races, Positions & Points'!Z63) -> 217.7 | G56: =IF('Races, Positions & Points'!AC63="","",'Races, Positions & Points'!AC63) -> 166.96 | H56: =IF('Races, Positions & Points'!AD63="","",'Races, Positions & Points'!AD63) -> 182.1 | I56: =IF('Races, Positions & Points'!AG63="","",'Races, Positions & Points'!AG63) -> 117.37 | J56: =IF('Races, Positions & Points'!AJ63="","",'Races, Positions & Points'!AJ63) -> 96.98 | K56: =IF('Races, Positions & Points'!AM63="","",'Races, Positions & Points'!AM63) -> 104.9 | L56: =IF('Races, Positions & Points'!AP63="","",'Races, Positions & Points'!AP63) -> 165.01 | M56: =IF('Races, Positions & Points'!AS63="","",'Races, Positions & Points'!AS63) -> 157.97 | N56: =IF('Races, Positions & Points'!AV63="","",'Races, Positions & Points'!AV63) -> 128.55 | O56: =IF('Races, Positions & Points'!AY63="","",'Races, Positions & Points'!AY63) -> 103.26 | P56: =IF('Races, Positions & Points'!BB63="","",'Races, Positions & Points'!BB63) ->  | Q56: =IF('Races, Positions & Points'!BE63="","",'Races, Positions & Points'!BE63) ->  | R56: =IF('Races, Positions & Points'!BH63="","",'Races, Positions & Points'!BH63) ->  | S56: =IF('Races, Positions & Points'!BK63="","",'Races, Positions & Points'!BK63) ->  | T56: =IF('Races, Positions & Points'!BN63="","",'Races, Positions & Points'!BN63) ->  | U56: =IF('Races, Positions & Points'!BQ63="","",'Races, Positions & Points'!BQ63) -> 145.03 | V56: =IF('Races, Positions & Points'!BT63="","",'Races, Positions & Points'!BT63) -> 119.95 | W56: =IF('Races, Positions & Points'!#REF!="","",'Races, Positions & Points'!#REF!) ->  | X56: =IF('Races, Positions & Points'!BW63="","",'Races, Positions & Points'!BW63) -> 66.45 | Y56: =IF('Races, Positions & Points'!BZ63="","",'Races, Positions & Points'!BZ63) ->  | Z56: =IF('Races, Positions & Points'!CG63="","",'Races, Positions & Points'!CG63) ->  | AA56: =IF('Races, Positions & Points'!CC63="","",'Races, Positions & Points'!CC63) -> 86.83 | AB56: =IF('Races, Positions & Points'!CJ63="","",'Races, Positions & Points'!CJ63) -> 150.7 | AC56: =IF('Races, Positions & Points'!CM63="","",'Races, Positions & Points'!CM63) -> 64.28 | AD56: =IF('Races, Positions & Points'!CW63="","",'Races, Positions & Points'!CW63) ->  | AE56: =IF('Races, Positions & Points'!CP63="","",'Races, Positions & Points'!CP63) -> 77.3 | AF56: =IF('Races, Positions & Points'!CZ63="","",'Races, Positions & Points'!CZ63) -> 129.47 | AG56: =IF('Races, Positions & Points'!#REF!="","",'Races, Positions & Points'!#REF!) ->  | AH56: =IF('Races, Positions & Points'!DC63="","",'Races, Positions & Points'!DC63) -> 97.41 | AI56: =IF('Races, Positions & Points'!DF63="","",'Races, Positions & Points'!DF63) -> 107.3 | AJ56: =IF('Races, Positions & Points'!DI63="","",'Races, Positions & Points'!DI63) -> 110.27 | AK56: =IF('Races, Positions & Points'!DL63="","",'Races, Positions & Points'!DL63) -> 86.85 | AL56: =IF('Races, Positions & Points'!DO63="","",'Races, Positions & Points'!DO63) ->  | AM56: =IF('Races, Positions & Points'!DR63="","",'Races, Positions & Points'!DR63) ->  | AN56: =IF('Races, Positions & Points'!DS63="","",'Races, Positions & Points'!DS63) ->  | AO56: =IF('Races, Positions & Points'!DU63="","",'Races, Positions & Points'!DU63) ->  | AP56: =IF('Races, Positions & Points'!DX63="","",'Races, Positions & Points'!DX63) ->  | AQ56: =IF('Races, Positions & Points'!EA63="","",'Races, Positions & Points'!EA63) ->  | AR56: =IF('Races, Positions & Points'!ED63="","",'Races, Positions & Points'!ED63) ->  | AS56: =IF('Races, Positions & Points'!EG63="","",'Races, Positions & Points'!EG63) ->  | AT56: =IF('Races, Positions & Points'!#REF!="","",'Races, Positions & Points'!#REF!) ->  | AU56: =IF('Races, Positions & Points'!#REF!="","",'Races, Positions & Points'!#REF!) ->  | AV56: =IF('Races, Positions & Points'!#REF!="","",'Races, Positions & Points'!#REF!) ->  | AW56: =IF('Races, Positions & Points'!#REF!="","",'Races, Positions & Points'!#REF!) ->  | AX56: =IF('Races, Positions & Points'!#REF!="","",'Races, Positions & Points'!#REF!) ->  | AY56: =IF('Races, Positions & Points'!#REF!="","",'Races, Positions & Points'!#REF!) ->  | BH56: ='Races, Positions & Points'!E63 -> 21051 | BI56: ='Races, Positions & Points'!#REF! ->  | CB56: 86.85 | CD56: 119.95 | CF56: 128.55 | CH56: 96.98 | CL56: 145.03 | CN56: 86.83 | CP56: 110.27 | DC56: 86.85 | DE56: 119.95 | DF56: 128.55 | DG56: 77.3 | DH56: 96.98
A57: ='Races, Positions & Points'!A64 -> Jordan Rigby | B57: =IF('Races, Positions & Points'!S64="","",'Races, Positions & Points'!S64) ->  | C57: =IF('Races, Positions & Points'!V64="","",'Races, Positions & Points'!V64) ->  | D57: =IF('Races, Positions & Points'!#REF!="","",'Races, Positions & Points'!#REF!) ->  | E57: =IF('Races, Positions & Points'!Y64="","",'Races, Positions & Points'!Y64) ->  | F57: =IF('Races, Positions & Points'!Z64="","",'Races, Positions & Points'!Z64) ->  | G57: =IF('Races, Positions & Points'!AC64="","",'Races, Positions & Points'!AC64) ->  | H57: =IF('Races, Positions & Points'!AD64="","",'Races, Positions & Points'!AD64) ->  | I57: =IF('Races, Positions & Points'!AG64="","",'Races, Positions & Points'!AG64) ->  | J57: =IF('Races, Positions & Points'!AJ64="","",'Races, Positions & Points'!AJ64) ->  | K57: =IF('Races, Positions & Points'!AM64="","",'Races, Positions & Points'!AM64) ->  | L57: =IF('Races, Positions & Points'!AP64="","",'Races, Positions & Points'!AP64) ->  | M57: =IF('Races, Positions & Points'!AS64="","",'Races, Positions & Points'!AS64) ->  | N57: =IF('Races, Positions & Points'!AV64="","",'Races, Positions & Points'!AV64) ->  | O57: =IF('Races, Positions & Points'!AY64="","",'Races, Positions & Points'!AY64) ->  | P57: =IF('Races, Positions & Points'!BB64="","",'Races, Positions & Points'!BB64) ->  | Q57: =IF('Races, Positions & Points'!BE64="","",'Races, Positions & Points'!BE64) ->  | R57: =IF('Races, Positions & Points'!BH64="","",'Races, Positions & Points'!BH64) ->  | S57: =IF('Races, Positions & Points'!BK64="","",'Races, Positions & Points'!BK64) ->  | T57: =IF('Races, Positions & Points'!BN64="","",'Races, Positions & Points'!BN64) ->  | U57: =IF('Races, Positions & Points'!BQ64="","",'Races, Positions & Points'!BQ64) ->  | V57: =IF('Races, Positions & Points'!BT64="","",'Races, Positions & Points'!BT64) ->  | W57: =IF('Races, Positions & Points'!#REF!="","",'Races, Positions & Points'!#REF!) ->  | X57: =IF('Races, Positions & Points'!BW64="","",'Races, Positions & Points'!BW64) ->  | Y57: =IF('Races, Positions & Points'!BZ64="","",'Races, Positions & Points'!BZ64) ->  | Z57: =IF('Races, Positions & Points'!CG64="","",'Races, Positions & Points'!CG64) ->  | AA57: =IF('Races, Positions & Points'!CC64="","",'Races, Positions & Points'!CC64) ->  | AB57: =IF('Races, Positions & Points'!CJ64="","",'Races, Positions & Points'!CJ64) ->  | AC57: =IF('Races, Positions & Points'!CM64="","",'Races, Positions & Points'!CM64) ->  | AD57: =IF('Races, Positions & Points'!CW64="","",'Races, Positions & Points'!CW64) ->  | AE57: =IF('Races, Positions & Points'!CP64="","",'Races, Positions & Points'!CP64) ->  | AF57: =IF('Races, Positions & Points'!CZ64="","",'Races, Positions & Points'!CZ64) ->  | AG57: =IF('Races, Positions & Points'!#REF!="","",'Races, Positions & Points'!#REF!) ->  | AH57: =IF('Races, Positions & Points'!DC64="","",'Races, Positions & Points'!DC64) ->  | AI57: =IF('Races, Positions & Points'!DF64="","",'Races, Positions & Points'!DF64) ->  | AJ57: =IF('Races, Positions & Points'!DI64="","",'Races, Positions & Points'!DI64) ->  | AK57: =IF('Races, Positions & Points'!DL64="","",'Races, Positions & Points'!DL64) ->  | AL57: =IF('Races, Positions & Points'!DO64="","",'Races, Positions & Points'!DO64) ->  | AM57: =IF('Races, Positions & Points'!DR64="","",'Races, Positions & Points'!DR64) ->  | AN57: =IF('Races, Positions & Points'!DS64="","",'Races, Positions & Points'!DS64) ->  | AO57: =IF('Races, Positions & Points'!DU64="","",'Races, Positions & Points'!DU64) ->  | AP57: =IF('Races, Positions & Points'!DX64="","",'Races, Positions & Points'!DX64) ->  | AQ57: =IF('Races, Positions & Points'!EA64="","",'Races, Positions & Points'!EA64) ->  | AR57: =IF('Races, Positions & Points'!ED64="","",'Races, Positions & Points'!ED64) ->  | AS57: =IF('Races, Positions & Points'!EG64="","",'Races, Positions & Points'!EG64) ->  | AT57: =IF('Races, Positions & Points'!#REF!="","",'Races, Positions & Points'!#REF!) ->  | AU57: =IF('Races, Positions & Points'!#REF!="","",'Races, Positions & Points'!#REF!) ->  | AV57: =IF('Races, Positions & Points'!#REF!="","",'Races, Positions & Points'!#REF!) ->  | AW57: =IF('Races, Positions & Points'!#REF!="","",'Races, Positions & Points'!#REF!) ->  | AX57: =IF('Races, Positions & Points'!#REF!="","",'Races, Positions & Points'!#REF!) ->  | AY57: =IF('Races, Positions & Points'!#REF!="","",'Races, Positions & Points'!#REF!) ->  | BH57: ='Races, Positions & Points'!E64 -> 19910 | BI57: ='Races, Positions & Points'!#REF! -> 
A58: ='Races, Positions & Points'!A65 -> Thomas Lawrence | B58: =IF('Races, Positions & Points'!S65="","",'Races, Positions & Points'!S65) ->  | C58: =IF('Races, Positions & Points'!V65="","",'Races, Positions & Points'!V65) ->  | D58: =IF('Races, Positions & Points'!#REF!="","",'Races, Positions & Points'!#REF!) ->  | E58: =IF('Races, Positions & Points'!Y65="","",'Races, Positions & Points'!Y65) ->  | F58: =IF('Races, Positions & Points'!Z65="","",'Races, Positions & Points'!Z65) ->  | G58: =IF('Races, Positions & Points'!AC65="","",'Races, Positions & Points'!AC65) ->  | H58: =IF('Races, Positions & Points'!AD65="","",'Races, Positions & Points'!AD65) ->  | I58: =IF('Races, Positions & Points'!AG65="","",'Races, Positions & Points'!AG65) -> 78.69 | J58: =IF('Races, Positions & Points'!AJ65="","",'Races, Positions & Points'!AJ65) ->  | K58: =IF('Races, Positions & Points'!AM65="","",'Races, Positions & Points'!AM65) ->  | L58: =IF('Races, Positions & Points'!AP65="","",'Races, Positions & Points'!AP65) ->  | M58: =IF('Races, Positions & Points'!AS65="","",'Races, Positions & Points'!AS65) ->  | N58: =IF('Races, Positions & Points'!AV65="","",'Races, Positions & Points'!AV65) -> 116.01 | O58: =IF('Races, Positions & Points'!AY65="","",'Races, Positions & Points'!AY65) ->  | P58: =IF('Races, Positions & Points'!BB65="","",'Races, Positions & Points'!BB65) ->  | Q58: =IF('Races, Positions & Points'!BE65="","",'Races, Positions & Points'!BE65) ->  | R58: =IF('Races, Positions & Points'!BH65="","",'Races, Positions & Points'!BH65) ->  | S58: =IF('Races, Positions & Points'!BK65="","",'Races, Positions & Points'!BK65) ->  | T58: =IF('Races, Positions & Points'!BN65="","",'Races, Positions & Points'!BN65) ->  | U58: =IF('Races, Positions & Points'!BQ65="","",'Races, Positions & Points'!BQ65) ->  | V58: =IF('Races, Positions & Points'!BT65="","",'Races, Positions & Points'!BT65) ->  | W58: =IF('Races, Positions & Points'!#REF!="","",'Races, Positions & Points'!#REF!) ->  | X58: =IF('Races, Positions & Points'!BW65="","",'Races, Positions & Points'!BW65) -> 63.38 | Y58: =IF('Races, Positions & Points'!BZ65="","",'Races, Positions & Points'!BZ65) ->  | Z58: =IF('Races, Positions & Points'!CG65="","",'Races, Positions & Points'!CG65) ->  | AA58: =IF('Races, Positions & Points'!CC65="","",'Races, Positions & Points'!CC65) -> 102.5 | AB58: =IF('Races, Positions & Points'!CJ65="","",'Races, Positions & Points'!CJ65) -> 85.85 | AC58: =IF('Races, Positions & Points'!CM65="","",'Races, Positions & Points'!CM65) ->  | AD58: =IF('Races, Positions & Points'!CW65="","",'Races, Positions & Points'!CW65) ->  | AE58: =IF('Races, Positions & Points'!CP65="","",'Races, Positions & Points'!CP65) ->  | AF58: =IF('Races, Positions & Points'!CZ65="","",'Races, Positions & Points'!CZ65) ->  | AG58: =IF('Races, Positions & Points'!#REF!="","",'Races, Positions & Points'!#REF!) ->  | AH58: =IF('Races, Positions & Points'!DC65="","",'Races, Positions & Points'!DC65) ->  | AI58: =IF('Races, Positions & Points'!DF65="","",'Races, Positions & Points'!DF65) ->  | AJ58: =IF('Races, Positions & Points'!DI65="","",'Races, Positions & Points'!DI65) ->  | AK58: =IF('Races, Positions & Points'!DL65="","",'Races, Positions & Points'!DL65) ->  | AL58: =IF('Races, Positions & Points'!DO65="","",'Races, Positions & Points'!DO65) -> 90.8 | AM58: =IF('Races, Positions & Points'!DR65="","",'Races, Positions & Points'!DR65) ->  | AN58: =IF('Races, Positions & Points'!DS65="","",'Races, Positions & Points'!DS65) ->  | AO58: =IF('Races, Positions & Points'!DU65="","",'Races, Positions & Points'!DU65) ->  | AP58: =IF('Races, Positions & Points'!DX65="","",'Races, Positions & Points'!DX65) ->  | AQ58: =IF('Races, Positions & Points'!EA65="","",'Races, Positions & Points'!EA65) ->  | AR58: =IF('Races, Positions & Points'!EG65="","",'Races, Positions & Points'!EG65) -> 610.2 | AS58: =IF('Races, Positions & Points'!#REF!="","",'Races, Positions & Points'!#REF!) ->  | AT58: =IF('Races, Positions & Points'!#REF!="","",'Races, Positions & Points'!#REF!) ->  | AU58: =IF('Races, Positions & Points'!#REF!="","",'Races, Positions & Points'!#REF!) ->  | AV58: =IF('Races, Positions & Points'!#REF!="","",'Races, Positions & Points'!#REF!) ->  | AW58: =IF('Races, Positions & Points'!#REF!="","",'Races, Positions & Points'!#REF!) ->  | AX58: =IF('Races, Positions & Points'!#REF!="","",'Races, Positions & Points'!#REF!) ->  | AY58: =IF('Races, Positions & Points'!#REF!="","",'Races, Positions & Points'!#REF!) ->  | BH58: ='Races, Positions & Points'!E65 -> 19941 | BI58: ='Races, Positions & Points'!#REF! ->  | CB58: 90.8 | CH58: 78.69 | CN58: 102.5 | DC58: 90.8
